{"text_format":"1","workbook":"xlsx","n_sheets":62,"sheets":["modList00","Инструкция","Лог обновления","Титульный","Территории","Перечень тарифов","Форма 1.0.1 | Т-ВО","Форма 3.2 | Т-ВО","Форма 1.0.1 | Т-транс","Форма 3.2 | Т-транс","Форма 1.0.1 | Т-подкл(инд)","Форма 3.4 | Т-подкл(инд)","Форма 1.0.1 | Т-подкл","Форма 3.4 | Т-подкл","Форма 1.0.1 | Форма 3.9","Форма 3.9","Форма 1.0.1 | Форма 3.10","Форма 3.10","Форма 1.0.2","Сведения об изменении","Комментарии","Проверка","modListTempFilter","modCheckCyan","REESTR_LINK","REESTR_DS","modHTTP","modfrmRezimChoose","modSheetMain","REESTR_VT","REESTR_VED","modfrmReestrObj","AllSheetsInThisWorkbook","et_union_vert","modInstruction","modRegion","modReestr","modfrmReestr","modUpdTemplMain","REESTR_ORG","modClassifierValidate","modProv","modHyp","modServiceModule","modList01","modList02","modList03","et_union_hor","REESTR_MO_FILTER","REESTR_MO","TEHSHEET","modInfo","modList05","modList06","modList07","modList11","modList12","modfrmDateChoose","modComm","modThisWorkbook","modfrmReestrMR","modfrmCheckUpdates"],"not_rendered":{"charts":0,"images":20,"macros":1,"external_links":0,"defined_names":562,"comments":0,"pivot_tables":0},"unopened":[],"bounds":{"document_bytes":16777216,"sheet_cells":100000,"rows_first":2000,"rows_last":500,"rows_between":2000,"halvings":0,"cell_chars":16384,"cell_head_chars":4096},"cells_cut":0,"cells_raw":0,"read":"whole","date_system":"1900"}

{"sheet":"modList00","index":0,"n_rows":0,"n_cols":0,"rows_kept":0,"cut":false,"hidden":true,"merged":[]}

{"sheet":"Инструкция","index":1,"n_rows":102,"n_cols":27,"rows_kept":102,"cut":false,"hidden":true,"merged":[[59,7,59,23],[81,7,81,23],[45,4,56,23],[69,4,69,19],[59,4,59,6],[58,7,58,23],[58,4,58,6],[70,4,70,19],[60,7,60,23],[101,5,101,23],[99,5,99,18],[81,4,81,6],[97,4,97,23],[80,4,80,20],[83,7,83,23],[1,1,1,6],[2,1,2,2],[6,4,18,23],[22,15,22,22],[57,4,57,20],[4,1,4,24],[40,4,44,23],[20,5,20,12],[20,15,20,23],[21,15,21,23],[34,4,38,23],[21,5,21,12],[39,4,39,23]]}
[null,null,null,null,null,null,null,null,null,null,null,null,null,null,null,null,null,null,null,null,null,null,null,null,null,null," (требуется обновление)"]
[null,{"$f":"\"Код отчёта: \" & GetCode()","v":"Код отчёта: FAS.JKH.OPEN.INFO.PRICE.VO"}]
[null,{"$f":"\"Версия \" & GetVersion()","v":"Версия 1.0.1"}]
[]
[null,"Показатели, подлежащие раскрытию в сфере водоотведения (цены и тарифы)"]
[]
[null,null,null,null,"• На рабочем месте должен быть установлен MS Office 2007 SP3, 2010, 2013, 2016 с полной версией MS Excel\n\n• Макросы во время работы должны быть включены (!)\n\n• Для корректной работы отчёта требуется выбрать низкий уровень безопасности\n(В меню MS Excel 2007/2010/2013/2016: Параметры Excel | Центр управления безопасностью | Параметры центра управления безопасностью | Параметры макросов | Включить все макросы | ОК)\n\n• Если Вы работаете в табличном процессоре MS Excel 2007 и выше, то можете использовать для работы формат XLSB (Двоичная книга Excel). При работе в формате XLSB заметно быстрее происходит сохранение файла, а также уменьшается размер по сравнению с форматами XLS и XLSM\n\n• Не рекомендуется снимать защиту с листов и каким-либо образом модифицировать защищаемые формулы и расчётные поля, в противном случае, отчёт будет отклонён системой\n\n• При сохранении не следует выбирать формат XLSX (Книга Excel), так как в указанном формате макросы, необходимые для работы отчёта, безвозвратно удаляются"]
[]
[]
[]
[]
[]
[]
[]
[]
[]
[]
[]
[]
[]
[null,null,null,null,"A"," - необязательные для заполнения",null,null,null,null,null,null,null,null,"A"," - с формулами и константами"]
[null,null,null,null,"A"," - обязательные для заполнения",null,null,null,null,null,null,null,null,"A"," - с выбором значений по двойному клику"]
[]
[]
[]
[]
[]
[]
[]
[]
[]
[]
[]
[]
[null,null,null,null,"Если в предложенном Вам списке необходимая организация, МР/МО отсутствуют, обновите реестры с помощью кнопок\n\nВ результате синхронизации с базой данных список организаций (МР/МО) будет заменён актуальным (механизм синхронизации требует подключения к сети Интернет и основан на использовании протокола HTTPS (TCP порт 443))\n\nЕсли после обновления Вам не удалось найти необходимую организацию в списке, обратитесь к ответственному за поддержание реестра Вашего региона."]
[]
[]
[]
[]
[]
[]
[]
[]
[]
[]
[null,null,null,null,"• При сохранении шаблона осуществляется проверка корректности данных, в том числе на наличие значений в ячейках, обязательных для заполнения\n\n• Если какая-то ячейка не удовлетворяет условию проверки, на лист «Проверка» добавляется гиперссылка на данную ячейку и указывается причина ошибки\n\n• В колонке «Статус» для каждого сообщения возможны 2 значения: ошибка и предупреждение\n\n• При наличии сообщений со статусом «Ошибка» шаблон будет отклонён системой и не будет загружен в хранилище данных, сообщения со статусом «Предупреждение» носят информационный характер, и такой шаблон будет принят системой"]
[]
[]
[]
[]
[]
[]
[]
[]
[]
[]
[]
[null,null,null,null,"Обратиться за помощью в службу технической поддержки"]
[]
[]
[]
[]
[]
[]
[]
[]
[]
[]
[]
[null,null,null,null,"Инструкция по загрузке сопроводительных материалов"]
[null,null,null,null,"Инструкция по работе с отчетной формой"]
[]
[]
[]
[]
[]
[]
[]
[]
[]
[null,null,null,null,"Обратиться за помощью в службу технической поддержки"]
[]
[]
[]
[]
[]
[]
[]
[]
[]
[]
[]
[]
[]
[]
[]
[]
[null,null,null,null,"При наличии подключения к Интернет, можно автоматически проверять наличие доступных обновлений. Выберите способ оповещения о наличии обновлений для отчёта:"]
[]
[null,null,null,null,null,"проверять доступные обновления (рекомендуется)",null,null,null,null,null,null,null,null,null,null,null,null,null,null,null,null,null,null,null,null,"y"]
[]
[null,null,null,null,null,"никогда не проверять наличие обновлений (не рекомендуется)"]

{"sheet":"Лог обновления","index":2,"n_rows":23,"n_cols":3,"rows_kept":23,"cut":false,"hidden":true,"merged":[]}
["Дата/Время","Сообщение","Статус"]
["2019-01-11T13:53:49","Проверка доступных обновлений...","Информация"]
["2019-01-11T13:53:50","Доступно обновление до версии 1.0.1","Информация"]
["2019-01-11T13:53:50","Описание изменений: Версия 1.0.1\n1. Исправление логики работы листа 'Форма 3.9' для организаций, которые не осуществляют подключение к централизованной системе.","Информация"]
["2019-01-11T13:53:50","Размер файла обновления: 325632 байт","Информация"]
["2019-01-11T13:54:13","Подготовка к обновлению...","Информация"]
["2019-01-11T13:54:34","Сохранение файла резервной копии: C:\\Users\\User\\Desktop\\111.BKP.xlsb","Информация"]
["2019-01-11T13:54:35","Резервная копия создана: C:\\Users\\User\\Desktop\\111.BKP.xlsb","Информация"]
["2019-01-11T13:54:36","Создание книги для установки обновлений...","Информация"]
["2019-01-11T13:54:38","Файл обновления загружен: C:\\Users\\User\\AppData\\Local\\Temp\\Rar$DI00.231\\UPDATE.FAS.JKH.OPEN.INFO.PRICE.VO.TO.1.0.1.59.xls","Информация"]
["2019-01-11T13:54:42","Обновление завершилось удачно! Шаблон FAS.JKH.OPEN.INFO.PRICE.VO(v1.0).xlsb сохранен под именем 'FAS.JKH.OPEN.INFO.PRICE.VO(v1.0.1).xlsb'","Информация"]
["2019-01-11T14:04:24","Проверка доступных обновлений...","Информация"]
["2019-01-11T14:04:25","Нет доступных обновлений для отчёта с кодом FAS.JKH.OPEN.INFO.PRICE.VO!","Информация"]
["2019-01-11T14:18:06","Проверка доступных обновлений...","Информация"]
["2019-01-11T14:18:07","Нет доступных обновлений для отчёта с кодом FAS.JKH.OPEN.INFO.PRICE.VO!","Информация"]
["2019-01-11T14:18:20","Проверка доступных обновлений...","Информация"]
["2019-01-11T14:18:21","Нет доступных обновлений для отчёта с кодом FAS.JKH.OPEN.INFO.PRICE.VO!","Информация"]
["2019-01-11T14:20:04","Проверка доступных обновлений...","Информация"]
["2019-01-11T14:20:05","Нет доступных обновлений для отчёта с кодом FAS.JKH.OPEN.INFO.PRICE.VO!","Информация"]
["2019-01-11T14:41:44","Проверка доступных обновлений...","Информация"]
["2019-01-11T14:41:45","Нет доступных обновлений для отчёта с кодом FAS.JKH.OPEN.INFO.PRICE.VO!","Информация"]
["2019-01-14T11:17:03","Проверка доступных обновлений...","Информация"]
["2019-01-14T11:17:06","Нет доступных обновлений для отчёта с кодом FAS.JKH.OPEN.INFO.PRICE.VO!","Информация"]

{"sheet":"Титульный","index":3,"n_rows":44,"n_cols":6,"rows_kept":44,"cut":false,"hidden":false,"merged":[[4,4,4,5],[51,4,51,8]]}
[null,null,null,null,null,26472030]
[null,null,null,null,{"$f":"\"Код шаблона: \" & GetCode()","v":"Код шаблона: FAS.JKH.OPEN.INFO.PRICE.VO"}]
[null,null,null,null,{"$f":"\"Версия \" & GetVersion()","v":"Версия 1.0.1"}]
[]
[null,null,null,null,"Показатели, подлежащие раскрытию в сфере водоотведения (цены и тарифы)"]
[]
[null,null,null,null,"Субъект РФ","Республика Башкортостан"]
[]
[null,null,null,null,"Отсутствует Интернет в границах территории МО, где организация осуществляет регулируемые виды деятельности","нет"]
[]
[null,null,null,null,"Начало периода регулирования","01.12.2019"]
[null,null,null,null,"Окончание периода регулирования","31.12.2023"]
[]
[null,null,null,null,"Тип отчета","первичное раскрытие информации"]
[null,null,null,null,"Дата внесения изменений в информацию, подлежащую раскрытию","11.01.2019"]
[null,null,null,null,"Дата периода регулирования, с которой вводятся изменения в тарифы"]
[null,null,null,null,null,"Первичное установление тарифов"]
[null,null,null,null,"Наименование органа регулирования, принявшего решение об утверждении тарифов","Государственный комитет Республики Башкортостан по тарифам"]
[null,null,null,null,"Дата документа об утверждении тарифов","14.12.2018"]
[null,null,null,null,"Номер документа об утверждении тарифов","661"]
[null,null,null,null,"Источник официального опубликования решения","постановление"]
[null,null,null,null,null,"Изменение тарифов"]
[null,null,null,null,"Наименование органа регулирования, принявшего решение об изменении тарифов"]
[null,null,null,null,"Дата принятия решения об изменении тарифов"]
[null,null,null,null,"Номер принятия решения об изменении тарифов"]
[null,null,null,null,"Источник официального опубликования решения"]
[]
[null,null,null,null,"Является ли данное юридическое лицо подразделением (филиалом) другой организации","нет"]
[null,null,null,null,"Наименование организации","МУП \"Октябрьсккоммунводоканал\""]
[null,null,null,null,"Наименование филиала"]
[null,null,null,null,"ИНН","0265026710"]
[null,null,null,null,"КПП","026501001"]
[]
[null,null,null,null,"Режим налогообложения","общий"]
[]
[null,null,null,null,"Организация осуществляет подключение к централизованной системе водоотведения","да"]
[]
[null,null,null,null,"Почтовый адрес регулируемой организации","452600, Республика Башкортостан, г.Октябрьский, ул.Кувыкин, 23"]
[null,null,null,null,"Фамилия, имя, отчество руководителя","Имангулов Айдар Адгамович"]
[null,null,null,null,null,"Ответственный за заполнение формы"]
[null,null,null,null,"Фамилия, имя, отчество","Гарасюта Светлана Сагадатовна"]
[null,null,null,null,"Должность","Нач.ПЭО"]
[null,null,null,null,"Контактный телефон","(34767)5-24-77"]
[null,null,null,null,"E-mail","myp_ovk@mail.ru"]

{"sheet":"Территории","index":4,"n_rows":15,"n_cols":18,"rows_kept":15,"cut":false,"hidden":false,"merged":[[12,7,13,7],[11,2,13,2],[11,3,13,3],[11,4,13,4],[12,5,13,5],[12,6,13,6],[8,5,8,6],[8,8,8,9],[9,5,9,6],[9,8,9,9],[3,3,3,7],[5,3,5,4],[5,5,5,6],[7,3,7,4],[7,8,7,11],[7,5,7,7]]}
[null,null,null,null,null,null,null,null,null,null,"МО","ОКТМО","МР"]
[]
[]
[null,null,null,"Перечень муниципальных районов и муниципальных образований (территорий действия тарифа)"]
[]
[null,null,null,null,null,"да"]
[]
[null,null,null,"Территория действия тарифа",null,"Муниципальный район",null,null,"Муниципальное образование"]
[null,null,null,"№ п/п","Наименование","№ п/п",null,"Наименование","№ п/п",null,"Наименование","ОКТМО"]
[null,null,null,"1","2","3",null,"4","5",null,"6","7"]
[null,null,null,0,null,null,null,null,null,null,null,null,"размерженный МР",null,null,"флаг используемости территории на листе Перечень тарифов","копия территорий","МР (ОКТМО)"]
[null,"auto",null,1,"Город Октябрьский, Город Октябрьский (80735000);",null,0,null,null,"0",null,null,{"$f":"mergeValue(H12)","v":0},null,null,{"$f":"IF(ISERROR(MATCH(Q12,MODesc,0)),\"n\",\"y\")","v":"n"},"Город Октябрьский, Город Октябрьский (80735000);",{"$f":"K12&\"(\"&L12&\")\"","v":"()"}]
[null,"auto",null,null,null,null,1,"Город Октябрьский",null,"0",null,null,{"$f":"mergeValue(H13)","v":"Город Октябрьский"},null,null,null,null,{"$f":"K13&\"(\"&L13&\")\"","v":"()"}]
[null,"auto",null,null,null,null,null,null,null,1,"Город Октябрьский","80735000",{"$f":"mergeValue(H14)","v":"Город Октябрьский"},null,null,null,null,{"$f":"K14&\" (\"&L14&\")\"","v":"Город Октябрьский (80735000)"}]
[null,"man",null,null,null,null,null,null,null,null,null,null,null,null,null,null,"Добавить территорию действия тарифа"]

{"sheet":"Перечень тарифов","index":5,"n_rows":21,"n_cols":19,"rows_kept":21,"cut":false,"hidden":false,"merged":[[20,13,21,13],[20,14,21,14],[20,8,22,8],[20,9,22,9],[20,10,22,10],[20,11,21,11],[20,12,21,12],[20,3,23,3],[20,4,23,4],[20,5,23,5],[20,6,23,6],[20,7,22,7],[18,7,18,8],[17,11,17,12],[17,15,17,16],[18,11,18,12],[18,15,18,16],[16,18,17,18],[16,14,16,17],[16,10,16,13],[16,6,17,6],[6,6,6,9],[7,6,7,9],[16,9,17,9],[9,6,9,9],[16,7,17,8],[4,3,4,9],[10,4,10,5],[16,3,17,3],[16,4,17,4],[12,4,12,5],[8,6,8,9],[5,3,5,9],[7,4,7,5],[8,4,8,5],[9,4,9,5],[6,4,6,5],[16,5,17,5],[11,4,11,5]]}
[]
[]
[]
[]
[null,null,null,"Перечень тарифов и технологически не связанных между собой централизованных систем водоотведения, в отношении которых предлагаются различные тарифы в сфере водоотведения"]
[]
[]
[]
[]
[]
[]
[]
[]
[]
[]
[]
[null,null,null,"№ п/п","Вид тарифа","Вид деятельности","Наличие двухставочного тарифа","№ п/п",null,"Наименование тарифа","Дифференциация по\n МО (территориям)",null,null,null,"Дифференциация по \nцентрализованным системам водоотведения",null,null,null,"Примечание"]
[null,null,null,null,null,null,null,null,null,null,"да/нет","№ п/п",null,"Описание","да/нет","№ п/п",null,"Описание"]
[null,null,null,"1","2","3","4","5",null,"6","7","8",null,"9","10","11",null,"12","13"]
[null,null,null,0]
[1,null,null,1,"Тариф на водоотведение","Водоотведение","нет",null,1,"водоотведение","нет",null,"1",null,"нет",null,"1"]

{"sheet":"Форма 1.0.1 | Т-ВО","index":6,"n_rows":15,"n_cols":10,"rows_kept":15,"cut":false,"hidden":false,"merged":[[14,6,14,7],[1,5,1,7],[3,5,3,7],[3,8,4,8],[7,0,12,0],[11,2,12,2],[10,1,12,1]]}
["1"]
[null,null,null,null,null,"Форма 1.0.1 Основные параметры раскрываемой информации 1"]
[]
[null,null,null,null,null,"Параметры формы",null,null,"Описание параметров формы"]
[null,null,null,null,null,"№ п/п","Наименование параметра","Информация"]
[null,null,null,null,null,"1",2,3,4,4]
[null,null,null,null,null,1,"Дата заполнения/внесения изменений",{"$f":"IF(dateCh=\"\",\"\",dateCh)","v":"11.01.2019"},"Указывается календарная дата первичного заполнения или внесения изменений в форму в виде «ДД.ММ.ГГГГ»."]
[1,null,null,null,null,{"$f":"\"2.\" &mergeValue(A8)","v":"2.1"},"Наименование централизованной системы коммунальной инфраструктуры",{"$f":"IF('Перечень тарифов'!R21=\"\",\"наименование отсутствует\",\"\" & 'Перечень тарифов'!R21 & \"\")","v":"наименование отсутствует"},"Указывается наименование централизованной системы холодного водоснабжения/горячего водоснабжения/водоотведения/теплоснабжения, к которой относится размещаемая информация.\nВ случае наличия нескольких централизованных систем коммунальной инфраструктуры, информация по каждой из них указывается в отдельной строке."]
[null,null,null,null,null,{"$f":"\"3.\" &mergeValue(A9)","v":"3.1"},"Наименование регулируемого вида деятельности",{"$f":"IF('Перечень тарифов'!F21=\"\",\"наименование отсутствует\",\"\" & 'Перечень тарифов'!F21 & \"\")","v":"Водоотведение"},"Указывается наименование вида регулируемой деятельности."]
[null,null,null,null,null,{"$f":"\"4.\"&mergeValue(A10)","v":"4.1"},"Территория оказания услуги по регулируемому виду деятельности","x"]
[null,1,null,null,null,{"$f":"\"4.\"&mergeValue(A11) &\".\"&mergeValue(B11)","v":"4.1.1"},"Субъект Российской Федерации",{"$f":"IF(region_name=\"\",\"\",region_name)","v":"Республика Башкортостан"},"Указывается наименование субъекта Российской Федерации"]
[null,null,1,null,null,{"$f":"\"4.\"&mergeValue(A12) &\".\"&mergeValue(B12)&\".\"&mergeValue(C12)","v":"4.1.1.1"},"муниципальный район",{"$f":"IF(Территории!H13=\"\",\"\",\"\" & Территории!H13 & \"\")","v":"Город Октябрьский"},"Указывается наименование муниципального района, на территории которого организация оказывает услуги по регулируемому виду деятельности."]
[null,null,null,1,null,{"$f":"\"4.\"&mergeValue(A13) &\".\"&mergeValue(B13)&\".\"&mergeValue(C13)&\".\"&mergeValue(D13)","v":"4.1.1.1.1"},"муниципальное образование",{"$f":"IF(Территории!R14=\"\",\"\",\"\" & Территории!R14 & \"\")","v":"Город Октябрьский (80735000)"},"Указывается наименование и код муниципального района, муниципального образования в соответствии с Общероссийским классификатором территорий муниципальных образований (далее - ОКТМО), входящего в муниципальный район, на территории которого организация оказывает услуги по регулируемому виду деятельности.\nВ случае оказания услуг по регулируемому виду деятельности на территории нескольких муниципальных районов (муниципальных образований) данные по каждому их них указываются в отдельной строке."]
[]
[null,null,null,null,null,null,"  1 Информация размещается при раскрытии информации по каждой из форм."]

{"sheet":"Форма 3.2 | Т-ВО","index":7,"n_rows":33,"n_cols":61,"rows_kept":33,"cut":false,"hidden":false,"merged":[[32,12,32,56],[22,18,23,18],[22,20,23,20],[22,13,23,13],[22,19,23,19],[25,9,28,9],[25,14,25,56],[26,13,27,13],[26,17,27,17],[26,18,27,18],[26,19,27,19],[26,20,27,20],[22,31,23,31],[17,0,30,0],[18,1,30,1],[19,2,30,2],[20,3,29,3],[20,8,29,8],[21,4,24,4],[25,4,28,4],[21,9,24,9],[14,15,14,16],[19,14,19,56],[13,11,15,11],[13,12,15,12],[13,28,13,33],[13,34,15,34],[14,29,14,30],[14,31,14,33],[7,14,7,56],[8,14,8,56],[4,11,4,20],[10,11,10,12],[9,14,9,56],[6,14,6,56],[11,14,11,20],[15,18,15,19],[13,20,15,20],[11,28,11,34],[15,32,15,33],[11,35,11,41],[13,35,13,40],[13,41,15,41],[14,36,14,37],[14,38,14,40],[15,39,15,40],[26,57,28,57],[11,21,11,27],[13,21,13,26],[13,27,15,27],[14,22,14,23],[14,24,14,26],[15,25,15,26],[16,25,16,26],[22,24,23,24],[22,25,23,25],[22,26,23,26],[22,27,23,27],[26,24,27,24],[26,25,27,25],[26,26,27,26],[26,27,27,27],[22,57,24,57],[13,56,15,56],[12,11,12,56],[13,13,15,13],[22,17,23,17],[14,17,14,19],[13,14,13,19],[12,57,15,57],[26,38,27,38],[26,39,27,39],[26,40,27,40],[26,41,27,41],[22,32,23,32],[22,33,23,33],[22,34,23,34],[26,31,27,31],[26,32,27,32],[26,33,27,33],[26,34,27,34],[11,42,11,48],[13,42,13,47],[13,48,15,48],[14,43,14,44],[14,45,14,47],[15,46,15,47],[22,38,23,38],[22,39,23,39],[22,40,23,40],[22,41,23,41],[21,14,21,56],[20,14,20,56],[18,14,18,56],[17,14,17,56],[16,18,16,19],[16,32,16,33],[16,39,16,40],[26,53,27,53],[26,54,27,54],[26,55,27,55],[26,45,27,45],[26,46,27,46],[26,47,27,47],[26,48,27,48],[11,49,11,55],[13,49,13,54],[13,55,15,55],[14,50,14,51],[14,52,14,54],[15,53,15,54],[16,53,16,54],[22,52,23,52],[22,53,23,53],[22,54,23,54],[22,55,23,55],[26,52,27,52],[16,46,16,47],[22,45,23,45],[22,46,23,46],[22,47,23,47],[22,48,23,48]]}
[]
[]
[]
[]
[null,null,null,null,null,null,null,null,null,null,null,"Форма 3.2 Информация о величинах тарифов на водоотведение, транспортировку воды1"]
[]
[null,null,null,null,null,null,null,null,null,null,null,null,{"$f":"\"Наименование органа регулирования, принявшего решение об \"&IF(NameOrPr_ch=\"\",\"утверждении\",\"изменении\") & \" тарифов\"","v":"Наименование органа регулирования, принявшего решение об утверждении тарифов"},null,{"$f":"IF(NameOrPr_ch=\"\",IF(NameOrPr=\"\",\"\",NameOrPr),NameOrPr_ch)","v":"Государственный комитет Республики Башкортостан по тарифам"}]
[null,null,null,null,null,null,null,null,null,null,null,null,{"$f":"IF(datePr_ch=\"\",\"Дата документа об утверждении тарифов\",\"Дата принятия решения об изменении тарифов\")","v":"Дата документа об утверждении тарифов"},null,{"$f":"IF(datePr_ch=\"\",IF(datePr=\"\",\"\",datePr),datePr_ch)","v":"14.12.2018"}]
[null,null,null,null,null,null,null,null,null,null,null,null,{"$f":"IF(numberPr_ch=\"\",\"Номер документа об утверждении тарифов\",\"Номер принятия решения об изменении тарифов\")","v":"Номер документа об утверждении тарифов"},null,{"$f":"IF(numberPr_ch=\"\",IF(numberPr=\"\",\"\",numberPr),numberPr_ch)","v":"661"}]
[null,null,null,null,null,null,null,null,null,null,null,null,"Источник официального опубликования решения",null,{"$f":"IF(IstPub_ch=\"\",IF(IstPub=\"\",\"\",IstPub),IstPub_ch)","v":"постановление"}]
[null,null,null,null,null,null,null,null,null,null,null,null,null,null,null,null,null,null,null,null,"dp",null,null,null,null,null,null,"dp",null,null,null,null,null,null,"dp",null,null,null,null,null,null,"dp",null,null,null,null,null,null,"dp",null,null,null,null,null,null,"dp"]
[null,null,null,null,null,null,null,null,null,null,null,null,null,null,null,null,null,null,null,null,null,"О",null,null,null,null,null,null,"О",null,null,null,null,null,null,"О",null,null,null,null,null,null,"О",null,null,null,null,null,null,"О"]
[null,null,null,null,null,null,null,null,null,null,null,"Параметры формы",null,null,null,null,null,null,null,null,null,null,null,null,null,null,null,null,null,null,null,null,null,null,null,null,null,null,null,null,null,null,null,null,null,null,null,null,null,null,null,null,null,null,null,null,null,"Описание параметров формы"]
[null,null,null,null,null,null,null,null,null,null,null,"№ п/п","Параметры дифференциации",null,"Период действия тарифа",null,null,null,null,null,"Наличие других периодов действия тарифа","Период действия тарифа",null,null,null,null,null,"Наличие других периодов действия тарифа","Период действия тарифа",null,null,null,null,null,"Наличие других периодов действия тарифа","Период действия тарифа",null,null,null,null,null,"Наличие других периодов действия тарифа","Период действия тарифа",null,null,null,null,null,"Наличие других периодов действия тарифа","Период действия тарифа",null,null,null,null,null,"Наличие других периодов действия тарифа","Добавить период"]
[null,null,null,null,null,null,null,null,null,null,null,null,null,null,"Одноставочный тариф","Двухставочный тариф",null,"Период действия",null,null,null,"Одноставочный тариф","Двухставочный тариф",null,"Период действия",null,null,null,"Одноставочный тариф","Двухставочный тариф",null,"Период действия",null,null,null,"Одноставочный тариф","Двухставочный тариф",null,"Период действия",null,null,null,"Одноставочный тариф","Двухставочный тариф",null,"Период действия",null,null,null,"Одноставочный тариф","Двухставочный тариф",null,"Период действия"]
[null,null,null,null,null,null,null,null,null,null,null,null,null,null,"Одноставочный тариф, руб./куб. м","ставка платы за объем принятых сточных вод, руб./куб. м","ставка платы за содержание мощности, руб./куб. м в час","дата начала","дата окончания",null,null,"Одноставочный тариф, руб./куб. м","ставка платы за объем принятых сточных вод, руб./куб. м","ставка платы за содержание мощности, руб./куб. м в час","дата начала","дата окончания",null,null,"Одноставочный тариф, руб./куб. м","ставка платы за объем принятых сточных вод, руб./куб. м","ставка платы за содержание мощности, руб./куб. м в час","дата начала","дата окончания",null,null,"Одноставочный тариф, руб./куб. м","ставка платы за объем принятых сточных вод, руб./куб. м","ставка платы за содержание мощности, руб./куб. м в час","дата начала","дата окончания",null,null,"Одноставочный тариф, руб./куб. м","ставка платы за объем принятых сточных вод, руб./куб. м","ставка платы за содержание мощности, руб./куб. м в час","дата начала","дата окончания",null,null,"Одноставочный тариф, руб./куб. м","ставка платы за объем принятых сточных вод, руб./куб. м","ставка платы за содержание мощности, руб./куб. м в час","дата начала","дата окончания"]
[null,null,null,null,null,null,null,null,null,null,1,"1","2",{"$f":"OFFSET(N17,0,-1)","v":"2"},{"$f":"OFFSET(O17,0,-1)+1","v":3},{"$f":"OFFSET(P17,0,-1)+1","v":4},{"$f":"OFFSET(Q17,0,-1)+1","v":5},{"$f":"OFFSET(R17,0,-1)+1","v":6},{"$f":"OFFSET(S17,0,-1)+1","v":7},null,{"$f":"OFFSET(U17,0,-2)+1","v":8},{"$f":"OFFSET(V17,0,-1)+1","v":9},{"$f":"OFFSET(W17,0,-1)+1","v":10},{"$f":"OFFSET(X17,0,-1)+1","v":11},{"$f":"OFFSET(Y17,0,-1)+1","v":12},{"$f":"OFFSET(Z17,0,-1)+1","v":13},null,{"$f":"OFFSET(AB17,0,-2)+1","v":14},{"$f":"OFFSET(AC17,0,-1)+1","v":15},{"$f":"OFFSET(AD17,0,-1)+1","v":16},{"$f":"OFFSET(AE17,0,-1)+1","v":17},{"$f":"OFFSET(AF17,0,-1)+1","v":18},{"$f":"OFFSET(AG17,0,-1)+1","v":19},null,{"$f":"OFFSET(AI17,0,-2)+1","v":20},{"$f":"OFFSET(AJ17,0,-1)+1","v":21},{"$f":"OFFSET(AK17,0,-1)+1","v":22},{"$f":"OFFSET(AL17,0,-1)+1","v":23},{"$f":"OFFSET(AM17,0,-1)+1","v":24},{"$f":"OFFSET(AN17,0,-1)+1","v":25},null,{"$f":"OFFSET(AP17,0,-2)+1","v":26},{"$f":"OFFSET(AQ17,0,-1)+1","v":27},{"$f":"OFFSET(AR17,0,-1)+1","v":28},{"$f":"OFFSET(AS17,0,-1)+1","v":29},{"$f":"OFFSET(AT17,0,-1)+1","v":30},{"$f":"OFFSET(AU17,0,-1)+1","v":31},null,{"$f":"OFFSET(AW17,0,-2)+1","v":32},{"$f":"OFFSET(AX17,0,-1)+1","v":33},{"$f":"OFFSET(AY17,0,-1)+1","v":34},{"$f":"OFFSET(AZ17,0,-1)+1","v":35},{"$f":"OFFSET(BA17,0,-1)+1","v":36},{"$f":"OFFSET(BB17,0,-1)+1","v":37},null,{"$f":"OFFSET(BD17,0,-2)+1","v":38},{"$f":"OFFSET(BE17,0,-1)","v":38},{"$f":"OFFSET(BF17,0,-1)+1","v":39}]
[1,null,null,null,null,null,null,null,null,null,null,{"$f":"mergeValue(A18)","v":1},"Наименование тарифа",null,{"$f":"IF('Перечень тарифов'!J21=\"\",\"\",\"\" & 'Перечень тарифов'!J21 & \"\")","v":"водоотведение"},null,null,null,null,null,null,null,null,null,null,null,null,null,null,null,null,null,null,null,null,null,null,null,null,null,null,null,null,null,null,null,null,null,null,null,null,null,null,null,null,null,null,"Указывается наименование тарифа в случае утверждения нескольких тарифов.\nВ случае наличия нескольких тарифов информация по ним указывается в отдельных строках."]
[null,1,null,null,null,null,null,null,null,null,null,{"$f":"mergeValue(A19) &\".\"& mergeValue(B19)","v":"1.1"}]
[null,null,1,null,null,null,null,null,null,null,null,{"$f":"mergeValue(A20) &\".\"& mergeValue(B20)&\".\"& mergeValue(C20)","v":"1.1.1"}]
[null,null,null,1,null,null,null,null,null,null,null,{"$f":"mergeValue(A21) &\".\"& mergeValue(B21)&\".\"& mergeValue(C21)&\".\"& mergeValue(D21)","v":"1.1.1.1"},"Наименование признака дифференциации",null,"дифференциация отсутствует",null,null,null,null,null,null,null,null,null,null,null,null,null,null,null,null,null,null,null,null,null,null,null,null,null,null,null,null,null,null,null,null,null,null,null,null,null,null,null,null,null,null,"Указывается наименование дополнительного признака дифференциации (при наличии).\nДифференциация тарифа осуществляется в соответствии с законодательством в сфере водоснабжении и водоотведении.\nВ случае дифференциации тарифов по дополнительным признакам информация по ним указывается в отдельных строках."]
[null,null,null,null,1,null,null,null,null,null,null,{"$f":"mergeValue(A22) &\".\"& mergeValue(B22)&\".\"& mergeValue(C22)&\".\"& mergeValue(D22)&\".\"& mergeValue(E22)","v":"1.1.1.1.1"},"Группа потребителей",null,"население",null,null,null,null,null,null,null,null,null,null,null,null,null,null,null,null,null,null,null,null,null,null,null,null,null,null,null,null,null,null,null,null,null,null,null,null,null,null,null,null,null,null,"Указывается группа потребителей при наличии дифференциации тарифа по группам потребителей.\nЗначение выбирается из перечня: Организации-перепродавцы; Бюджетные организации; Население; Прочие; Без дифференциации.\nВ случае дифференциации тарифов группам потребителей информация по ним указывается в отдельных строках.",null,{"$f":"strCheckUnique(BI22:BI25)","v":""}]
[null,null,null,null,null,1,null,null,null,null,null,{"$f":"mergeValue(A23) &\".\"& mergeValue(B23)&\".\"& mergeValue(C23)&\".\"& mergeValue(D23)&\".\"& mergeValue(E23)&\".\"& mergeValue(F23)","v":"1.1.1.1.1.1"},null,null,15.49,null,null,"01.01.2019","да","30.06.2019","да",15.8,null,null,"01.07.2019","да","30.06.2020","да",16.02,null,null,"01.07.2020","да","30.06.2021","да",16.36,null,null,"01.07.2021","да","30.06.2022","да",16.96,null,null,"01.07.2022","да","30.06.2023","да",17.329999999999998,null,null,"01.07.2023","да","31.12.2023","нет",null,"В колонке «Параметр дифференциации тарифов» указывается значение дополнительного признака дифференциации.\nПри утверждении двухставочного тарифа колонка «Одноставочный тариф» не заполняется.\nПри утверждении одноставочного тарифа колонки в блоке «Двухставочный тариф» не заполняются.\nДаты начала и окончания действия тарифов указываются в виде «ДД.ММ.ГГГГ».\nВ случае отсутствия даты окончания действия тарифа в колонке «Дата окончания» указывается «Нет».\nВ случае наличия нескольких значений признака дифференциации тарифов информация по ним указывается в отдельных строках.\nВ случае дифференциации тарифов по периодам действия тарифа информация по ним указывается в отдельных колонках.",{"$f":"strCheckDate(O24:BE24)","v":""},null,{"$f":"IF(M23=\"\",\"\",M23 )","v":""}]
[null,null,null,null,null,null,null,null,null,null,null,null,null,null,null,null,{"$f":"R23 & \"-\" & T23","v":"01.01.2019-30.06.2019"},null,null,null,null,null,null,{"$f":"Y23 & \"-\" & AA23","v":"01.07.2019-30.06.2020"},null,null,null,null,null,null,{"$f":"AF23 & \"-\" & AH23","v":"01.07.2020-30.06.2021"},null,null,null,null,null,null,{"$f":"AM23 & \"-\" & AO23","v":"01.07.2021-30.06.2022"},null,null,null,null,null,null,{"$f":"AT23 & \"-\" & AV23","v":"01.07.2022-30.06.2023"},null,null,null,null,null,null,{"$f":"BA23 & \"-\" & BC23","v":"01.07.2023-31.12.2023"}]
[null,null,null,null,null,null,null,null,null,null,null,null,"Добавить значение признака дифференциации"]
[null,null,null,null,2,null,null,null,null,"О",null,{"$f":"mergeValue(A26) &\".\"& mergeValue(B26)&\".\"& mergeValue(C26)&\".\"& mergeValue(D26)&\".\"& mergeValue(E26)","v":"1.1.1.1.2"},"Группа потребителей",null,"прочие",null,null,null,null,null,null,null,null,null,null,null,null,null,null,null,null,null,null,null,null,null,null,null,null,null,null,null,null,null,null,null,null,null,null,null,null,null,null,null,null,null,null,"Указывается группа потребителей при наличии дифференциации тарифа по группам потребителей.\nЗначение выбирается из перечня: Организации-перепродавцы; Бюджетные организации; Население; Прочие; Без дифференциации.\nВ случае дифференциации тарифов группам потребителей информация по ним указывается в отдельных строках.",null,{"$f":"strCheckUnique(BI26:BI29)","v":""}]
[null,null,null,null,null,1,null,null,null,null,null,{"$f":"mergeValue(A27) &\".\"& mergeValue(B27)&\".\"& mergeValue(C27)&\".\"& mergeValue(D27)&\".\"& mergeValue(E27)&\".\"& mergeValue(F27)","v":"1.1.1.1.2.1"},null,null,12.91,null,null,"01.01.2019","да","30.06.2019","да",13.17,null,null,"01.07.2019","да","30.06.2020","да",13.35,null,null,"01.07.2020","да","30.06.2021","да",13.63,null,null,"01.07.2021","да","30.06.2022","да",14.13,null,null,"01.07.2022","да","30.06.2023","да",14.44,null,null,"01.07.2023","да","31.12.2023","нет",null,"В колонке «Параметр дифференциации тарифов» указывается значение дополнительного признака дифференциации.\nПри утверждении двухставочного тарифа колонка «Одноставочный тариф» не заполняется.\nПри утверждении одноставочного тарифа колонки в блоке «Двухставочный тариф» не заполняются.\nДаты начала и окончания действия тарифов указываются в виде «ДД.ММ.ГГГГ».\nВ случае отсутствия даты окончания действия тарифа в колонке «Дата окончания» указывается «Нет».\nВ случае наличия нескольких значений признака дифференциации тарифов информация по ним указывается в отдельных строках.\nВ случае дифференциации тарифов по периодам действия тарифа информация по ним указывается в отдельных колонках.",{"$f":"strCheckDate(O28:BE28)","v":""},null,{"$f":"IF(M27=\"\",\"\",M27 )","v":""}]
[null,null,null,null,null,null,null,null,null,null,null,null,null,null,null,null,{"$f":"R27 & \"-\" & T27","v":"01.01.2019-30.06.2019"},null,null,null,null,null,null,{"$f":"Y27 & \"-\" & AA27","v":"01.07.2019-30.06.2020"},null,null,null,null,null,null,{"$f":"AF27 & \"-\" & AH27","v":"01.07.2020-30.06.2021"},null,null,null,null,null,null,{"$f":"AM27 & \"-\" & AO27","v":"01.07.2021-30.06.2022"},null,null,null,null,null,null,{"$f":"AT27 & \"-\" & AV27","v":"01.07.2022-30.06.2023"},null,null,null,null,null,null,{"$f":"BA27 & \"-\" & BC27","v":"01.07.2023-31.12.2023"}]
[null,null,null,null,null,null,null,null,null,null,null,null,"Добавить значение признака дифференциации"]
[null,null,null,null,null,null,null,null,null,null,null,null,"Добавить группу потребителей"]
[null,null,null,null,null,null,null,null,null,null,null,null,"Добавить наименование признака дифференциации"]
[]
[null,null,null,null,null,null,null,null,null,null,null,null,"1 Для каждого вида тарифа в сфере водоотведения форма заполняется отдельно. При размещении информации по данной форме дополнительно указываются: наименование органа регулирования тарифов, принявшего решение об утверждении(изменении) тарифа, дата и номер документа об утверждении(изменении) тарифа, источник официального опубликования решения."]

{"sheet":"Форма 1.0.1 | Т-транс","index":8,"n_rows":19,"n_cols":10,"rows_kept":19,"cut":false,"hidden":true,"merged":[[18,6,18,7],[1,5,1,7],[3,5,3,7],[3,8,4,8],[7,0,15,0],[11,2,13,2],[12,8,13,8],[10,1,14,1]]}
["2"]
[null,null,null,null,null,"Форма 1.0.1 Основные параметры раскрываемой информации 1"]
[]
[null,null,null,null,null,"Параметры формы",null,null,"Описание параметров формы"]
[null,null,null,null,null,"№ п/п","Наименование параметра","Информация"]
[null,null,null,null,null,"1",2,3,4,4]
[null,null,null,null,null,1,"Дата заполнения/внесения изменений",{"$f":"IF(dateCh=\"\",\"\",dateCh)","v":"11.01.2019"},"Указывается календарная дата первичного заполнения или внесения изменений в форму в виде «ДД.ММ.ГГГГ»."]
[1,null,null,null,null,{"$f":"\"2.\" &mergeValue(A8)","v":"2.1"},"Наименование централизованной системы коммунальной инфраструктуры",null,"Указывается наименование централизованной системы холодного водоснабжения/горячего водоснабжения/водоотведения/теплоснабжения, к которой относится размещаемая информация.\nВ случае наличия нескольких централизованных систем коммунальной инфраструктуры, информация по каждой из них указывается в отдельной строке."]
[null,null,null,null,null,{"$f":"\"3.\" &mergeValue(A9)","v":"3.1"},"Наименование регулируемого вида деятельности",null,"Указывается наименование вида регулируемой деятельности."]
[null,null,null,null,null,{"$f":"\"4.\"&mergeValue(A10)","v":"4.1"},"Территория оказания услуги по регулируемому виду деятельности","x"]
[null,1,null,null,null,{"$f":"\"4.\"&mergeValue(A11) &\".\"&mergeValue(B11)","v":"4.1.1"},"Субъект Российской Федерации",{"$f":"IF(region_name=\"\",\"\",region_name)","v":"Республика Башкортостан"},"Указывается наименование субъекта Российской Федерации"]
[null,null,1,null,null,{"$f":"\"4.\"&mergeValue(A12) &\".\"&mergeValue(B12)&\".\"&mergeValue(C12)","v":"4.1.1.1"},"муниципальный район",null,"Указывается наименование муниципального района, на территории которого организация оказывает услуги по регулируемому виду деятельности."]
[null,null,null,1,null,{"$f":"\"4.\"&mergeValue(A13) &\".\"&mergeValue(B13)&\".\"&mergeValue(C13)&\".\"&mergeValue(D13)","v":"4.1.1.1.1"},"муниципальное образование",null,"Указывается наименование и код муниципального района, муниципального образования в соответствии с Общероссийским классификатором территорий муниципальных образований (далее - ОКТМО), входящего в муниципальный район, на территории которого организация оказывает услуги по регулируемому виду деятельности.\nВ случае оказания услуг по регулируемому виду деятельности на территории нескольких муниципальных районов (муниципальных образований) данные по каждому их них указываются в отдельной строке."]
[null,null,null,null,null,null,"Добавить МО"]
[null,null,null,null,null,null,"Добавить МР"]
[null,null,null,null,null,null,"Добавить территорию"]
[null,null,null,null,null,null,"Добавить ЦС"]
[]
[null,null,null,null,null,null,"  1 Информация размещается при раскрытии информации по каждой из форм."]

{"sheet":"Форма 3.2 | Т-транс","index":9,"n_rows":32,"n_cols":26,"rows_kept":32,"cut":false,"hidden":true,"merged":[[13,11,15,11],[13,12,15,12],[18,14,18,21],[17,0,28,0],[18,1,27,1],[19,2,26,2],[20,3,25,3],[20,8,25,8],[22,13,23,13],[21,4,24,4],[17,14,17,21],[13,14,13,19],[14,17,14,19],[13,13,15,13],[13,20,15,20],[31,12,31,21],[21,9,24,9],[20,14,20,21],[19,14,19,21],[22,19,23,19],[21,14,21,21],[22,18,23,18],[22,22,24,22],[4,11,4,20],[14,15,14,16],[15,18,15,19],[22,17,23,17],[22,20,23,20],[10,11,10,12],[6,14,6,21],[13,21,15,21],[12,22,15,22],[7,14,7,21],[8,14,8,21],[9,14,9,21],[16,18,16,19],[12,11,12,21],[11,14,11,20]]}
[]
[]
[]
[]
[null,null,null,null,null,null,null,null,null,null,null,"Форма 3.2 Информация о величинах тарифов на водоотведение, транспортировку воды1"]
[]
[null,null,null,null,null,null,null,null,null,null,null,null,{"$f":"\"Наименование органа регулирования, принявшего решение об \"&IF(NameOrPr_ch=\"\",\"утверждении\",\"изменении\") & \" тарифов\"","v":"Наименование органа регулирования, принявшего решение об утверждении тарифов"},null,{"$f":"IF(NameOrPr_ch=\"\",IF(NameOrPr=\"\",\"\",NameOrPr),NameOrPr_ch)","v":"Государственный комитет Республики Башкортостан по тарифам"}]
[null,null,null,null,null,null,null,null,null,null,null,null,{"$f":"IF(datePr_ch=\"\",\"Дата документа об утверждении тарифов\",\"Дата принятия решения об изменении тарифов\")","v":"Дата документа об утверждении тарифов"},null,{"$f":"IF(datePr_ch=\"\",IF(datePr=\"\",\"\",datePr),datePr_ch)","v":"14.12.2018"}]
[null,null,null,null,null,null,null,null,null,null,null,null,{"$f":"IF(numberPr_ch=\"\",\"Номер документа об утверждении тарифов\",\"Номер принятия решения об изменении тарифов\")","v":"Номер документа об утверждении тарифов"},null,{"$f":"IF(numberPr_ch=\"\",IF(numberPr=\"\",\"\",numberPr),numberPr_ch)","v":"661"}]
[null,null,null,null,null,null,null,null,null,null,null,null,"Источник официального опубликования решения",null,{"$f":"IF(IstPub_ch=\"\",IF(IstPub=\"\",\"\",IstPub),IstPub_ch)","v":"постановление"}]
[null,null,null,null,null,null,null,null,null,null,null,null,null,null,null,null,null,null,null,null,"dp"]
[]
[null,null,null,null,null,null,null,null,null,null,null,"Параметры формы",null,null,null,null,null,null,null,null,null,null,"Описание параметров формы"]
[null,null,null,null,null,null,null,null,null,null,null,"№ п/п","Параметры дифференциации",null,"Период действия тарифа",null,null,null,null,null,"Наличие других периодов действия тарифа","Добавить период"]
[null,null,null,null,null,null,null,null,null,null,null,null,null,null,"Одноставочный тариф","Двухставочный тариф",null,"Период действия"]
[null,null,null,null,null,null,null,null,null,null,null,null,null,null,"Одноставочный тариф, руб./куб. м","ставка платы за объем принятых сточных вод, руб./куб. м","ставка платы за содержание мощности, руб./куб. м в час","дата начала","дата окончания"]
[null,null,null,null,null,null,null,null,null,null,1,"1","2",{"$f":"OFFSET(N17,0,-1)","v":"2"},{"$f":"OFFSET(O17,0,-1)+1","v":3},{"$f":"OFFSET(P17,0,-1)+1","v":4},{"$f":"OFFSET(Q17,0,-1)+1","v":5},{"$f":"OFFSET(R17,0,-1)+1","v":6},{"$f":"OFFSET(S17,0,-1)+1","v":7},null,{"$f":"OFFSET(U17,0,-2)+1","v":8},{"$f":"OFFSET(V17,0,-1)","v":8},{"$f":"OFFSET(W17,0,-1)+1","v":9}]
[1,null,null,null,null,null,null,null,null,null,null,{"$f":"mergeValue(A18)","v":1},"Наименование тарифа",null,null,null,null,null,null,null,null,null,"Указывается наименование тарифа в случае утверждения нескольких тарифов.\nВ случае наличия нескольких тарифов информация по ним указывается в отдельных строках."]
[null,1,null,null,null,null,null,null,null,null,null,{"$f":"mergeValue(A19) &\".\"& mergeValue(B19)","v":"1.1"},"Территория действия тарифа",null,null,null,null,null,null,null,null,null,"Указывается наименование территории действия тарифа при наличии дифференциации тарифа по территориальному признаку.\nВ случае дифференциации тарифов по территориальному признаку информация по ним указывается в отдельных строках."]
[null,null,1,null,null,null,null,null,null,null,null,{"$f":"mergeValue(A20) &\".\"& mergeValue(B20)&\".\"& mergeValue(C20)","v":"1.1.1"},"Наименование централизованной системы водоотведения",null,null,null,null,null,null,null,null,null,"Указывается наименование централизованной системы водоотведения при наличии дифференциации тарифа по централизованным системам водоотведения.\nВ случае дифференциации тарифов по централизованным системам водоотведения информация по ним указывается в отдельных строках."]
[null,null,null,1,null,null,null,null,null,null,null,{"$f":"mergeValue(A21) &\".\"& mergeValue(B21)&\".\"& mergeValue(C21)&\".\"& mergeValue(D21)","v":"1.1.1.1"},"Наименование признака дифференциации",null,null,null,null,null,null,null,null,null,"Указывается наименование дополнительного признака дифференциации (при наличии).\nДифференциация тарифа осуществляется в соответствии с законодательством в сфере водоснабжении и водоотведении.\nВ случае дифференциации тарифов по дополнительным признакам информация по ним указывается в отдельных строках."]
[null,null,null,null,1,null,null,null,null,null,null,{"$f":"mergeValue(A22) &\".\"& mergeValue(B22)&\".\"& mergeValue(C22)&\".\"& mergeValue(D22)&\".\"& mergeValue(E22)","v":"1.1.1.1.1"},"Группа потребителей",null,null,null,null,null,null,null,null,null,"Указывается группа потребителей при наличии дифференциации тарифа по группам потребителей.\nЗначение выбирается из перечня: Организации-перепродавцы; Бюджетные организации; Население; Прочие; Без дифференциации.\nВ случае дифференциации тарифов группам потребителей информация по ним указывается в отдельных строках.",null,{"$f":"strCheckUnique(Z22:Z25)","v":""}]
[null,null,null,null,null,1,null,null,null,null,null,{"$f":"mergeValue(A23) &\".\"& mergeValue(B23)&\".\"& mergeValue(C23)&\".\"& mergeValue(D23)&\".\"& mergeValue(E23)&\".\"& mergeValue(F23)","v":"1.1.1.1.1.1"},null,null,null,null,null,null,"да",null,"нет",null,"В колонке «Параметр дифференциации тарифов» указывается значение дополнительного признака дифференциации.\nПри утверждении двухставочного тарифа колонка «Одноставочный тариф» не заполняется.\nПри утверждении одноставочного тарифа колонки в блоке «Двухставочный тариф» не заполняются.\nДаты начала и окончания действия тарифов указываются в виде «ДД.ММ.ГГГГ».\nВ случае отсутствия даты окончания действия тарифа в колонке «Дата окончания» указывается «Нет».\nВ случае наличия нескольких значений признака дифференциации тарифов информация по ним указывается в отдельных строках.\nВ случае дифференциации тарифов по периодам действия тарифа информация по ним указывается в отдельных колонках.",{"$f":"strCheckDate(O24:V24)","v":""},null,{"$f":"IF(M23=\"\",\"\",M23 )","v":""}]
[null,null,null,null,null,null,null,null,null,null,null,null,null,null,null,null,{"$f":"R23 & \"-\" & T23","v":"-"}]
[null,null,null,null,null,null,null,null,null,null,null,null,"Добавить значение признака дифференциации"]
[null,null,null,null,null,null,null,null,null,null,null,null,"Добавить группу потребителей"]
[null,null,null,null,null,null,null,null,null,null,null,null,"Добавить наименование признака дифференциации"]
[null,null,null,null,null,null,null,null,null,null,null,null,"Добавить наименование системы водоотведения"]
[null,null,null,null,null,null,null,null,null,null,null,null,"Добавить территорию действия тарифа"]
[null,null,null,null,null,null,null,null,null,null,null,null,"Добавить наименование тарифа"]
[]
[null,null,null,null,null,null,null,null,null,null,null,null,"1 Для каждого вида тарифа в сфере водоотведения форма заполняется отдельно. При размещении информации по данной форме дополнительно указываются: наименование органа регулирования тарифов, принявшего решение об утверждении(изменении) тарифа, дата и номер документа об утверждении(изменении) тарифа, источник официального опубликования решения."]

{"sheet":"Форма 1.0.1 | Т-подкл(инд)","index":10,"n_rows":19,"n_cols":10,"rows_kept":19,"cut":false,"hidden":true,"merged":[[18,6,18,7],[1,5,1,7],[3,5,3,7],[3,8,4,8],[7,0,15,0],[11,2,13,2],[12,8,13,8],[10,1,14,1]]}
["9"]
[null,null,null,null,null,"Форма 1.0.1 Основные параметры раскрываемой информации 1"]
[]
[null,null,null,null,null,"Параметры формы",null,null,"Описание параметров формы"]
[null,null,null,null,null,"№ п/п","Наименование параметра","Информация"]
[null,null,null,null,null,"1",2,3,4,4]
[null,null,null,null,null,1,"Дата заполнения/внесения изменений",{"$f":"IF(dateCh=\"\",\"\",dateCh)","v":"11.01.2019"},"Указывается календарная дата первичного заполнения или внесения изменений в форму в виде «ДД.ММ.ГГГГ»."]
[1,null,null,null,null,{"$f":"\"2.\" &mergeValue(A8)","v":"2.1"},"Наименование централизованной системы коммунальной инфраструктуры",null,"Указывается наименование централизованной системы холодного водоснабжения/горячего водоснабжения/водоотведения/теплоснабжения, к которой относится размещаемая информация.\nВ случае наличия нескольких централизованных систем коммунальной инфраструктуры, информация по каждой из них указывается в отдельной строке."]
[null,null,null,null,null,{"$f":"\"3.\" &mergeValue(A9)","v":"3.1"},"Наименование регулируемого вида деятельности",null,"Указывается наименование вида регулируемой деятельности."]
[null,null,null,null,null,{"$f":"\"4.\"&mergeValue(A10)","v":"4.1"},"Территория оказания услуги по регулируемому виду деятельности","x"]
[null,1,null,null,null,{"$f":"\"4.\"&mergeValue(A11) &\".\"&mergeValue(B11)","v":"4.1.1"},"Субъект Российской Федерации",{"$f":"IF(region_name=\"\",\"\",region_name)","v":"Республика Башкортостан"},"Указывается наименование субъекта Российской Федерации"]
[null,null,1,null,null,{"$f":"\"4.\"&mergeValue(A12) &\".\"&mergeValue(B12)&\".\"&mergeValue(C12)","v":"4.1.1.1"},"муниципальный район",null,"Указывается наименование муниципального района, на территории которого организация оказывает услуги по регулируемому виду деятельности."]
[null,null,null,1,null,{"$f":"\"4.\"&mergeValue(A13) &\".\"&mergeValue(B13)&\".\"&mergeValue(C13)&\".\"&mergeValue(D13)","v":"4.1.1.1.1"},"муниципальное образование",null,"Указывается наименование и код муниципального района, муниципального образования в соответствии с Общероссийским классификатором территорий муниципальных образований (далее - ОКТМО), входящего в муниципальный район, на территории которого организация оказывает услуги по регулируемому виду деятельности.\nВ случае оказания услуг по регулируемому виду деятельности на территории нескольких муниципальных районов (муниципальных образований) данные по каждому их них указываются в отдельной строке."]
[null,null,null,null,null,null,"Добавить МО"]
[null,null,null,null,null,null,"Добавить МР"]
[null,null,null,null,null,null,"Добавить территорию"]
[null,null,null,null,null,null,"Добавить ЦС"]
[]
[null,null,null,null,null,null,"  1 Информация размещается при раскрытии информации по каждой из форм."]

{"sheet":"Форма 3.4 | Т-подкл(инд)","index":11,"n_rows":32,"n_cols":41,"rows_kept":32,"cut":false,"hidden":true,"merged":[[4,11,4,20],[6,13,6,20],[7,13,7,20],[8,13,8,20],[9,13,9,20],[21,38,26,38],[13,11,13,37],[17,13,17,16],[17,17,17,20],[17,21,17,24],[14,37,16,37],[13,38,16,38],[21,22,22,22],[21,23,22,23],[21,24,22,24],[21,15,24,15],[21,16,24,16],[21,17,24,17],[21,18,23,18],[21,19,23,19],[21,20,23,20],[20,2,26,2],[21,3,25,3],[18,0,28,0],[19,1,27,1],[21,14,24,14],[20,13,20,37],[19,13,19,37],[18,13,18,37],[21,8,25,8],[21,25,22,25],[21,9,25,9],[21,11,25,11],[21,12,25,12],[21,13,25,13],[21,10,25,10],[21,21,23,21],[10,11,10,12],[10,18,10,23],[11,11,11,12],[11,18,11,23],[12,18,12,23],[12,29,12,36],[14,11,16,11],[14,12,16,12],[14,13,16,16],[14,17,16,20],[14,21,16,24],[14,25,16,28],[14,36,16,36],[16,34,16,35],[15,31,15,32],[15,33,15,35],[14,29,14,35],[15,29,15,30]]}
[]
[]
[]
[]
[null,null,null,null,null,null,null,null,null,null,null,"Форма 3.4 Информация о величинах тарифов на подключение к централизованной системе водоотведения1"]
[]
[null,null,null,null,null,null,null,null,null,null,null,null,{"$f":"\"Наименование органа регулирования, принявшего решение об \"&IF(NameOrPr_ch=\"\",\"утверждении\",\"изменении\") & \" тарифов\"","v":"Наименование органа регулирования, принявшего решение об утверждении тарифов"},{"$f":"IF(NameOrPr_ch=\"\",IF(NameOrPr=\"\",\"\",NameOrPr),NameOrPr_ch)","v":"Государственный комитет Республики Башкортостан по тарифам"}]
[null,null,null,null,null,null,null,null,null,null,null,null,{"$f":"IF(datePr_ch=\"\",\"Дата документа об утверждении тарифов\",\"Дата принятия решения об изменении тарифов\")","v":"Дата документа об утверждении тарифов"},{"$f":"IF(datePr_ch=\"\",IF(datePr=\"\",\"\",datePr),datePr_ch)","v":"14.12.2018"}]
[null,null,null,null,null,null,null,null,null,null,null,null,{"$f":"IF(numberPr_ch=\"\",\"Номер документа об утверждении тарифов\",\"Номер принятия решения об изменении тарифов\")","v":"Номер документа об утверждении тарифов"},{"$f":"IF(numberPr_ch=\"\",IF(numberPr=\"\",\"\",numberPr),numberPr_ch)","v":"661"}]
[null,null,null,null,null,null,null,null,null,null,null,null,"Источник официального опубликования решения",{"$f":"IF(IstPub_ch=\"\",IF(IstPub=\"\",\"\",IstPub),IstPub_ch)","v":"постановление"}]
[null,null,null,null,null,null,null,null,null,null,null,null,null,null,null,null,null,null,null,null,null,null,null,null,null,null,null,null,null,"NDS","woNDS","NDS","woNDS"]
[null,null,null,null,null,null,null,null,null,null,null,null,null,null,null,null,null,null,null,null,null,null,null,null,null,null,null,null,null,null,null,null,null,null,null,null,"dp"]
[]
[null,null,null,null,null,null,null,null,null,null,null,"Параметры формы",null,null,null,null,null,null,null,null,null,null,null,null,null,null,null,null,null,null,null,null,null,null,null,null,null,null,"Описание параметров формы"]
[null,null,null,null,null,null,null,null,null,null,null,"№ п/п","Параметр дифференциации тарифа/Заявитель","Подключаемая нагрузка канализационной сети, куб. м/сут",null,null,null,"Диапазон диаметров канализационной сети, мм",null,null,null,"Протяженность канализационной сети, км",null,null,null,"Условия прокладки сетей",null,null,null,"Период действия тарифа",null,null,null,null,null,null,"Наличие других периодов действия тарифа","Добавить период"]
[null,null,null,null,null,null,null,null,null,null,null,null,null,null,null,null,null,null,null,null,null,null,null,null,null,null,null,null,null,"Ставка тарифа за подключаемую нагрузку канализационной сети, тыс. руб./куб. м в сут",null,"Ставка тарифа за протяженность канализационной сети диаметром d, тыс. руб./км",null,"Период действия"]
[null,null,null,null,null,null,null,null,null,null,null,null,null,null,null,null,null,null,null,null,null,null,null,null,null,null,null,null,null,"С НДС","Без НДС","С НДС","Без НДС","Дата начала","Дата окончания"]
[null,null,null,null,null,null,null,null,null,null,1,"1","2",{"$f":"OFFSET(N18,0,-1)+1","v":3},null,null,null,{"$f":"OFFSET(R18,0,-4)+1","v":4},null,null,null,{"$f":"OFFSET(V18,0,-4)+1","v":5},null,null,null,null,null,{"$f":"OFFSET(V18,0,0)+1","v":6},{"$f":"AB18","v":6},{"$f":"OFFSET(AD18,0,-1)+1","v":7},{"$f":"OFFSET(AE18,0,-1)+1","v":8},9,10,11,12,13,{"$f":"OFFSET(AK18,0,-1)+1","v":14},null,15]
[1,null,null,null,null,null,null,null,null,null,null,{"$f":"mergeValue(A19)","v":1},"Наименование тарифа",null,null,null,null,null,null,null,null,null,null,null,null,null,null,null,null,null,null,null,null,null,null,null,null,null,"Указывается наименование тарифа в случае утверждения нескольких тарифов.\nВ случае наличия нескольких тарифов информация по ним указывается в отдельных строках."]
[null,1,null,null,null,null,null,null,null,null,null,{"$f":"mergeValue(A20) &\".\"& mergeValue(B20)","v":"1.1"},"Территория действия тарифа",null,null,null,null,null,null,null,null,null,null,null,null,null,null,null,null,null,null,null,null,null,null,null,null,null,"Указывается наименование территории действия тарифа при наличии дифференциации тарифа по территориальному признаку.\nВ случае дифференциации тарифов по территориальному признаку информация по ним указывается в отдельных строках."]
[null,null,1,null,null,null,null,null,null,null,null,{"$f":"mergeValue(A21) &\".\"& mergeValue(B21)&\".\"& mergeValue(C21)","v":"1.1.1"},"Наименование централизованной системы водоотведения",null,null,null,null,null,null,null,null,null,null,null,null,null,null,null,null,null,null,null,null,null,null,null,null,null,"Указывается наименование централизованной системы водоотведения при наличии дифференциации тарифа по централизованным системам водоотведения.\nВ случае дифференциации тарифов по централизованным системам водоотведения информация по ним указывается в отдельных строках."]
[null,null,null,1,null,null,null,null,null,null,null,{"$f":"mergeValue(A22) &\".\"& mergeValue(B22)&\".\"& mergeValue(C22)&\".\"& mergeValue(D22)","v":"1.1.1.1"},null,"да",null,"1",null,"нет",null,1,null,"нет",null,1,null,"нет",null,1,null,null,null,null,null,null,"да",null,"нет",null,"В колодке «Параметр дифференциации тарифа/Заявитель» указывается наименование категории потребителей, к которой относится тариф.\nДаты начала и окончания указываются в виде «ДД.ММ.ГГГГ».\nВ случае отсутствия даты окончания тарифа в колонке «Дата окончания» указывается «Нет».\nВ случае наличия дифференциации по подключаемой нагрузке, диапазону диаметров, протяженности, условиям прокладки канализационной сети информация по ним указывается в отдельных строках.\nВ случае дифференциации тарифов по периодам действия тарифа информация по ним указывается в отдельных колонках.",{"$f":"strCheckDateOnDP(V22:AL22,List06_9_DP)","v":""},{"$f":"IF(AND(COUNTIF(AP18:AP26,AP22)>1,AP22<>\"\"),\"ErrUnique:HasDoubleConn\",\"\")","v":""}]
[null,null,null,null,null,null,null,null,null,null,null,null,null,null,null,null,null,null,null,null,null,null,null,null,null,null,null,null,null,null,null,null,{"$f":"AH22 & \"-\" & AJ22","v":"-"},null,null,null,"нет"]
[]
[]
[null,null,null,null,null,null,null,null,null,null,null,null,null,null,null,null,"Добавить подключаемую нагрузку"]
[null,null,null,null,null,null,null,null,null,null,null,null,"Добавить строку"]
[null,null,null,null,null,null,null,null,null,null,null,null,"Добавить наименование системы водоотведения"]
[null,null,null,null,null,null,null,null,null,null,null,null,"Добавить территорию действия тарифа"]
[null,null,null,null,null,null,null,null,null,null,null,null,"Добавить наименование тарифа"]
[]
[null,null,null,null,null,null,null,null,null,null,null,null,"1 При размещении информации дополнительно указываются: наименование органа регулирования тарифов, принявшего решение об утверждении(изменении) тарифа, дата и номер документа об утверждении(изменении) тарифа, источник официального опубликования решения."]

{"sheet":"Форма 1.0.1 | Т-подкл","index":12,"n_rows":19,"n_cols":10,"rows_kept":19,"cut":false,"hidden":true,"merged":[[18,6,18,7],[1,5,1,7],[3,5,3,7],[3,8,4,8],[7,0,15,0],[11,2,13,2],[12,8,13,8],[10,1,14,1]]}
["10"]
[null,null,null,null,null,"Форма 1.0.1 Основные параметры раскрываемой информации 1"]
[]
[null,null,null,null,null,"Параметры формы",null,null,"Описание параметров формы"]
[null,null,null,null,null,"№ п/п","Наименование параметра","Информация"]
[null,null,null,null,null,"1",2,3,4,4]
[null,null,null,null,null,1,"Дата заполнения/внесения изменений",{"$f":"IF(dateCh=\"\",\"\",dateCh)","v":"11.01.2019"},"Указывается календарная дата первичного заполнения или внесения изменений в форму в виде «ДД.ММ.ГГГГ»."]
[1,null,null,null,null,{"$f":"\"2.\" &mergeValue(A8)","v":"2.1"},"Наименование централизованной системы коммунальной инфраструктуры",null,"Указывается наименование централизованной системы холодного водоснабжения/горячего водоснабжения/водоотведения/теплоснабжения, к которой относится размещаемая информация.\nВ случае наличия нескольких централизованных систем коммунальной инфраструктуры, информация по каждой из них указывается в отдельной строке."]
[null,null,null,null,null,{"$f":"\"3.\" &mergeValue(A9)","v":"3.1"},"Наименование регулируемого вида деятельности",null,"Указывается наименование вида регулируемой деятельности."]
[null,null,null,null,null,{"$f":"\"4.\"&mergeValue(A10)","v":"4.1"},"Территория оказания услуги по регулируемому виду деятельности","x"]
[null,1,null,null,null,{"$f":"\"4.\"&mergeValue(A11) &\".\"&mergeValue(B11)","v":"4.1.1"},"Субъект Российской Федерации",{"$f":"IF(region_name=\"\",\"\",region_name)","v":"Республика Башкортостан"},"Указывается наименование субъекта Российской Федерации"]
[null,null,1,null,null,{"$f":"\"4.\"&mergeValue(A12) &\".\"&mergeValue(B12)&\".\"&mergeValue(C12)","v":"4.1.1.1"},"муниципальный район",null,"Указывается наименование муниципального района, на территории которого организация оказывает услуги по регулируемому виду деятельности."]
[null,null,null,1,null,{"$f":"\"4.\"&mergeValue(A13) &\".\"&mergeValue(B13)&\".\"&mergeValue(C13)&\".\"&mergeValue(D13)","v":"4.1.1.1.1"},"муниципальное образование",null,"Указывается наименование и код муниципального района, муниципального образования в соответствии с Общероссийским классификатором территорий муниципальных образований (далее - ОКТМО), входящего в муниципальный район, на территории которого организация оказывает услуги по регулируемому виду деятельности.\nВ случае оказания услуг по регулируемому виду деятельности на территории нескольких муниципальных районов (муниципальных образований) данные по каждому их них указываются в отдельной строке."]
[null,null,null,null,null,null,"Добавить МО"]
[null,null,null,null,null,null,"Добавить МР"]
[null,null,null,null,null,null,"Добавить территорию"]
[null,null,null,null,null,null,"Добавить ЦС"]
[]
[null,null,null,null,null,null,"  1 Информация размещается при раскрытии информации по каждой из форм."]

{"sheet":"Форма 3.4 | Т-подкл","index":13,"n_rows":32,"n_cols":40,"rows_kept":32,"cut":false,"hidden":true,"merged":[[12,28,12,35],[14,12,16,12],[14,11,16,11],[6,13,6,19],[7,13,7,19],[8,13,8,19],[9,13,9,19],[12,17,12,22],[11,17,11,22],[10,17,10,22],[10,11,10,12],[11,11,11,12],[14,24,16,27],[13,11,13,36],[14,13,16,15],[15,30,15,31],[18,0,28,0],[19,1,27,1],[20,2,26,2],[21,3,25,3],[21,10,25,10],[21,8,25,8],[21,9,25,9],[21,11,25,11],[21,17,23,17],[21,20,23,20],[19,13,19,36],[21,24,22,24],[17,20,17,23],[17,16,17,19],[17,13,17,15],[21,12,25,12],[21,15,24,15],[21,13,24,13],[21,19,23,19],[20,13,20,36],[21,21,22,21],[21,14,24,14],[4,11,4,20],[13,37,16,37],[21,37,26,37],[14,36,16,36],[14,16,16,19],[14,20,16,23],[21,18,23,18],[21,22,22,22],[21,16,24,16],[14,28,14,34],[14,35,16,35],[21,23,22,23],[15,28,15,29],[15,32,15,34],[18,13,18,36],[16,33,16,34]]}
[]
[]
[]
[]
[null,null,null,null,null,null,null,null,null,null,null,"Форма 3.4 Информация о величинах тарифов на подключение к централизованной системе водоотведения1"]
[]
[null,null,null,null,null,null,null,null,null,null,null,null,{"$f":"\"Наименование органа регулирования, принявшего решение об \"&IF(NameOrPr_ch=\"\",\"утверждении\",\"изменении\") & \" тарифов\"","v":"Наименование органа регулирования, принявшего решение об утверждении тарифов"},{"$f":"IF(NameOrPr_ch=\"\",IF(NameOrPr=\"\",\"\",NameOrPr),NameOrPr_ch)","v":"Государственный комитет Республики Башкортостан по тарифам"}]
[null,null,null,null,null,null,null,null,null,null,null,null,{"$f":"IF(datePr_ch=\"\",\"Дата документа об утверждении тарифов\",\"Дата принятия решения об изменении тарифов\")","v":"Дата документа об утверждении тарифов"},{"$f":"IF(datePr_ch=\"\",IF(datePr=\"\",\"\",datePr),datePr_ch)","v":"14.12.2018"}]
[null,null,null,null,null,null,null,null,null,null,null,null,{"$f":"IF(numberPr_ch=\"\",\"Номер документа об утверждении тарифов\",\"Номер принятия решения об изменении тарифов\")","v":"Номер документа об утверждении тарифов"},{"$f":"IF(numberPr_ch=\"\",IF(numberPr=\"\",\"\",numberPr),numberPr_ch)","v":"661"}]
[null,null,null,null,null,null,null,null,null,null,null,null,"Источник официального опубликования решения",{"$f":"IF(IstPub_ch=\"\",IF(IstPub=\"\",\"\",IstPub),IstPub_ch)","v":"постановление"}]
[null,null,null,null,null,null,null,null,null,null,null,null,null,null,null,null,null,null,null,null,null,null,null,null,null,null,null,null,"NDS","woNDS","NDS","woNDS"]
[null,null,null,null,null,null,null,null,null,null,null,null,null,null,null,null,null,null,null,null,null,null,null,null,null,null,null,null,null,null,null,null,null,null,null,"dp"]
[]
[null,null,null,null,null,null,null,null,null,null,null,"Параметры формы",null,null,null,null,null,null,null,null,null,null,null,null,null,null,null,null,null,null,null,null,null,null,null,null,null,"Описание параметров формы"]
[null,null,null,null,null,null,null,null,null,null,null,"№ п/п","Параметр дифференциации тарифа/Заявитель","Подключаемая нагрузка канализационной сети, куб. м/сут",null,null,"Диапазон диаметров канализационной сети, мм",null,null,null,"Протяженность канализационной сети, км",null,null,null,"Условия прокладки сетей",null,null,null,"Период действия тарифа",null,null,null,null,null,null,"Наличие других периодов действия тарифа","Добавить период"]
[null,null,null,null,null,null,null,null,null,null,null,null,null,null,null,null,null,null,null,null,null,null,null,null,null,null,null,null,"Ставка тарифа за подключаемую нагрузку канализационной сети, тыс. руб./куб. м в сут",null,"Ставка тарифа за протяженность канализационной сети диаметром d, тыс. руб./км",null,"Период действия"]
[null,null,null,null,null,null,null,null,null,null,null,null,null,null,null,null,null,null,null,null,null,null,null,null,null,null,null,null,"С НДС","Без НДС","С НДС","Без НДС","Дата начала","Дата окончания"]
[null,null,null,null,null,null,null,null,null,null,1,"1","2",{"$f":"OFFSET(N18,0,-1)+1","v":3},null,null,{"$f":"OFFSET(Q18,0,-3)+1","v":4},null,null,null,{"$f":"OFFSET(U18,0,-4)+1","v":5},null,null,null,null,null,{"$f":"OFFSET(U18,0,0)+1","v":6},{"$f":"AA18","v":6},{"$f":"OFFSET(AC18,0,-1)+1","v":7},8,9,10,11,12,13,14,null,15]
[1,null,null,null,null,null,null,null,null,null,null,{"$f":"mergeValue(A19)","v":1},"Наименование тарифа",null,null,null,null,null,null,null,null,null,null,null,null,null,null,null,null,null,null,null,null,null,null,null,null,"Указывается наименование тарифа в случае утверждения нескольких тарифов.\nВ случае наличия нескольких тарифов информация по ним указывается в отдельных строках."]
[null,1,null,null,null,null,null,null,null,null,null,{"$f":"mergeValue(A20) &\".\"& mergeValue(B20)","v":"1.1"},"Территория действия тарифа",null,null,null,null,null,null,null,null,null,null,null,null,null,null,null,null,null,null,null,null,null,null,null,null,"Указывается наименование территории действия тарифа при наличии дифференциации тарифа по территориальному признаку.\nВ случае дифференциации тарифов по территориальному признаку информация по ним указывается в отдельных строках."]
[null,null,1,null,null,null,null,null,null,null,null,{"$f":"mergeValue(A21) &\".\"& mergeValue(B21)&\".\"& mergeValue(C21)","v":"1.1.1"},"Наименование централизованной системы водоотведения",null,null,null,null,null,null,null,null,null,null,null,null,null,null,null,null,null,null,null,null,null,null,null,null,"Указывается наименование централизованной системы водоотведения при наличии дифференциации тарифа по централизованным системам водоотведения.\nВ случае дифференциации тарифов по централизованным системам водоотведения информация по ним указывается в отдельных строках."]
[null,null,null,1,null,null,null,null,null,null,null,{"$f":"mergeValue(A22) &\".\"& mergeValue(B22)&\".\"& mergeValue(C22)&\".\"& mergeValue(D22)","v":"1.1.1.1"},null,null,"1",null,"нет",null,1,null,"нет",null,"1",null,"нет",null,1,null,null,null,null,null,null,"да",null,"нет",null,"В колодке «Параметр дифференциации тарифа/Заявитель» указывается наименование категории потребителей, к которой относится тариф.\nДаты начала и окончания указываются в виде «ДД.ММ.ГГГГ».\nВ случае отсутствия даты окончания тарифа в колонке «Дата окончания» указывается «Нет».\nВ случае наличия дифференциации по подключаемой нагрузке, диапазону диаметров, протяженности, условиям прокладки канализационной сети информация по ним указывается в отдельных строках.\nВ случае дифференциации тарифов по периодам действия тарифа информация по ним указывается в отдельных колонках.",{"$f":"strCheckDateOnDP(AC22:AK22,List06_10_DP)","v":""},{"$f":"IF(AND(COUNTIF(AO18:AO26,AO22)>1,AO22<>\"\"),\"ErrUnique:HasDoubleConn\",\"\")","v":""}]
[null,null,null,null,null,null,null,null,null,null,null,null,null,null,null,null,null,null,null,null,null,null,null,null,null,null,null,null,null,null,null,{"$f":"AG22 & \"-\" & AI22","v":"-"},null,null,null,"нет"]
[]
[]
[null,null,null,null,null,null,null,null,null,null,null,null,null,null,null,"Добавить подключаемую нагрузку"]
[null,null,null,null,null,null,null,null,null,null,null,null,"Добавить строку"]
[null,null,null,null,null,null,null,null,null,null,null,null,"Добавить наименование системы водоотведения"]
[null,null,null,null,null,null,null,null,null,null,null,null,"Добавить территорию действия тарифа"]
[null,null,null,null,null,null,null,null,null,null,null,null,"Добавить наименование тарифа"]
[]
[null,null,null,null,null,null,null,null,null,null,null,null,"1 При размещении информации дополнительно указываются: наименование органа регулирования тарифов, принявшего решение об утверждении(изменении) тарифа, дата и номер документа об утверждении(изменении) тарифа, источник официального опубликования решения."]

{"sheet":"Форма 1.0.1 | Форма 3.9","index":14,"n_rows":15,"n_cols":10,"rows_kept":15,"cut":false,"hidden":false,"merged":[[14,6,14,7],[1,5,1,7],[3,5,3,7],[3,8,4,8],[7,0,12,0],[10,1,12,1],[11,2,12,2]]}
["11"]
[null,null,null,null,null,"Форма 1.0.1 Основные параметры раскрываемой информации 1"]
[]
[null,null,null,null,null,"Параметры формы",null,null,"Описание параметров формы"]
[null,null,null,null,null,"№ п/п","Наименование параметра","Информация"]
[null,null,null,null,null,"1",2,3,4,4]
[null,null,null,null,null,1,"Дата заполнения/внесения изменений",{"$f":"IF(dateCh=\"\",\"\",dateCh)","v":"11.01.2019"},"Указывается календарная дата первичного заполнения или внесения изменений в форму в виде «ДД.ММ.ГГГГ»."]
[1,null,null,null,null,{"$f":"\"2.\" &mergeValue(A8)","v":"2.1"},"Наименование централизованной системы коммунальной инфраструктуры",{"$f":"IF('Перечень тарифов'!R21=\"\",\"наименование отсутствует\",\"\" & 'Перечень тарифов'!R21 & \"\")","v":"наименование отсутствует"},"Указывается наименование централизованной системы холодного водоснабжения/горячего водоснабжения/водоотведения/теплоснабжения, к которой относится размещаемая информация.\nВ случае наличия нескольких централизованных систем коммунальной инфраструктуры, информация по каждой из них указывается в отдельной строке."]
[null,null,null,null,null,{"$f":"\"3.\" &mergeValue(A9)","v":"3.1"},"Наименование регулируемого вида деятельности",{"$f":"IF('Перечень тарифов'!F21=\"\",\"наименование отсутствует\",\"\" & 'Перечень тарифов'!F21 & \"\")","v":"Водоотведение"},"Указывается наименование вида регулируемой деятельности."]
[null,null,null,null,null,{"$f":"\"4.\"&mergeValue(A10)","v":"4.1"},"Территория оказания услуги по регулируемому виду деятельности","x"]
[null,1,null,null,null,{"$f":"\"4.\"&mergeValue(A11) &\".\"&mergeValue(B11)","v":"4.1.1"},"Субъект Российской Федерации",{"$f":"IF(region_name=\"\",\"\",region_name)","v":"Республика Башкортостан"},"Указывается наименование субъекта Российской Федерации"]
[null,null,1,null,null,{"$f":"\"4.\"&mergeValue(A12) &\".\"&mergeValue(B12)&\".\"&mergeValue(C12)","v":"4.1.1.1"},"муниципальный район",{"$f":"IF(Территории!H13=\"\",\"\",\"\" & Территории!H13 & \"\")","v":"Город Октябрьский"},"Указывается наименование муниципального района, на территории которого организация оказывает услуги по регулируемому виду деятельности."]
[null,null,null,1,null,{"$f":"\"4.\"&mergeValue(A13) &\".\"&mergeValue(B13)&\".\"&mergeValue(C13)&\".\"&mergeValue(D13)","v":"4.1.1.1.1"},"муниципальное образование",{"$f":"IF(Территории!R14=\"\",\"\",\"\" & Территории!R14 & \"\")","v":"Город Октябрьский (80735000)"},"Указывается наименование и код муниципального района, муниципального образования в соответствии с Общероссийским классификатором территорий муниципальных образований (далее - ОКТМО), входящего в муниципальный район, на территории которого организация оказывает услуги по регулируемому виду деятельности.\nВ случае оказания услуг по регулируемому виду деятельности на территории нескольких муниципальных районов (муниципальных образований) данные по каждому их них указываются в отдельной строке."]
[]
[null,null,null,null,null,null,"  1 Информация размещается при раскрытии информации по каждой из форм."]

{"sheet":"Форма 3.9","index":15,"n_rows":16,"n_cols":7,"rows_kept":16,"cut":false,"hidden":false,"merged":[[6,3,6,5],[6,6,7,6],[11,6,12,6],[14,6,15,6],[4,3,4,5]]}
[]
[]
[]
[]
[null,null,null,"Форма 3.9 Информация об условиях, на которых осуществляется поставка регулируемых товаров и (или) оказание регулируемых услуг"]
[]
[null,null,null,"Параметры формы",null,null,"Описание параметров формы"]
[null,null,null,"№ п/п","Наименование параметра","Ссылка на документ"]
[null,null,null,"1","2","3","4"]
[null,null,null,1,"Сведения об условиях публичных договоров поставок регулируемых товаров, оказания регулируемых услуг, в том числе договоров о подключении к централизованной системе водоотведения","x"]
[null,null,null,"1.1","форма публичного договора поставки регулируемых товаров, оказания регулируемых услуг","x"]
[null,null,null,"1.1.1","Договор водоотведения","https://portal.eias.ru/Portal/DownloadPage.aspx?type=12&guid=97a88a20-eac8-45a4-b1d0-848a236b4b94","Указывается форма договора, используемая регулируемой организацией, в виде ссылки на документ, предварительно загруженный в хранилище файлов ФГИС ЕИАС.\nВ случае наличия нескольких форм таких договоров информация по каждой из них указывается в отдельной строке."]
[null,null,null,null,"Добавить сведения"]
[null,null,null,"1.2","договор о подключении к централизованной системе водоотведения","x"]
[null,null,null,"1.2.1","Договор о подключении (технологическом присоединении) к централизованной системе водоотведения","https://portal.eias.ru/Portal/DownloadPage.aspx?type=12&guid=7fceac9a-cd40-454a-9b97-904ab883621b","Информация размещается в случае, если регулируемая организация осуществляет услуги по подключению (технологическому присоединению) к централизованной системе водоотведения.\nУказывается ссылка на документ, предварительно загруженный в хранилище файлов ФГИС ЕИАС.\nВ случае наличия нескольких договоров о подключении к централизованной системе водоотведения информация по каждому из них указывается в отдельной строке."]
[null,null,null,null,"Добавить сведения"]

{"sheet":"Форма 1.0.1 | Форма 3.10","index":16,"n_rows":15,"n_cols":10,"rows_kept":15,"cut":false,"hidden":false,"merged":[[14,6,14,7],[1,5,1,7],[3,5,3,7],[3,8,4,8],[7,0,12,0],[10,1,12,1],[11,2,12,2]]}
["11"]
[null,null,null,null,null,"Форма 1.0.1 Основные параметры раскрываемой информации 1"]
[]
[null,null,null,null,null,"Параметры формы",null,null,"Описание параметров формы"]
[null,null,null,null,null,"№ п/п","Наименование параметра","Информация"]
[null,null,null,null,null,"1",2,3,4,4]
[null,null,null,null,null,1,"Дата заполнения/внесения изменений",{"$f":"IF(dateCh=\"\",\"\",dateCh)","v":"11.01.2019"},"Указывается календарная дата первичного заполнения или внесения изменений в форму в виде «ДД.ММ.ГГГГ»."]
[1,null,null,null,null,{"$f":"\"2.\" &mergeValue(A8)","v":"2.1"},"Наименование централизованной системы коммунальной инфраструктуры",{"$f":"IF('Перечень тарифов'!R21=\"\",\"наименование отсутствует\",\"\" & 'Перечень тарифов'!R21 & \"\")","v":"наименование отсутствует"},"Указывается наименование централизованной системы холодного водоснабжения/горячего водоснабжения/водоотведения/теплоснабжения, к которой относится размещаемая информация.\nВ случае наличия нескольких централизованных систем коммунальной инфраструктуры, информация по каждой из них указывается в отдельной строке."]
[null,null,null,null,null,{"$f":"\"3.\" &mergeValue(A9)","v":"3.1"},"Наименование регулируемого вида деятельности",{"$f":"IF('Перечень тарифов'!F21=\"\",\"наименование отсутствует\",\"\" & 'Перечень тарифов'!F21 & \"\")","v":"Водоотведение"},"Указывается наименование вида регулируемой деятельности."]
[null,null,null,null,null,{"$f":"\"4.\"&mergeValue(A10)","v":"4.1"},"Территория оказания услуги по регулируемому виду деятельности","x"]
[null,1,null,null,null,{"$f":"\"4.\"&mergeValue(A11) &\".\"&mergeValue(B11)","v":"4.1.1"},"Субъект Российской Федерации",{"$f":"IF(region_name=\"\",\"\",region_name)","v":"Республика Башкортостан"},"Указывается наименование субъекта Российской Федерации"]
[null,null,1,null,null,{"$f":"\"4.\"&mergeValue(A12) &\".\"&mergeValue(B12)&\".\"&mergeValue(C12)","v":"4.1.1.1"},"муниципальный район",{"$f":"IF(Территории!H13=\"\",\"\",\"\" & Территории!H13 & \"\")","v":"Город Октябрьский"},"Указывается наименование муниципального района, на территории которого организация оказывает услуги по регулируемому виду деятельности."]
[null,null,null,1,null,{"$f":"\"4.\"&mergeValue(A13) &\".\"&mergeValue(B13)&\".\"&mergeValue(C13)&\".\"&mergeValue(D13)","v":"4.1.1.1.1"},"муниципальное образование",{"$f":"IF(Территории!R14=\"\",\"\",\"\" & Территории!R14 & \"\")","v":"Город Октябрьский (80735000)"},"Указывается наименование и код муниципального района, муниципального образования в соответствии с Общероссийским классификатором территорий муниципальных образований (далее - ОКТМО), входящего в муниципальный район, на территории которого организация оказывает услуги по регулируемому виду деятельности.\nВ случае оказания услуг по регулируемому виду деятельности на территории нескольких муниципальных районов (муниципальных образований) данные по каждому их них указываются в отдельной строке."]
[]
[null,null,null,null,null,null,"  1 Информация размещается при раскрытии информации по каждой из форм."]

{"sheet":"Форма 3.10","index":17,"n_rows":36,"n_cols":12,"rows_kept":36,"cut":false,"hidden":false,"merged":[[35,4,35,8],[31,4,31,7],[22,4,22,7],[25,4,25,7],[28,4,28,7],[23,8,24,8],[26,8,27,8],[29,8,30,8],[32,8,33,8],[17,8,20,8],[21,4,21,7],[4,3,4,7],[6,3,6,7],[6,8,7,8],[9,4,9,7],[13,4,13,7],[14,8,15,8],[16,4,16,7]]}
[]
[]
[]
[]
[null,null,null,"Форма 3.10 Информация о порядке выполнения технологических, технических и других мероприятий, связанных с подключением к централизованной системе водоотведения1"]
[]
[null,null,null,"Параметры формы",null,null,null,null,"Описание параметров формы"]
[null,null,null,"№ п/п","Наименование параметра",null,"Информация","Ссылка на документ"]
[null,null,null,"1","2",null,"3","4","5"]
[null,null,null,1,"Информация о размещении данных на сайте регулируемой организации"]
[null,null,null,"1.1","дата размещения информации",null,"09.01.2019","x","Дата размещения информации указывается в виде «ДД.ММ.ГГГГ»."]
[null,null,null,"1.2","адрес страницы сайта в сети «Интернет» и ссылка на документ",null,"myp_ovk@mail.ru","https://portal.eias.ru/Portal/DownloadPage.aspx?type=12&guid=14f1f4d7-3460-4f0d-8ddb-e448c1d97a4e","В колонке «Информация» указывается адрес страницы сайта в сети «Интернет», на которой размещена информация.\nВ колонке «Ссылка на документ» указывается ссылка на скриншот страницы сайта в сети «Интернет», предварительно загруженный в хранилище файлов ФГИС ЕИАС, на которой размещена информация."]
[null,3,null,2,"Форма заявки о подключении к централизованной системе водоотведения",null,"x","https://portal.eias.ru/Portal/DownloadPage.aspx?type=12&guid=88c5d86b-87c8-46d0-a2cd-61dddb3c54e1","Указывается ссылка на документ, предварительно загруженный в хранилище файлов ФГИС ЕИАС."]
[null,null,null,3,"Перечень документов и сведений, представляемых одновременно с заявкой о подключении к централизованной системе водоотведения, и указание на запрет требовать представления документов и сведений или осуществления действий, представление или осуществление которых не предусмотрено законодательством Российской Федерации о градостроительной деятельности и законодательством в сфере водоснабжения и водоотведения"]
[null,null,null,"3.1","Перечень документов и сведений",null,"x","https://portal.eias.ru/Portal/DownloadPage.aspx?type=12&guid=a0d7902a-1f40-459c-a320-a69b4f83be35","Указывается ссылка на документ, предварительно загруженный в хранилище файлов ФГИС ЕИАС.\nВ случае наличия дополнительных сведений информация по ним указывается в отдельных строках."]
[null,null,null,null,"Добавить сведения"]
[null,3,null,4,"Реквизиты НПА, регламентирующих порядок действий заявителя и регулируемой организации при подаче, приеме, обработке заявки о подключении к централизованной системе водоотведения (в том числе в форме электронного документа), принятии решения и информировании о принятом по результатам рассмотрения указанной заявки решении (возврат документов, прилагаемых к заявке о подключении к централизованной системе водоотведения, либо направление подписанного проекта договора о подключении к централизованной системе водоотведения), основания для отказа в принятии к рассмотрению документов, прилагаемых к заявлению о подключении к централизованной системе водоотведения, в подписании договора о подключении к централизованной системе водоотведения"]
[null,null,null,"4.1","наименование НПА",null,"Постановления Правительства РФ от 19.07.2013 г № 644","x","В колонке «Информация» указывается полное наименование и реквизиты НПА.\nВ случае наличия нескольких НПА каждое из них указывается в отдельной строке."]
[null,null,"О","4.2",{"$f":"E18","v":"наименование НПА"},"x","Постановления Правительства РФ от 09.06.2007.г № 360","x"]
[null,null,"О","4.3",{"$f":"E19","v":"наименование НПА"},"x","Постановления Правительства РФ от 13.02.2006 г № 83","x"]
[null,null,null,null,"Добавить сведения"]
[null,3,null,5,"Телефоны, адреса и график работы службы, ответственной за прием и обработку заявок о подключении к централизованной системе водоотведения"]
[null,null,null,"5.1","телефоны службы, ответственной за прием и обработку заявок о подключении к централизованной системе водоотведения"]
[null,null,null,"5.1.1","контактный телефон службы",null,"(34767)5-24-13","x","Указывается номер контактного телефона службы, ответственной за прием и обработку заявок о подключении к централизованной системе водоотведения. \nВ случае наличия нескольких служб и (или) номеров телефонов, информация по каждому из них указывается в отдельной строке."]
[null,null,null,null,"Добавить сведения"]
[null,null,null,"5.2","адреса службы, ответственной за прием и обработку заявок о подключении к централизованной системе водоотведения"]
[null,null,null,"5.2.1","адрес службы",null,"452600, РБ, г.Октябрьский, ул.Кувыкина,23","x","Указывается наименование субъекта Российской Федерации, муниципального района, города, иного населенного пункта, улицы, номер дома, при необходимости указывается корпус, строение, литера или дополнительная территория. Данные указываются согласно наименованиям адресных объектов в ФИАС.\nВ случае наличия нескольких служб и (или) адресов, информация по каждому из них указывается в отдельной строке."]
[null,null,null,null,"Добавить сведения"]
[null,null,null,"5.3","график работы службы, ответственной за прием и обработку заявок о подключении к централизованной системе водоотведения"]
[null,null,null,"5.3.1","график работы службы",null,"c 08:30 до 17:30","x","Указывается график работы службы, ответственной за прием и обработку заявок о подключении к централизованной системе водоотведения. \nВ случае наличия нескольких служб и (или) графиков работы, информация по каждому из них указывается в отдельной строке.",null,null,"c 08:30 до 17:30"]
[null,null,null,null,"Добавить сведения"]
[null,3,null,"6","Регламент подключения к централизованной системе водоотведения, утверждаемый регулируемой организацией, включающий сроки, состав и последовательность действий при осуществлении подключения к централизованной системе водоотведения, сведения о размере платы за услуги по подключению к централизованной системе водоотведения, информацию о месте нахождения и графике работы, справочных телефонах, адресе официального сайта регулируемой организации в сети «Интернет» и блок-схему, отражающую графическое изображение последовательности действий, осуществляемых при подключении к централизованной системе водоотведения"]
[null,null,null,"6.1","Регламент подключения к централизованной системе холодного водоснабжения, утверждаемый регулируемой организацией",null,"x","https://portal.eias.ru/Portal/DownloadPage.aspx?type=12&guid=80e77d2f-76de-4ced-ae88-ad102a39feec","Указывается ссылка на документ, предварительно загруженный в хранилище файлов ФГИС ЕИАС.\nВ случае наличия дополнительных сведений информация по ним указывается в отдельных строках."]
[null,null,null,null,"Добавить сведения"]
[]
[null,null,null,1,"Информация раскрывается в случае, если регулируемая организация осуществляет услуги по подключению (технологическому присоединению) к централизованной системе водоотведения."]

{"sheet":"Форма 1.0.2","index":18,"n_rows":15,"n_cols":13,"rows_kept":15,"cut":false,"hidden":true,"merged":[[4,3,4,9],[14,4,14,9],[11,10,12,10],[7,3,7,9],[8,4,8,5],[7,10,9,10],[8,6,8,9],[8,3,9,3]]}
[]
[]
[]
[]
[null,null,null,"Форма 1.0.2 Информация о публикации в печатных изданиях 2"]
[]
[]
[null,null,null,"Параметры формы",null,null,null,null,null,null,"Описание параметров формы"]
[null,null,null,"№ п/п","Форма публикации",null,"Официальное печатное издание"]
[null,null,null,null,"Номер","Наименование","Наименование","Номер","Дата выпуска","Ссылка на документ"]
[null,null,null,"1","2","3","4","5","6","7","8"]
["3","",null,"1",null,null,null,null,null,null,"В колонке «Дата выпуска» дата выпуска печатного издания указывается в виде «ДД.ММ.ГГГГ».\nВ колонке «Ссылка на документ» указывается ссылка на отсканированную копию печатного издания, предварительно загруженную в хранилище федеральной государственной информационной системы «Единая информационно-аналитическая система «Федеральный орган регулирования - региональные органы регулирования - субъекты регулирования» (далее – ФГИС ЕИАС), с опубликованной информацией.\nВ случае публикации информации в нескольких печатных изданиях информация по каждому из них указывается в отдельной строке.",null,{"$f":"IF(ISERROR(INDEX(kind_of_nameforms,MATCH(E12,kind_of_forms,0),1)),\"\",INDEX(kind_of_nameforms,MATCH(E12,kind_of_forms,0),1))","v":""}]
[null,null,null,null,"Добавить строку"]
[]
[null,null,null,null,"2 Размещается информация по каждой из форм раскрытия, данные в которой относятся к муниципальному образованию, в котором отсутствует доступ в сеть «Интернет»."]

{"sheet":"Сведения об изменении","index":19,"n_rows":15,"n_cols":5,"rows_kept":15,"cut":false,"hidden":true,"merged":[[6,3,6,4],[14,3,14,4]]}
[]
[]
[]
[]
[]
[]
[null,null,null,"Сведения об изменениях в первоначально опубликованной информации*"]
[]
[null,null,null,"№ п/п","Сведения"]
[null,null,null,"1","2"]
[null,null,null,0]
[null,null,null,1]
[null,null,null,null,"Добавить"]
[]
[null,null,null,"* Лист заполняется в случае, если на Титульном листе в поле \"Тип отчета\" выбрано значение «Изменения в раскрытой ранее информации»."]

{"sheet":"Комментарии","index":20,"n_rows":12,"n_cols":5,"rows_kept":12,"cut":false,"hidden":false,"merged":[[6,3,6,4]]}
[]
[]
[]
[]
[]
[]
[null,null,null,"Комментарии"]
[]
[null,null,null,"№ п/п","Комментарий"]
[null,null,null,"1","2"]
[null,null,null,0]
[null,null,null,null,"Добавить"]

{"sheet":"Проверка","index":21,"n_rows":4,"n_cols":4,"rows_kept":4,"cut":false,"hidden":false,"merged":[[1,1,1,3]]}
[]
[null,"Результат проверки"]
[]
[null,"Ссылка","Причина","Статус"]

{"sheet":"modListTempFilter","index":22,"n_rows":0,"n_cols":0,"rows_kept":0,"cut":false,"hidden":true,"merged":[]}

{"sheet":"modCheckCyan","index":23,"n_rows":124,"n_cols":1,"rows_kept":124,"cut":false,"hidden":true,"merged":[]}
[{"$f":"IF('Форма 3.2 | Т-ВО'!$O$22=\"\",1,0)","v":0}]
[{"$f":"IF('Форма 3.2 | Т-ВО'!$R$23=\"\",1,0)","v":0}]
[{"$f":"IF('Форма 3.2 | Т-ВО'!$S$23=\"\",1,0)","v":0}]
[{"$f":"IF('Форма 3.2 | Т-ВО'!$U$23=\"\",1,0)","v":0}]
[{"$f":"IF('Форма 3.2 | Т-транс'!$O$22=\"\",1,0)","v":1}]
[{"$f":"IF('Форма 3.2 | Т-транс'!$R$23=\"\",1,0)","v":1}]
[{"$f":"IF('Форма 3.2 | Т-транс'!$T$23=\"\",1,0)","v":1}]
[{"$f":"IF('Форма 3.2 | Т-транс'!$S$23=\"\",1,0)","v":0}]
[{"$f":"IF('Форма 3.2 | Т-транс'!$U$23=\"\",1,0)","v":0}]
[{"$f":"IF('Форма 3.4 | Т-подкл(инд)'!$M$22=\"\",1,0)","v":1}]
[{"$f":"IF('Форма 3.4 | Т-подкл(инд)'!$Q$22=\"\",1,0)","v":1}]
[{"$f":"IF('Форма 3.4 | Т-подкл(инд)'!$AD$22=\"\",1,0)","v":1}]
[{"$f":"IF('Форма 3.4 | Т-подкл(инд)'!$AE$22=\"\",1,0)","v":1}]
[{"$f":"IF('Форма 3.4 | Т-подкл(инд)'!$AF$22=\"\",1,0)","v":1}]
[{"$f":"IF('Форма 3.4 | Т-подкл(инд)'!$AG$22=\"\",1,0)","v":1}]
[{"$f":"IF('Форма 3.4 | Т-подкл(инд)'!$AH$22=\"\",1,0)","v":1}]
[{"$f":"IF('Форма 3.4 | Т-подкл(инд)'!$AJ$22=\"\",1,0)","v":1}]
[{"$f":"IF('Форма 3.4 | Т-подкл(инд)'!$N$22=\"\",1,0)","v":0}]
[{"$f":"IF('Форма 3.4 | Т-подкл(инд)'!$R$22=\"\",1,0)","v":0}]
[{"$f":"IF('Форма 3.4 | Т-подкл(инд)'!$V$22=\"\",1,0)","v":0}]
[{"$f":"IF('Форма 3.4 | Т-подкл(инд)'!$Z$22=\"\",1,0)","v":0}]
[{"$f":"IF('Форма 3.4 | Т-подкл(инд)'!$AI$22=\"\",1,0)","v":0}]
[{"$f":"IF('Форма 3.4 | Т-подкл(инд)'!$AK$22=\"\",1,0)","v":0}]
[{"$f":"IF('Форма 3.4 | Т-подкл'!$P$22=\"\",1,0)","v":1}]
[{"$f":"IF('Форма 3.4 | Т-подкл'!$AC$22=\"\",1,0)","v":1}]
[{"$f":"IF('Форма 3.4 | Т-подкл'!$AD$22=\"\",1,0)","v":1}]
[{"$f":"IF('Форма 3.4 | Т-подкл'!$AE$22=\"\",1,0)","v":1}]
[{"$f":"IF('Форма 3.4 | Т-подкл'!$AF$22=\"\",1,0)","v":1}]
[{"$f":"IF('Форма 3.4 | Т-подкл'!$AG$22=\"\",1,0)","v":1}]
[{"$f":"IF('Форма 3.4 | Т-подкл'!$AI$22=\"\",1,0)","v":1}]
[{"$f":"IF('Форма 3.4 | Т-подкл'!$Q$22=\"\",1,0)","v":0}]
[{"$f":"IF('Форма 3.4 | Т-подкл'!$U$22=\"\",1,0)","v":0}]
[{"$f":"IF('Форма 3.4 | Т-подкл'!$Y$22=\"\",1,0)","v":0}]
[{"$f":"IF('Форма 3.4 | Т-подкл'!$AH$22=\"\",1,0)","v":0}]
[{"$f":"IF('Форма 3.4 | Т-подкл'!$AJ$22=\"\",1,0)","v":0}]
[{"$f":"IF('Форма 3.9'!$E$12=\"\",1,0)","v":0}]
[{"$f":"IF('Форма 3.9'!$F$12=\"\",1,0)","v":0}]
[{"$f":"IF('Форма 3.10'!$G$11=\"\",1,0)","v":0}]
[{"$f":"IF('Форма 3.10'!$G$12=\"\",1,0)","v":0}]
[{"$f":"IF('Форма 3.10'!$H$12=\"\",1,0)","v":0}]
[{"$f":"IF('Форма 3.10'!$H$13=\"\",1,0)","v":0}]
[{"$f":"IF('Форма 3.10'!$E$15=\"\",1,0)","v":0}]
[{"$f":"IF('Форма 3.10'!$H$15=\"\",1,0)","v":0}]
[{"$f":"IF('Форма 3.10'!$G$18=\"\",1,0)","v":0}]
[{"$f":"IF('Форма 3.10'!$G$24=\"\",1,0)","v":0}]
[{"$f":"IF('Форма 3.10'!$G$27=\"\",1,0)","v":0}]
[{"$f":"IF('Форма 3.10'!$E$33=\"\",1,0)","v":0}]
[{"$f":"IF('Форма 3.10'!$H$33=\"\",1,0)","v":0}]
[{"$f":"IF('Форма 3.10'!$G$30=\"\",1,0)","v":0}]
[{"$f":"IF('Форма 1.0.2'!$E$12=\"\",1,0)","v":1}]
[{"$f":"IF('Форма 1.0.2'!$F$12=\"\",1,0)","v":1}]
[{"$f":"IF('Форма 1.0.2'!$G$12=\"\",1,0)","v":1}]
[{"$f":"IF('Форма 1.0.2'!$H$12=\"\",1,0)","v":1}]
[{"$f":"IF('Форма 1.0.2'!$I$12=\"\",1,0)","v":1}]
[{"$f":"IF('Форма 1.0.2'!$J$12=\"\",1,0)","v":1}]
[{"$f":"IF('Сведения об изменении'!$E$12=\"\",1,0)","v":1}]
[{"$f":"IF('Форма 3.9'!$F$15=\"\",1,0)","v":0}]
[{"$f":"IF('Форма 3.9'!$E$15=\"\",1,0)","v":0}]
[{"$f":"IF(Территории!$E$12=\"\",1,0)","v":0}]
[{"$f":"IF('Перечень тарифов'!$E$21=\"\",1,0)","v":0}]
[{"$f":"IF('Перечень тарифов'!$F$21=\"\",1,0)","v":0}]
[{"$f":"IF('Перечень тарифов'!$G$21=\"\",1,0)","v":0}]
[{"$f":"IF('Перечень тарифов'!$K$21=\"\",1,0)","v":0}]
[{"$f":"IF('Перечень тарифов'!$O$21=\"\",1,0)","v":0}]
[{"$f":"IF('Форма 3.2 | Т-ВО'!$O$23=\"\",1,0)","v":0}]
[{"$f":"IF('Форма 3.2 | Т-ВО'!$T$23=\"\",1,0)","v":0}]
[{"$f":"IF('Форма 3.2 | Т-ВО'!$O$26=\"\",1,0)","v":0}]
[{"$f":"IF('Форма 3.2 | Т-ВО'!$O$27=\"\",1,0)","v":0}]
[{"$f":"IF('Форма 3.2 | Т-ВО'!$R$27=\"\",1,0)","v":0}]
[{"$f":"IF('Форма 3.2 | Т-ВО'!$T$27=\"\",1,0)","v":0}]
[{"$f":"IF('Форма 3.2 | Т-ВО'!$S$27=\"\",1,0)","v":0}]
[{"$f":"IF('Форма 3.2 | Т-ВО'!$U$27=\"\",1,0)","v":0}]
[{"$f":"IF('Форма 3.2 | Т-ВО'!$Y$27=\"\",1,0)","v":0}]
[{"$f":"IF('Форма 3.2 | Т-ВО'!$AA$27=\"\",1,0)","v":0}]
[{"$f":"IF('Форма 3.2 | Т-ВО'!$V$27=\"\",1,0)","v":0}]
[{"$f":"IF('Форма 3.2 | Т-ВО'!$Z$27=\"\",1,0)","v":0}]
[{"$f":"IF('Форма 3.2 | Т-ВО'!$AB$27=\"\",1,0)","v":0}]
[{"$f":"IF('Форма 3.2 | Т-ВО'!$Y$23=\"\",1,0)","v":0}]
[{"$f":"IF('Форма 3.2 | Т-ВО'!$AA$23=\"\",1,0)","v":0}]
[{"$f":"IF('Форма 3.2 | Т-ВО'!$V$23=\"\",1,0)","v":0}]
[{"$f":"IF('Форма 3.2 | Т-ВО'!$Z$23=\"\",1,0)","v":0}]
[{"$f":"IF('Форма 3.2 | Т-ВО'!$AB$23=\"\",1,0)","v":0}]
[{"$f":"IF('Форма 3.2 | Т-ВО'!$AF$23=\"\",1,0)","v":0}]
[{"$f":"IF('Форма 3.2 | Т-ВО'!$AH$23=\"\",1,0)","v":0}]
[{"$f":"IF('Форма 3.2 | Т-ВО'!$AC$23=\"\",1,0)","v":0}]
[{"$f":"IF('Форма 3.2 | Т-ВО'!$AG$23=\"\",1,0)","v":0}]
[{"$f":"IF('Форма 3.2 | Т-ВО'!$AI$23=\"\",1,0)","v":0}]
[{"$f":"IF('Форма 3.2 | Т-ВО'!$AF$27=\"\",1,0)","v":0}]
[{"$f":"IF('Форма 3.2 | Т-ВО'!$AH$27=\"\",1,0)","v":0}]
[{"$f":"IF('Форма 3.2 | Т-ВО'!$AC$27=\"\",1,0)","v":0}]
[{"$f":"IF('Форма 3.2 | Т-ВО'!$AG$27=\"\",1,0)","v":0}]
[{"$f":"IF('Форма 3.2 | Т-ВО'!$AI$27=\"\",1,0)","v":0}]
[{"$f":"IF('Форма 3.2 | Т-ВО'!$AM$27=\"\",1,0)","v":0}]
[{"$f":"IF('Форма 3.2 | Т-ВО'!$AO$27=\"\",1,0)","v":0}]
[{"$f":"IF('Форма 3.2 | Т-ВО'!$AJ$27=\"\",1,0)","v":0}]
[{"$f":"IF('Форма 3.2 | Т-ВО'!$AN$27=\"\",1,0)","v":0}]
[{"$f":"IF('Форма 3.2 | Т-ВО'!$AP$27=\"\",1,0)","v":0}]
[{"$f":"IF('Форма 3.2 | Т-ВО'!$AM$23=\"\",1,0)","v":0}]
[{"$f":"IF('Форма 3.2 | Т-ВО'!$AO$23=\"\",1,0)","v":0}]
[{"$f":"IF('Форма 3.2 | Т-ВО'!$AJ$23=\"\",1,0)","v":0}]
[{"$f":"IF('Форма 3.2 | Т-ВО'!$AN$23=\"\",1,0)","v":0}]
[{"$f":"IF('Форма 3.2 | Т-ВО'!$AP$23=\"\",1,0)","v":0}]
[{"$f":"IF('Форма 3.2 | Т-ВО'!$AT$23=\"\",1,0)","v":0}]
[{"$f":"IF('Форма 3.2 | Т-ВО'!$AV$23=\"\",1,0)","v":0}]
[{"$f":"IF('Форма 3.2 | Т-ВО'!$AQ$23=\"\",1,0)","v":0}]
[{"$f":"IF('Форма 3.2 | Т-ВО'!$AU$23=\"\",1,0)","v":0}]
[{"$f":"IF('Форма 3.2 | Т-ВО'!$AW$23=\"\",1,0)","v":0}]
[{"$f":"IF('Форма 3.2 | Т-ВО'!$AT$27=\"\",1,0)","v":0}]
[{"$f":"IF('Форма 3.2 | Т-ВО'!$AV$27=\"\",1,0)","v":0}]
[{"$f":"IF('Форма 3.2 | Т-ВО'!$AQ$27=\"\",1,0)","v":0}]
[{"$f":"IF('Форма 3.2 | Т-ВО'!$AU$27=\"\",1,0)","v":0}]
[{"$f":"IF('Форма 3.2 | Т-ВО'!$AW$27=\"\",1,0)","v":0}]
[{"$f":"IF('Форма 3.2 | Т-ВО'!$BA$27=\"\",1,0)","v":0}]
[{"$f":"IF('Форма 3.2 | Т-ВО'!$BC$27=\"\",1,0)","v":0}]
[{"$f":"IF('Форма 3.2 | Т-ВО'!$AX$27=\"\",1,0)","v":0}]
[{"$f":"IF('Форма 3.2 | Т-ВО'!$BB$27=\"\",1,0)","v":0}]
[{"$f":"IF('Форма 3.2 | Т-ВО'!$BD$27=\"\",1,0)","v":0}]
[{"$f":"IF('Форма 3.2 | Т-ВО'!$BA$23=\"\",1,0)","v":0}]
[{"$f":"IF('Форма 3.2 | Т-ВО'!$BC$23=\"\",1,0)","v":0}]
[{"$f":"IF('Форма 3.2 | Т-ВО'!$AX$23=\"\",1,0)","v":0}]
[{"$f":"IF('Форма 3.2 | Т-ВО'!$BB$23=\"\",1,0)","v":0}]
[{"$f":"IF('Форма 3.2 | Т-ВО'!$BD$23=\"\",1,0)","v":0}]
[{"$f":"IF('Форма 3.10'!$G$19=\"\",1,0)","v":0}]
[{"$f":"IF('Форма 3.10'!$G$20=\"\",1,0)","v":0}]

{"sheet":"REESTR_LINK","index":24,"n_rows":3,"n_cols":3,"rows_kept":3,"cut":false,"hidden":true,"merged":[]}
["ID","LINK_NAME","REGION"]
[4189678,"https://portal.eias.ru/Portal/DownloadPage.aspx?type=12&guid=????????-????-????-????-????????????","ALL"]
[4190415,"https://eias.fstrf.ru/disclo/get_file?p_guid=????????-????-????-????-????????????","ALL"]

{"sheet":"REESTR_DS","index":25,"n_rows":6,"n_cols":2,"rows_kept":6,"cut":false,"hidden":true,"merged":[]}
[]
[]
[null,"Город Октябрьский, Город Октябрьский (80735000);"]
[null,"территория 2"]
[null,"территория 3"]
[null,"территория 4"]

{"sheet":"modHTTP","index":26,"n_rows":0,"n_cols":0,"rows_kept":0,"cut":false,"hidden":true,"merged":[]}

{"sheet":"modfrmRezimChoose","index":27,"n_rows":0,"n_cols":0,"rows_kept":0,"cut":false,"hidden":true,"merged":[]}

{"sheet":"modSheetMain","index":28,"n_rows":1,"n_cols":2,"rows_kept":1,"cut":false,"hidden":true,"merged":[]}
["Форма","Листы"]

{"sheet":"REESTR_VT","index":29,"n_rows":5,"n_cols":2,"rows_kept":5,"cut":false,"hidden":true,"merged":[]}
["ID_TARIFF_NAME","TARIFF_NAME"]
[4213771,"Тариф на подключение (технологическое присоединение) к централизованной системе водоотведения в индивидуальном порядке"]
[4213772,"Тариф на подключение (технологическое присоединение) к централизованной системе водоотведения"]
[4213773,"Тариф на транспортировку сточных вод"]
[4213774,"Тариф на водоотведение"]

{"sheet":"REESTR_VED","index":30,"n_rows":4,"n_cols":2,"rows_kept":4,"cut":false,"hidden":true,"merged":[]}
["ID_TARIFF_NAME","VED_NAME"]
[4189714,"Водоотведение"]
[4189713,"Транспортировка"]
[4189712,"Подключение (технологическое присоединение) к централизованной системе водоотведения"]

{"sheet":"modfrmReestrObj","index":31,"n_rows":0,"n_cols":0,"rows_kept":0,"cut":false,"hidden":true,"merged":[]}

{"sheet":"AllSheetsInThisWorkbook","index":32,"n_rows":42,"n_cols":2,"rows_kept":42,"cut":false,"hidden":true,"merged":[]}
["Расчетные листы","Скрытые листы"]
["Instruction","modListTempFilter"]
["modUpdTemplLogger","modCheckCyan"]
["List00","REESTR_LINK"]
["List01","REESTR_DS"]
["List02","modHTTP"]
["List05_1","modfrmRezimChoose"]
["List06_1","modSheetMain"]
["List05_2","REESTR_VT"]
["List06_2","REESTR_VED"]
["List05_9","modfrmReestrObj"]
["List06_9","AllSheetsInThisWorkbook"]
["List05_10","TSH_et_union_vert"]
["List06_10","modInstruction"]
["List05_11","modRegion"]
["List11","modReestr"]
["List12","modfrmReestr"]
["List03","modUpdTemplMain"]
["List07","TSH_REESTR_ORG"]
["ListComm","modClassifierValidate"]
["ListCheck","modProv"]
[null,"modHyp"]
[null,"modServiceModule"]
[null,"modList00"]
[null,"modList01"]
[null,"modList02"]
[null,"modList03"]
[null,"TSH_et_union_hor"]
[null,"TSH_REESTR_MO_FILTER"]
[null,"TSH_REESTR_MO"]
[null,"TEHSHEET"]
[null,"modInfo"]
[null,"modList05"]
[null,"modList06"]
[null,"modList07"]
[null,"modList11"]
[null,"modList12"]
[null,"modfrmDateChoose"]
[null,"modComm"]
[null,"modThisWorkbook"]
[null,"modfrmReestrMR"]
[null,"modfrmCheckUpdates"]

{"sheet":"et_union_vert","index":33,"n_rows":0,"n_cols":0,"rows_kept":0,"cut":false,"hidden":true,"merged":[]}

{"sheet":"modInstruction","index":34,"n_rows":0,"n_cols":0,"rows_kept":0,"cut":false,"hidden":true,"merged":[]}

{"sheet":"modRegion","index":35,"n_rows":0,"n_cols":0,"rows_kept":0,"cut":false,"hidden":true,"merged":[]}

{"sheet":"modReestr","index":36,"n_rows":0,"n_cols":0,"rows_kept":0,"cut":false,"hidden":true,"merged":[]}

{"sheet":"modfrmReestr","index":37,"n_rows":0,"n_cols":0,"rows_kept":0,"cut":false,"hidden":true,"merged":[]}

{"sheet":"modUpdTemplMain","index":38,"n_rows":0,"n_cols":0,"rows_kept":0,"cut":false,"hidden":true,"merged":[]}

{"sheet":"REESTR_ORG","index":39,"n_rows":167,"n_cols":10,"rows_kept":167,"cut":false,"hidden":true,"merged":[]}
["№","REGION_ID","REGION_NAME","RST_ORG_ID","ORG_NAME","INN_NAME","KPP_NAME","ORG_START_DATE","ORG_END_DATE"]
[1,"2628","Республика Башкортостан","26807163","OOO \"Башэнергонефть\"","0265025917","027201001","12-04-2011 00:00:00",null,"VO"]
[2,"2628","Республика Башкортостан","26353700","АО \" Международный аэропорт \"Уфа\"","0274108180","024501001","01-01-2012 00:00:00",null,"VO"]
[3,"2628","Республика Башкортостан","26472063","АО \"БСК\"","0268008010","997350001",null,null,"VO"]
[4,"2628","Республика Башкортостан","26758634","АО \"Водоснабжающая компания\"","0268055772","026801001",null,null,"VO"]
[5,"2628","Республика Башкортостан","30791606","АО \"ГУ ЖКХ\"","5116000922","166045001",null,null,"VO"]
[6,"2628","Республика Башкортостан","30335229","АО \"ГУ ЖКХ\"","5116000922","770401001",null,null,"VO"]
[7,"2628","Республика Башкортостан","30860775","АО \"КОРПОРАЦИЯ РАЗВИТИЯ РЕСПУБЛИКИ БАШКОРТОСТАН\"","0274153834","027401001","10-01-2017 00:00:00",null,"VO"]
[8,"2628","Республика Башкортостан","26588634","АО \"УМКК\"","0273010086","027301001",null,null,"VO"]
[9,"2628","Республика Башкортостан","31021059","АО \"Уфимский хлебокомбинат №1\"","0278031033","027801001","29-12-2017 00:00:00",null,"VO"]
[10,"2628","Республика Башкортостан","26353691","АО \"Учалинский горно-обогатительный комбинат\"","0270007455","997550001","09-04-2012 00:00:00",null,"VO"]
[11,"2628","Республика Башкортостан","30990030","АО «Башкоммунводоканал»","0278181938","027801001",null,null,"VO"]
[12,"2628","Республика Башкортостан","27588602","АО «ЭКОЛАЙН»","0263012052","026301001",null,null,"VO"]
[13,"2628","Республика Башкортостан","30942188","АО Санаторий \"Янган-Тау\"","0240007225","024001001","01-01-2018 00:00:00",null,"VO"]
[14,"2628","Республика Башкортостан","28273549","ГУП санаторий \"Якты-Куль\" РБ","0201007528","020101001","02-10-2013 00:00:00",null,"VO"]
[15,"2628","Республика Башкортостан","27958466","ГУП санаторий \"Янган-Тау\"","0240000558","024001001","15-11-2012 00:00:00",null,"VO"]
[16,"2628","Республика Башкортостан","26471917","ГУП санаторий Ассы","0256013979","025601001",null,null,"VO"]
[17,"2628","Республика Башкортостан","26760341","ГУСП совхоз «Алексеевский» РБ","0245004926","024501001",null,null,"VO"]
[18,"2628","Республика Башкортостан","28152448","ДМУП \"ГорКомСервис\"","0259011320","025901001","03-06-2013 00:00:00",null,"VO"]
[19,"2628","Республика Башкортостан","26893051","ЗАО \"Вагоноремонтный завод\"","0268021822","025250001",null,null,"VO"]
[20,"2628","Республика Башкортостан","26353680","ЗАО \"Мелеузовский молочноконсервный комбинат\"","0263002008","026301001",null,null,"VO"]
[21,"2628","Республика Башкортостан","26825369","ЗАО \"Фирма \"Мир\"","0278134166","027801001",null,null,"VO"]
[22,"2628","Республика Башкортостан","26472050","ИМУП \"Межрайкоммунводоканал\"","0261002348","026101001",null,null,"VO"]
[23,"2628","Республика Башкортостан","28254451","ИП Петров Валерий Юрьевич","021201532810","отсутствует","06-08-2013 00:00:00",null,"VO"]
[24,"2628","Республика Башкортостан","28942841","ИП Савинская В.В.","744400637332","отсутствует","20-03-2015 00:00:00",null,"VO"]
[25,"2628","Республика Башкортостан","26472019","Кармановская ГРЭС - филиал общества с огрниченной ответственностью \"Башкирская генерирующая компания\"","0277077282","026402001","01-01-2018 00:00:00",null,"VO"]
[26,"2628","Республика Башкортостан","26812367","Куйбышевская дирекция  по тепловодоснабжению структурное подразделение Центральной дирекции по тепловодоснабжению филиала ПАО «РЖД»","7708503727","631145034",null,null,"VO"]
[27,"2628","Республика Башкортостан","26759540","МУЗ Чекмагушевская ЦРБ","0249002239","024901001",null,null,"VO"]
[28,"2628","Республика Башкортостан","26805221","МУП \"Абзелиловское специализированное предприятие коммунального обслуживания\"","0201007969","020101001",null,null,"VO"]
[29,"2628","Республика Башкортостан","30345497","МУП \"Аскар\"","0201012292","020101001","02-10-2015 00:00:00",null,"VO"]
[30,"2628","Республика Башкортостан","28976576","МУП \"БУЗДЯКСКИЙ КОМСЕРВИС\"","0216007320","021601001","05-06-2015 00:00:00",null,"VO"]
[31,"2628","Республика Башкортостан","26471939","МУП \"Водоканал\"","0258011092","025801001",null,null,"VO"]
[32,"2628","Республика Башкортостан","26471915","МУП \"Водоканал\" (Белорецк)","0256018871","025601001",null,null,"VO"]
[33,"2628","Республика Башкортостан","27916300","МУП \"Водоканал\" (Шаранский)","0251006470","025101001","26-10-2012 00:00:00",null,"VO"]
[34,"2628","Республика Башкортостан","26472391","МУП \"Водоканал\"Кугарчинский","0232002329","023201001",null,null,"VO"]
[35,"2628","Республика Башкортостан","26353627","МУП \"Дуванводоканал\" МР Дуванский район РБ","0220004836","022001001",null,null,"VO"]
[36,"2628","Республика Башкортостан","27745143","МУП \"Дюртюливодоканал\"","0260006195","026001001","18-06-2012 00:00:00",null,"VO"]
[37,"2628","Республика Башкортостан","31081967","МУП \"ЖКХ Башкирия\"","0201013930","020101001","27-04-2018 00:00:00",null,"VO"]
[38,"2628","Республика Башкортостан","26353670","МУП \"ЖКХ Железнодорожный\"","0256016835","025601001",null,null,"VO"]
[39,"2628","Республика Башкортостан","26353716","МУП \"ЖКХ\" г.Межгорье","0279000849","027901001",null,null,"VO"]
[40,"2628","Республика Башкортостан","26353620","МУП \"Инзерское ПУЖКХ\"","0211003931","025601001",null,null,"VO"]
[41,"2628","Республика Башкортостан","28876660","МУП \"КАЛТАСИНСКИЕ ТС СП КАЛТАСИНСКИЙ СЕЛЬСОВЕТ МР КАЛТАСИНСКИЙ РАЙОН РБ\"","0227006889","022701001","28-01-2015 00:00:00",null,"VO"]
[42,"2628","Республика Башкортостан","28814581","МУП \"КРАСНОХОЛМСКИЕ ТС СП КС МР КАЛТАСИНСКИЙ РАЙОН РБ\"","0227038094","022701001","18-09-2014 00:00:00",null,"VO"]
[43,"2628","Республика Башкортостан","26471886","МУП \"Коммунхоз\"","0207005936","020701001",null,null,"VO"]
[44,"2628","Республика Башкортостан","28489188","МУП \"Кушнаренковское ЖКХ\" РБ","0234008260","023401001","03-03-2014 00:00:00",null,"VO"]
[45,"2628","Республика Башкортостан","26471967","МУП \"Межрайкоммунводоканал\"","0262000343","026201001",null,null,"VO"]
[46,"2628","Республика Башкортостан","26471975","МУП \"Нефтекамскводоканал\"","0264014479","026401001",null,null,"VO"]
[47,"2628","Республика Башкортостан","26472030","МУП \"Октябрьсккоммунводоканал\"","0265026710","026501001",null,null,"VO"]
[48,"2628","Республика Башкортостан","31195823","МУП \"Петровский Водоканал\"","0261037284","026101001","20-09-2018 00:00:00",null,"VO"]
[49,"2628","Республика Башкортостан","26353676","МУП \"Семилетовское ПУЖКХ\"","0260005970","026001001",null,null,"VO"]
[50,"2628","Республика Башкортостан","30350111","МУП \"Сибайводоканал\"","0267018087","026701001",null,null,"VO"]
[51,"2628","Республика Башкортостан","26471953","МУП \"Тепловодоснабжение\"","0219007350","021901001",null,null,"VO"]
[52,"2628","Республика Башкортостан","26472069","МУП \"Уфаводоканал\"","0275000238","027601001",null,null,"VO"]
[53,"2628","Республика Башкортостан","26472460","МУП \"Учалыводоканал\"","0270000570","027001001",null,null,"VO"]
[54,"2628","Республика Башкортостан","28464317","МУП \"ХАЙБУЛЛАЖИЛКОМСТРОЙ\"","0248008051","024801001","29-01-2014 00:00:00",null,"VO"]
[55,"2628","Республика Башкортостан","31076863","МУП \"Центр коммунального развития и благоустройства\"","0232010496","023201001","10-04-2018 00:00:00",null,"VO"]
[56,"2628","Республика Башкортостан","31064955","МУП \"Чекмагушжилкомхоз\"","0249006427","024901001","31-12-2017 00:00:00",null,"VO"]
[57,"2628","Республика Башкортостан","26651635","МУП \"Юмагузинский расчетный центр\"","0232007006","023201001",null,null,"VO"]
[58,"2628","Республика Башкортостан","31099879","МУП «Баймакский Водоканал»","0254027373","025401001","13-06-2018 00:00:00",null,"VO"]
[59,"2628","Республика Башкортостан","30393783","МУП «Татышлинские электрические сети, жилье и благоустройство»","0243004938","024301001","28-01-2016 00:00:00",null,"VO"]
[60,"2628","Республика Башкортостан","26472048","МУП Межрайкоммунводоканал","0268000188","026201001",null,null,"VO"]
[61,"2628","Республика Башкортостан","26472042","МУП Салаватводоканал","0266002905","026601001",null,null,"VO"]
[62,"2628","Республика Башкортостан","30953201","Муниципальное унитарное предприятие жилищно-коммунального хозяйства муниципального района Нуримановский район Республики Башкортостан","0239000200","023901001",null,null,"VO"]
[63,"2628","Республика Башкортостан","26579145","ОАО \"Белебеевский завод \"Автонормаль\"","0255010527","025250001",null,null,"VO"]
[64,"2628","Республика Башкортостан","26797507","ОАО \"Племптицесовхоз Знаменский РБ\"","0255016529","025501001",null,null,"VO"]
[65,"2628","Республика Башкортостан","27578884","ОАО \"Птицефабрика \"Башкирская\"","0245012726","024501001",null,null,"VO"]
[66,"2628","Республика Башкортостан","26852317","ОАО \"Славянка\"","7702707386","745343001","12-07-2011 00:00:00",null,"VO"]
[67,"2628","Республика Башкортостан","26453912","ОАО \"УКХП\" город Уфа","0274092758","027401001",null,null,"VO"]
[68,"2628","Республика Башкортостан","26621297","ОАО \"Уфанефтехим\"","0277012020","997150001",null,null,"VO"]
[69,"2628","Республика Башкортостан","26569789","ОАО \"Уфимское моторостроительное производственное объединение\"","0273008320","997850001",null,null,"VO"]
[70,"2628","Республика Башкортостан","27149135","ОАО \"Уфимское приборостроительное производственное объединение\"","0276140862","027601001",null,null,"VO"]
[71,"2628","Республика Башкортостан","26353690","ОАО \"Учалинский горно-обогатительный комбинат\"","0270007455","025250001","06-08-2002 00:00:00",null,"VO"]
[72,"2628","Республика Башкортостан","26472406","ОАО «Водоканал»","0263014363","026301001",null,null,"VO"]
[73,"2628","Республика Башкортостан","26754510","ООО  «ЯнаулВодоканал» г.Янаул РБ","0271009046","027101001",null,null,"VO"]
[74,"2628","Республика Башкортостан","26453470","ООО \"Абзаково\"","0256014475","025601001",null,null,"VO"]
[75,"2628","Республика Башкортостан","28953962","ООО \"БАШЖИЛСТРОЙПРОЕКТ\"","0261020957","026101001","15-04-2015 00:00:00",null,"VO"]
[76,"2628","Республика Башкортостан","27666313","ООО \"Башкирская генерирующая компания\"","0277077282","997650001",null,null,"VO"]
[77,"2628","Республика Башкортостан","30942075","ООО \"Башнефть-Добыча\"","0277106840","025250001","01-01-2018 00:00:00",null,"VO"]
[78,"2628","Республика Башкортостан","26471913","ООО \"Белебеевский водоканал\"","0255014715","025501001",null,null,"VO"]
[79,"2628","Республика Башкортостан","27129520","ООО \"Верхнетатышлинские электрические сети, жилье и благоустройство\"","0243003892","024301001",null,null,"VO"]
[80,"2628","Республика Башкортостан","31020528","ООО \"Водоканал г. Туймазы\"","0269036490","026901001","28-12-2017 00:00:00",null,"VO"]
[81,"2628","Республика Башкортостан","31076837","ООО \"Водоканал с. Серафимовский\"","0269998106","026901001","10-04-2018 00:00:00",null,"VO"]
[82,"2628","Республика Башкортостан","30376832","ООО \"Водоканал\"","0263017332","026301001","09-12-2015 00:00:00",null,"VO"]
[83,"2628","Республика Башкортостан","26472379","ООО \"Водоканал\" Кармаскалинский район","0229010697","022901001",null,null,"VO"]
[84,"2628","Республика Башкортостан","26472462","ООО \"Водоканал\" Федоровский район","0247004343","024701001",null,null,"VO"]
[85,"2628","Республика Башкортостан","26472393","ООО \"Водоканал+Сервис\"","0232006965","023201001",null,null,"VO"]
[86,"2628","Республика Башкортостан","27129164","ООО \"Водолей\" Илишевского района","0225009394","022501001",null,null,"VO"]
[87,"2628","Республика Башкортостан","26472058","ООО \"Водосбыт\"","0267011620","026701001",null,null,"VO"]
[88,"2628","Республика Башкортостан","26471937","ООО \"Водхоз\" Благоварский район","0214005052","021401001","01-08-2017 00:00:00",null,"VO"]
[89,"2628","Республика Башкортостан","31064984","ООО \"Гранит\"","0240006920","024001001","29-03-2018 00:00:00",null,"VO"]
[90,"2628","Республика Башкортостан","26453634","ООО \"ЖКО-7\" город Нефтекамск","0264051777","026401001",null,null,"VO"]
[91,"2628","Республика Башкортостан","27182754","ООО \"ЖКХ С.МОСКОВО\"","0260012390","026001001",null,null,"VO"]
[92,"2628","Республика Башкортостан","26472008","ООО \"Жилкомсервис\"","0231007998","023101001",null,null,"VO"]
[93,"2628","Республика Башкортостан","26454731","ООО \"Жилсервис\" МР Абзелиловский район РБ","0201011034","020101001",null,null,"VO"]
[94,"2628","Республика Башкортостан","28871722","ООО \"Камводсервис\"","0231008342","023101001","19-01-2015 00:00:00",null,"VO"]
[95,"2628","Республика Башкортостан","26471842","ООО \"КомСервис\"","0204004807","020401001",null,null,"VO"]
[96,"2628","Республика Башкортостан","26472247","ООО \"Коммунальник\" (Калтасинский МР)","0227006208","022701001",null,null,"VO"]
[97,"2628","Республика Башкортостан","26353639","ООО \"Коммунальник\" Куюргазинский МР","0233006220","023301001",null,null,"VO"]
[98,"2628","Республика Башкортостан","26453971","ООО \"Коммунальник\" с.Прибельский МР Кармаскалинский район РБ","0229012038","022901001",null,null,"VO"]
[99,"2628","Республика Башкортостан","26540511","ООО \"Коммунальное хозяйство\"","0216006100","021601001","14-07-2010 00:00:00",null,"VO"]
[100,"2628","Республика Башкортостан","26472913","ООО \"Коммунальщик\" (Иглинский МР)","0224010750","022401001",null,null,"VO"]
[101,"2628","Республика Башкортостан","28464376","ООО \"Коммунальщик\" (Хайбуллинский МР)","0248005540","024801001","29-01-2014 00:00:00",null,"VO"]
[102,"2628","Республика Башкортостан","26454029","ООО \"Коммунальщик\" Салаватский район","0240804502","024001001",null,null,"VO"]
[103,"2628","Республика Башкортостан","28467602","ООО \"Компания КРУС\"","0276049941","027801001","06-02-2014 00:00:00",null,"VO"]
[104,"2628","Республика Башкортостан","26353631","ООО \"Краснохолмский водоканал\"","0227006695","022701001",null,null,"VO"]
[105,"2628","Республика Башкортостан","28942977","ООО \"Мелеузовский кирпичный завод\"","0263011387","026301001","01-01-2018 00:00:00",null,"VO"]
[106,"2628","Республика Башкортостан","26472412","ООО \"Мечетлинский водоканал\"","0236005391","023601001",null,null,"VO"]
[107,"2628","Республика Башкортостан","28950884","ООО \"ПАВЛОВКА-ВОДОКАНАЛ\"","0239005978","023901001","31-03-2015 00:00:00",null,"VO"]
[108,"2628","Республика Башкортостан","30838851","ООО \"ПКФ Промоборудование\"","0277070784","027701001",null,null,"VO"]
[109,"2628","Республика Башкортостан","27946617","ООО \"Павловка Водоканал Сервис\"","0239005689","023901001","08-11-2012 00:00:00",null,"VO"]
[110,"2628","Республика Башкортостан","27676834","ООО \"Первая Сетевая Компания\"","0268072425","026801001","17-04-2012 00:00:00",null,"VO"]
[111,"2628","Республика Башкортостан","28974612","ООО \"СК \"МИЛОВСКИЙ ПАРК\"","0276150349","027601001","25-05-2015 00:00:00",null,"VO"]
[112,"2628","Республика Башкортостан","26759549","ООО \"Сантехник\"","0249006593","024901001",null,null,"VO"]
[113,"2628","Республика Башкортостан","30958078","ООО \"Свежий ветер\"","0268078138","026801001","04-10-2017 00:00:00",null,"VO"]
[114,"2628","Республика Башкортостан","26472448","ООО \"Стерлибашевоводоканал\"","0241004555","024101001",null,null,"VO"]
[115,"2628","Республика Башкортостан","28422092","ООО \"СтройРемСервис+\"","0261019704","026101001","24-10-2013 00:00:00",null,"VO"]
[116,"2628","Республика Башкортостан","26453968","ООО \"Стройбытсервис\" МР Кармаскалинский район","0229010601","022901001",null,null,"VO"]
[117,"2628","Республика Башкортостан","26454236","ООО \"Стройресурсы\"","0245019785","024501001",null,null,"VO"]
[118,"2628","Республика Башкортостан","27634723","ООО \"Тепловодоканал\" Салаватский район","0240000389","024001001","28-02-2012 00:00:00",null,"VO"]
[119,"2628","Республика Башкортостан","26472450","ООО \"Туймазыводоканал\"","0269030971","026901001",null,null,"VO"]
[120,"2628","Республика Башкортостан","26766191","ООО \"УК ЖКХ\"","0242007975","024201001",null,null,"VO"]
[121,"2628","Республика Башкортостан","26472476","ООО \"УК Уфимское ЖКХ\"","0248006311","024801001",null,null,"VO"]
[122,"2628","Республика Башкортостан","26550657","ООО \"Управление Жилищно-Коммунального Хозяйства\"","0253018658","025301001",null,null,"VO"]
[123,"2628","Республика Башкортостан","26353708","ООО \"Уфимский фанерно-плитный комбинат\"","0275042076","027501001","15-07-2004 00:00:00",null,"VO"]
[124,"2628","Республика Башкортостан","26353659","ООО \"Чекмагушевское ПУЖКХ\"","0249006970","024901001",null,null,"VO"]
[125,"2628","Республика Башкортостан","26472492","ООО \"Чишмывода\"","0250012070","025001001",null,null,"VO"]
[126,"2628","Республика Башкортостан","30982937","ООО \"Эколайн\"","0263024530","026301001","01-01-2018 00:00:00",null,"VO"]
[127,"2628","Республика Башкортостан","31082673","ООО \"ЮМИЛ\"","0278933218","027801001","03-05-2018 00:00:00",null,"VO"]
[128,"2628","Республика Башкортостан","26761485","ООО «Башкирский текстильный комбинат»","0269031090","026901001","03-03-2010 00:00:00",null,"VO"]
[129,"2628","Республика Башкортостан","28005474","ООО «Башнефть – Сервис НПЗ»","0275075378","027501001","19-12-2012 00:00:00",null,"VO"]
[130,"2628","Республика Башкортостан","26758794","ООО «Водоканал» (Баймакский МР)","0254011302","025401001",null,null,"VO"]
[131,"2628","Республика Башкортостан","26761491","ООО «Жилкомстройсервис»","0269029736","026901001",null,null,"VO"]
[132,"2628","Республика Башкортостан","31208402","ООО «Новобулгаковская Управляющая компания»","0276923140","027601001",null,null,"VO"]
[133,"2628","Республика Башкортостан","26353644","ООО «Нуримановское ЖКХ»","0239005216","023901001",null,null,"VO"]
[134,"2628","Республика Башкортостан","26754415","ООО «ПромВодоКанал»","0266033685","026601001",null,null,"VO"]
[135,"2628","Республика Башкортостан","26453118","ООО ЖКХ \"Ургалинское\" МР Белокатайский район","0210027577","021001001",null,null,"VO"]
[136,"2628","Республика Башкортостан","26454242","ООО ЖКХ \"Шемяк\"","0245021015","024501001",null,null,"VO"]
[137,"2628","Республика Башкортостан","31007428","ООО ЖКХ с. Семилетка","0260011460","026001001","01-01-2018 00:00:00",null,"VO"]
[138,"2628","Республика Башкортостан","26353704","ООО КХ \"Авдон\"","0245019658","024501001",null,null,"VO"]
[139,"2628","Республика Башкортостан","26651697","ООО ПЖУ \"Нижегородское\"","0245012420","024501001",null,null,"VO"]
[140,"2628","Республика Башкортостан","28829119","ООО ПП \"ПРОМОБОРУДОВАНИЕ\"","0277086953","027701001","24-11-2014 00:00:00",null,"VO"]
[141,"2628","Республика Башкортостан","30873301","ООО САНАТОРИЙ \"АССЫ\"","0256996711","025601001","01-01-2018 00:00:00",null,"VO"]
[142,"2628","Республика Башкортостан","27687958","ООО Строй-Комфорт","0203003938","020301001","05-05-2012 00:00:00",null,"VO"]
[143,"2628","Республика Башкортостан","30839066","ООО УК \"Керамик\"","0260011808","026001001",null,null,"VO"]
[144,"2628","Республика Башкортостан","28501481","ООО УК \"КомУслугиУфимский\"","0248008005","024801001","18-04-2014 00:00:00",null,"VO"]
[145,"2628","Республика Башкортостан","28486251","ООО УК \"НовоБулгаково\"","0245025010","024501001","20-02-2014 00:00:00",null,"VO"]
[146,"2628","Республика Башкортостан","28487302","ООО УК \"Тукан\"","0256023511","027802001","25-02-2014 00:00:00",null,"VO"]
[147,"2628","Республика Башкортостан","31158329","ООО УК «Городская служба эксплуатации»","0274936480","027401001","10-07-2018 00:00:00",null,"VO"]
[148,"2628","Республика Башкортостан","26472452","ООО УПТК \"Водомонтажкомплект\"","0269019015","026901001",null,null,"VO"]
[149,"2628","Республика Башкортостан","26353710","ООО\"Алексеевское коммунальное управление\" МР Уфимский район РБ","0245019753","024501001",null,null,"VO"]
[150,"2628","Республика Башкортостан","30852176","ПАО АНК \"БАШНЕФТЬ\"","0274051582","997250001","13-01-1995 00:00:00",null,"VO"]
[151,"2628","Республика Башкортостан","28536502","Раевское МУП ПО МТО \"Агротехснаб\" Альшеевского района Республики Башкортостан","0202006277","020201001","27-06-2014 00:00:00",null,"VO"]
[152,"2628","Республика Башкортостан","26471897","СПК \"Малиновка\" Белебеевский МР","0209004127","025501001",null,null,"VO"]
[153,"2628","Республика Башкортостан","26353692","Сибайский филиал ОАО \"Учалинский ГОК\"","0270007455","026702001",null,null,"VO"]
[154,"2628","Республика Башкортостан","26841421","Туймазинское нефтепроводное управление - филиал АО \"Транснефть-Урал\"","0278039018","026902001",null,null,"VO"]
[155,"2628","Республика Башкортостан","30389381","Уфимское производственное отделение - филиал АО \"Транснефть-Урал\"","0278039018","027743001","18-01-2016 00:00:00",null,"VO"]
[156,"2628","Республика Башкортостан","30985819","ФГБОУ ВО \"УГАТУ\"","0274023747","027401001","22-05-2018 00:00:00",null,"VO"]
[157,"2628","Республика Башкортостан","26453060","ФГБУ санаторий \"Глуховская\" Минздрава России","0209001038","025501001",null,null,"VO"]
[158,"2628","Республика Башкортостан","26471890","ФГБУ санаторий им. С.Т. Аксакова Минздрава России","0255002773","025501001",null,null,"VO"]
[159,"2628","Республика Башкортостан","28829266","ФКП \"АВАНГАРД\"","0268005588","026801001","25-11-2014 00:00:00",null,"VO"]
[160,"2628","Республика Башкортостан","26922298","Федеральное государственное бюджетное учреждение санаторий \"Шафраново\" Министерства здравоохранения Российской Федерации","0202000395","020201001",null,null,"VO"]
[161,"2628","Республика Башкортостан","26851361","Филиал \"Екатеринбургский\" Акционерного общества \"Славянка\", г. Екатеринбург","7702707386","667143001",null,null,"VO"]
[162,"2628","Республика Башкортостан","31218722","Филиал ПАО АНК «Башнефть» «Башнефть-Уфанефтехим»","0274051582","027743004","12-11-2018 00:00:00",null,"VO"]
[163,"2628","Республика Башкортостан","30914574","Филиал ФГБУ \"ЦЖКУ\" МИНОБОРОНЫ РОССИИ (по ЦВО)","7729314745","667043001",null,null,"VO"]
[164,"2628","Республика Башкортостан","27300211","Чишминский сахарный завод","0250005763","025001001",null,null,"VO"]
[165,"2628","Республика Башкортостан","26360992","Южно-Уральская дирекция по тепловодоснабжению - структурное подразделение Центральной дирекции по тепловодоснабжению - филиала ОАО \"РЖД\"","7708503727","744945004","23-09-2003 00:00:00",null,"VO"]
[166,"2628","Республика Башкортостан","31041644","индивидуальный предприниматель Рамазанов Флюр Фатыхович  (ИП Рамазанов)","021203462830","отсутствует",null,null,"VO"]

{"sheet":"modClassifierValidate","index":40,"n_rows":0,"n_cols":0,"rows_kept":0,"cut":false,"hidden":true,"merged":[]}

{"sheet":"modProv","index":41,"n_rows":0,"n_cols":0,"rows_kept":0,"cut":false,"hidden":true,"merged":[]}

{"sheet":"modHyp","index":42,"n_rows":0,"n_cols":0,"rows_kept":0,"cut":false,"hidden":true,"merged":[]}

{"sheet":"modServiceModule","index":43,"n_rows":0,"n_cols":0,"rows_kept":0,"cut":false,"hidden":true,"merged":[]}

{"sheet":"modList01","index":44,"n_rows":0,"n_cols":0,"rows_kept":0,"cut":false,"hidden":true,"merged":[]}

{"sheet":"modList02","index":45,"n_rows":0,"n_cols":0,"rows_kept":0,"cut":false,"hidden":true,"merged":[]}

{"sheet":"modList03","index":46,"n_rows":0,"n_cols":0,"rows_kept":0,"cut":false,"hidden":true,"merged":[]}

{"sheet":"et_union_hor","index":47,"n_rows":298,"n_cols":61,"rows_kept":298,"cut":false,"hidden":true,"merged":[[115,14,115,21],[65,20,66,20],[116,14,116,21],[152,14,152,21],[119,19,120,19],[118,14,118,21],[149,14,149,21],[136,18,137,18],[132,14,132,21],[119,20,120,20],[130,14,130,21],[150,14,150,21],[119,17,120,17],[131,14,131,21],[133,14,133,21],[93,14,93,26],[79,14,79,21],[80,14,80,21],[119,18,120,18],[65,17,66,17],[147,14,147,21],[183,15,186,15],[148,14,148,21],[183,16,186,16],[168,14,171,14],[183,11,187,11],[183,12,187,12],[183,21,184,21],[168,19,170,19],[151,14,151,21],[153,19,154,19],[168,21,170,21],[183,20,185,20],[183,14,186,14],[183,18,185,18],[288,0,296,0],[292,2,294,2],[293,8,294,8],[168,13,172,13],[181,1,189,1],[253,7,254,7],[166,1,174,1],[183,8,187,8],[183,9,187,9],[183,13,186,13],[168,3,172,3],[180,0,190,0],[165,0,175,0],[291,1,295,1],[248,2,249,2],[253,2,254,2],[183,10,187,10],[168,10,172,10],[168,8,172,8],[168,9,172,9],[183,37,188,37],[153,20,154,20],[136,17,137,17],[153,17,154,17],[168,11,172,11],[153,18,154,18],[168,38,173,38],[168,25,169,25],[168,24,169,24],[168,20,170,20],[136,20,137,20],[168,18,170,18],[182,13,182,36],[168,16,171,16],[168,22,169,22],[181,13,181,36],[183,23,184,23],[183,17,185,17],[183,19,185,19],[168,15,171,15],[183,22,184,22],[168,12,172,12],[168,17,171,17],[168,23,169,23],[80,4,83,4],[63,3,68,3],[253,5,254,5],[253,6,254,6],[182,2,188,2],[167,2,173,2],[64,4,67,4],[248,3,249,3],[248,4,249,4],[183,3,187,3],[61,1,70,1],[62,2,69,2],[76,0,87,0],[77,1,86,1],[78,2,85,2],[28,0,39,0],[29,1,38,1],[30,2,37,2],[31,3,36,3],[32,4,35,4],[44,0,55,0],[48,4,51,4],[45,1,54,1],[46,2,53,2],[114,14,114,21],[97,24,98,24],[113,14,113,21],[49,22,51,22],[49,20,50,20],[97,23,98,23],[63,14,63,21],[64,14,64,21],[65,22,67,22],[65,19,66,19],[60,14,60,21],[61,14,61,21],[62,14,62,21],[47,3,52,3],[81,20,82,20],[77,14,77,21],[78,14,78,21],[60,0,71,0],[79,3,84,3],[33,57,35,57],[46,14,46,21],[47,14,47,21],[48,14,48,21],[49,13,50,13],[33,24,34,24],[33,25,34,25],[33,26,34,26],[33,27,34,27],[13,6,16,6],[24,22,26,22],[49,18,50,18],[33,17,34,17],[33,19,34,19],[48,9,51,9],[49,17,50,17],[32,9,35,9],[25,15,25,16],[8,11,9,11],[64,9,67,9],[25,14,26,14],[27,14,27,20],[33,13,34,13],[13,13,14,13],[8,4,11,4],[8,13,9,13],[8,10,10,10],[8,9,10,9],[8,5,11,5],[13,4,16,4],[13,8,15,8],[8,12,9,12],[13,5,16,5],[8,6,11,6],[31,8,36,8],[47,8,52,8],[8,7,10,7],[33,20,34,20],[24,20,26,20],[65,18,66,18],[44,14,44,21],[45,14,45,21],[8,3,11,3],[13,3,16,3],[33,18,34,18],[8,14,9,14],[24,17,25,19],[8,8,10,8],[13,7,15,7],[13,9,15,9],[151,8,156,8],[134,8,139,8],[117,8,122,8],[13,10,15,10],[49,19,50,19],[118,9,121,9],[152,9,155,9],[13,12,14,12],[13,14,14,14],[94,14,94,26],[81,17,82,17],[13,11,14,11],[24,14,24,16],[135,14,135,21],[92,14,92,26],[26,18,26,19],[199,24,200,24],[199,23,200,23],[199,22,200,22],[183,24,184,24],[199,21,200,21],[199,16,202,16],[199,20,201,20],[199,19,201,19],[199,17,201,17],[199,18,201,18],[65,13,66,13],[180,13,180,36],[63,8,68,8],[79,8,84,8],[81,18,82,18],[91,14,91,26],[99,23,100,23],[80,9,83,9],[96,8,102,8],[76,14,76,21],[81,22,83,22],[97,22,98,22],[99,25,100,25],[99,22,100,22],[99,24,100,24],[97,9,101,9],[97,25,98,25],[81,19,82,19],[165,13,165,37],[166,13,166,37],[167,13,167,37],[96,14,96,26],[135,9,138,9],[136,19,137,19],[33,52,34,52],[33,53,34,53],[33,54,34,54],[33,55,34,55],[28,14,28,56],[29,14,29,56],[30,14,30,56],[31,14,31,56],[32,14,32,56],[33,45,34,45],[33,46,34,46],[33,47,34,47],[33,48,34,48],[33,38,34,38],[33,39,34,39],[33,40,34,40],[33,41,34,41],[33,31,34,31],[33,32,34,32],[33,33,34,33],[33,34,34,34]]}
[]
["et_Comm"]
[]
[]
[]
[]
["et_List02(_1,_2,_3)"]
[]
[null,null,null,1,null,null,"нет",null,1,null,"нет",null,"1",null,"нет",null,"1"]
[null,null,null,null,null,null,null,null,null,null,null,null,null,null,null,null,null,"Добавить ЦС ВО для дифференциации"]
[null,null,null,null,null,null,null,null,null,null,null,null,null,"Добавить территорию для дифференциации"]
[]
[]
[null,null,null,null,null,null,null,null,1,null,"нет",null,"1",null,"нет",null,"1"]
[null,null,null,null,null,null,null,null,null,null,null,null,null,null,null,null,null,"Добавить ЦС ВО для дифференциации"]
[null,null,null,null,null,null,null,null,null,null,null,null,null,"Добавить территорию для дифференциации"]
[]
[]
["et_List06(_1,_2,_3)",null,"1"]
[]
[]
[]
[]
[]
[null,null,null,null,null,null,null,null,null,null,null,null,null,null,"Величина установленного тарифа",null,null,"Срок действия цены (тарифа) на тепловую энергию (мощность)",null,null,"Наличие других периодов действия тарифа"]
[null,null,null,null,null,null,null,null,null,null,null,null,null,null,"Одноставочный тариф, руб./Гкал","Двухставочный тариф"]
[null,null,null,null,null,null,null,null,null,null,null,null,null,null,null,"ставка за тепловую  энергию, руб./Гкал","ставка за содержание тепловой мощности, тыс.руб./Гкал/ч/мес","дата начала","дата окончания"]
[null,null,null,null,null,null,null,null,null,null,null,null,"7"]
[1,null,null,null,null,null,null,null,null,null,null,{"$f":"mergeValue(A29)","v":1},"Наименование тарифа",null,null,null,null,null,null,null,null,null,null,null,null,null,null,null,null,null,null,null,null,null,null,null,null,null,null,null,null,null,null,null,null,null,null,null,null,null,null,null,null,null,null,null,null,"Указывается наименование тарифа в случае утверждения нескольких тарифов.\nВ случае наличия нескольких тарифов информация по ним указывается в отдельных строках."]
[null,1,null,null,null,null,null,null,null,null,null,{"$f":"mergeValue(A30) &\".\"& mergeValue(B30)","v":"1.1"},"Территория действия тарифа",null,null,null,null,null,null,null,null,null,null,null,null,null,null,null,null,null,null,null,null,null,null,null,null,null,null,null,null,null,null,null,null,null,null,null,null,null,null,null,null,null,null,null,null,"Указывается наименование территории действия тарифа при наличии дифференциации тарифа по территориальному признаку.\nВ случае дифференциации тарифов по территориальному признаку информация по ним указывается в отдельных строках."]
[null,null,1,null,null,null,null,null,null,null,null,{"$f":"mergeValue(A31) &\".\"& mergeValue(B31)&\".\"& mergeValue(C31)","v":"1.1.1"},"Наименование централизованной системы водоотведения",null,null,null,null,null,null,null,null,null,null,null,null,null,null,null,null,null,null,null,null,null,null,null,null,null,null,null,null,null,null,null,null,null,null,null,null,null,null,null,null,null,null,null,null,"Указывается наименование централизованной системы водоотведения при наличии дифференциации тарифа по централизованным системам водоотведения.\nВ случае дифференциации тарифов по централизованным системам водоотведения информация по ним указывается в отдельных строках."]
[null,null,null,1,null,null,null,null,null,null,null,{"$f":"mergeValue(A32) &\".\"& mergeValue(B32)&\".\"& mergeValue(C32)&\".\"& mergeValue(D32)","v":"1.1.1.1"},"Наименование признака дифференциации",null,null,null,null,null,null,null,null,null,null,null,null,null,null,null,null,null,null,null,null,null,null,null,null,null,null,null,null,null,null,null,null,null,null,null,null,null,null,null,null,null,null,null,null,"Указывается наименование дополнительного признака дифференциации (при наличии).\nДифференциация тарифа осуществляется в соответствии с законодательством в сфере водоснабжении и водоотведении.\nВ случае дифференциации тарифов по дополнительным признакам информация по ним указывается в отдельных строках."]
[null,null,null,null,1,null,null,null,null,null,null,{"$f":"mergeValue(A33) &\".\"& mergeValue(B33)&\".\"& mergeValue(C33)&\".\"& mergeValue(D33)&\".\"& mergeValue(E33)","v":"1.1.1.1.1"},"Группа потребителей",null,null,null,null,null,null,null,null,null,null,null,null,null,null,null,null,null,null,null,null,null,null,null,null,null,null,null,null,null,null,null,null,null,null,null,null,null,null,null,null,null,null,null,null,"Указывается группа потребителей при наличии дифференциации тарифа по группам потребителей.\nЗначение выбирается из перечня: Организации-перепродавцы; Бюджетные организации; Население; Прочие; Без дифференциации.\nВ случае дифференциации тарифов группам потребителей информация по ним указывается в отдельных строках.",null,{"$f":"strCheckUnique(BI33:BI36)","v":""}]
[null,null,null,null,null,1,null,null,null,null,null,{"$f":"mergeValue(A34) &\".\"& mergeValue(B34)&\".\"& mergeValue(C34)&\".\"& mergeValue(D34)&\".\"& mergeValue(E34)&\".\"& mergeValue(F34)","v":"1.1.1.1.1.1"},null,null,null,null,null,null,"да",null,"да",null,null,null,null,"да",null,"да",null,null,null,null,"да",null,"да",null,null,null,null,"да",null,"да",null,null,null,null,"да",null,"да",null,null,null,null,"да",null,"нет",null,"В колонке «Параметр дифференциации тарифов» указывается значение дополнительного признака дифференциации.\nПри утверждении двухставочного тарифа колонка «Одноставочный тариф» не заполняется.\nПри утверждении одноставочного тарифа колонки в блоке «Двухставочный тариф» не заполняются.\nДаты начала и окончания действия тарифов указываются в виде «ДД.ММ.ГГГГ».\nВ случае отсутствия даты окончания действия тарифа в колонке «Дата окончания» указывается «Нет».\nВ случае наличия нескольких значений признака дифференциации тарифов информация по ним указывается в отдельных строках.\nВ случае дифференциации тарифов по периодам действия тарифа информация по ним указывается в отдельных колонках.",{"$f":"strCheckDate(O35:BE35)","v":""},null,{"$f":"IF(M34=\"\",\"\",M34 )","v":""}]
[null,null,null,null,null,null,null,null,null,null,null,null,null,null,null,null,{"$f":"R34 & \"-\" & T34","v":"-"},null,null,null,null,null,null,{"$f":"Y34 & \"-\" & AA34","v":"-"},null,null,null,null,null,null,{"$f":"AF34 & \"-\" & AH34","v":"-"},null,null,null,null,null,null,{"$f":"AM34 & \"-\" & AO34","v":"-"},null,null,null,null,null,null,{"$f":"AT34 & \"-\" & AV34","v":"-"},null,null,null,null,null,null,{"$f":"BA34 & \"-\" & BC34","v":"-"}]
[null,null,null,null,null,null,null,null,null,null,null,null,"Добавить значение признака дифференциации"]
[null,null,null,null,null,null,null,null,null,null,null,null,"Добавить группу потребителей"]
[null,null,null,null,null,null,null,null,null,null,null,null,"Добавить наименование признака дифференциации"]
[null,null,null,null,null,null,null,null,null,null,null,null,"Добавить наименование системы водоотведения"]
[null,null,null,null,null,null,null,null,null,null,null,null,"Добавить территорию действия тарифа"]
[null,null,null,null,null,null,null,null,null,null,null,null,"Добавить наименование тарифа"]
[]
["et_List06(_1,_2,_3)",null,"2"]
[]
[1,null,null,null,null,null,null,null,null,null,null,{"$f":"mergeValue(A45)","v":1},"Наименование тарифа",null,null,null,null,null,null,null,null,null,"Указывается наименование тарифа в случае утверждения нескольких тарифов.\nВ случае наличия нескольких тарифов информация по ним указывается в отдельных строках."]
[null,1,null,null,null,null,null,null,null,null,null,{"$f":"mergeValue(A46) &\".\"& mergeValue(B46)","v":"1.1"},"Территория действия тарифа",null,null,null,null,null,null,null,null,null,"Указывается наименование территории действия тарифа при наличии дифференциации тарифа по территориальному признаку.\nВ случае дифференциации тарифов по территориальному признаку информация по ним указывается в отдельных строках."]
[null,null,1,null,null,null,null,null,null,null,null,{"$f":"mergeValue(A47) &\".\"& mergeValue(B47)&\".\"& mergeValue(C47)","v":"1.1.1"},"Наименование централизованной системы водоотведения",null,null,null,null,null,null,null,null,null,"Указывается наименование централизованной системы водоотведения при наличии дифференциации тарифа по централизованным системам водоотведения.\nВ случае дифференциации тарифов по централизованным системам водоотведения информация по ним указывается в отдельных строках."]
[null,null,null,1,null,null,null,null,null,null,null,{"$f":"mergeValue(A48) &\".\"& mergeValue(B48)&\".\"& mergeValue(C48)&\".\"& mergeValue(D48)","v":"1.1.1.1"},"Наименование признака дифференциации",null,null,null,null,null,null,null,null,null,"Указывается наименование дополнительного признака дифференциации (при наличии).\nДифференциация тарифа осуществляется в соответствии с законодательством в сфере водоснабжении и водоотведении.\nВ случае дифференциации тарифов по дополнительным признакам информация по ним указывается в отдельных строках."]
[null,null,null,null,1,null,null,null,null,null,null,{"$f":"mergeValue(A49) &\".\"& mergeValue(B49)&\".\"& mergeValue(C49)&\".\"& mergeValue(D49)&\".\"& mergeValue(E49)","v":"1.1.1.1.1"},"Группа потребителей",null,null,null,null,null,null,null,null,null,"Указывается группа потребителей при наличии дифференциации тарифа по группам потребителей.\nЗначение выбирается из перечня: Организации-перепродавцы; Бюджетные организации; Население; Прочие; Без дифференциации.\nВ случае дифференциации тарифов группам потребителей информация по ним указывается в отдельных строках.",null,{"$f":"strCheckUnique(Z49:Z52)","v":""}]
[null,null,null,null,null,1,null,null,null,null,null,{"$f":"mergeValue(A50) &\".\"& mergeValue(B50)&\".\"& mergeValue(C50)&\".\"& mergeValue(D50)&\".\"& mergeValue(E50)&\".\"& mergeValue(F50)","v":"1.1.1.1.1.1"},null,null,null,null,null,null,"да",null,"нет",null,"В колонке «Параметр дифференциации тарифов» указывается значение дополнительного признака дифференциации.\nПри утверждении двухставочного тарифа колонка «Одноставочный тариф» не заполняется.\nПри утверждении одноставочного тарифа колонки в блоке «Двухставочный тариф» не заполняются.\nДаты начала и окончания действия тарифов указываются в виде «ДД.ММ.ГГГГ».\nВ случае отсутствия даты окончания действия тарифа в колонке «Дата окончания» указывается «Нет».\nВ случае наличия нескольких значений признака дифференциации тарифов информация по ним указывается в отдельных строках.\nВ случае дифференциации тарифов по периодам действия тарифа информация по ним указывается в отдельных колонках.",{"$f":"strCheckDate(O51:V51)","v":""},null,{"$f":"IF(M50=\"\",\"\",M50 )","v":""}]
[null,null,null,null,null,null,null,null,null,null,null,null,null,null,null,null,{"$f":"R50 & \"-\" & T50","v":"-"}]
[null,null,null,null,null,null,null,null,null,null,null,null,"Добавить значение признака дифференциации"]
[null,null,null,null,null,null,null,null,null,null,null,null,"Добавить группу потребителей"]
[null,null,null,null,null,null,null,null,null,null,null,null,"Добавить наименование признака дифференциации"]
[null,null,null,null,null,null,null,null,null,null,null,null,"Добавить наименование системы водоотведения"]
[null,null,null,null,null,null,null,null,null,null,null,null,"Добавить территорию действия тарифа"]
[null,null,null,null,null,null,null,null,null,null,null,null,"Добавить наименование тарифа"]
[]
["et_List06(_1,_2,_3)",null,"3"]
[]
[1,null,null,null,null,null,null,null,null,null,null,{"$f":"mergeValue(A61)","v":1},"Наименование тарифа",null,null,null,null,null,null,null,null,null,"Указывается наименование тарифа в случае утверждения нескольких тарифов.\nВ случае наличия нескольких тарифов информация по ним указывается в отдельных строках."]
[null,1,null,null,null,null,null,null,null,null,null,{"$f":"mergeValue(A62) &\".\"& mergeValue(B62)","v":"1.1"},"Территория действия тарифа",null,null,null,null,null,null,null,null,null,"Указывается наименование территории действия тарифа при наличии дифференциации тарифа по территориальному признаку.\nВ случае дифференциации тарифов по территориальному признаку информация по ним указывается в отдельных строках."]
[null,null,1,null,null,null,null,null,null,null,null,{"$f":"mergeValue(A63) &\".\"& mergeValue(B63)&\".\"& mergeValue(C63)","v":"1.1.1"},"Наименование централизованной системы водоотведения",null,null,null,null,null,null,null,null,null,"Указывается наименование централизованной системы водоотведения при наличии дифференциации тарифа по централизованным системам водоотведения.\nВ случае дифференциации тарифов по централизованным системам водоотведения информация по ним указывается в отдельных строках."]
[null,null,null,1,null,null,null,null,null,null,null,{"$f":"mergeValue(A64) &\".\"& mergeValue(B64)&\".\"& mergeValue(C64)&\".\"& mergeValue(D64)","v":"1.1.1.1"},"Наименование признака дифференциации",null,null,null,null,null,null,null,null,null,"Указывается наименование дополнительного признака дифференциации (при наличии).\nДифференциация тарифа осуществляется в соответствии с законодательством в сфере водоснабжении и водоотведении.\nВ случае дифференциации тарифов по дополнительным признакам информация по ним указывается в отдельных строках."]
[null,null,null,null,1,null,null,null,null,null,null,{"$f":"mergeValue(A65) &\".\"& mergeValue(B65)&\".\"& mergeValue(C65)&\".\"& mergeValue(D65)&\".\"& mergeValue(E65)","v":"1.1.1.1.1"},"Группа потребителей",null,null,null,null,null,null,null,null,null,"Указывается группа потребителей при наличии дифференциации тарифа по группам потребителей.\nЗначение выбирается из перечня: Организации-перепродавцы; Бюджетные организации; Население; Прочие; Без дифференциации.\nВ случае дифференциации тарифов группам потребителей информация по ним указывается в отдельных строках.",null,{"$f":"strCheckUnique(Z65:Z68)","v":""}]
[null,null,null,null,null,1,null,null,null,null,null,{"$f":"mergeValue(A66) &\".\"& mergeValue(B66)&\".\"& mergeValue(C66)&\".\"& mergeValue(D66)&\".\"& mergeValue(E66)&\".\"& mergeValue(F66)","v":"1.1.1.1.1.1"},null,null,null,null,null,null,"да",null,"нет",null,"В колонке «Параметр дифференциации тарифов» указывается значение дополнительного признака дифференциации.\nПри утверждении двухставочного тарифа колонка «Одноставочный тариф» не заполняется.\nПри утверждении одноставочного тарифа колонки в блоке «Двухставочный тариф» не заполняются.\nДаты начала и окончания действия тарифов указываются в виде «ДД.ММ.ГГГГ».\nВ случае отсутствия даты окончания действия тарифа в колонке «Дата окончания» указывается «Нет».\nВ случае наличия нескольких значений признака дифференциации тарифов информация по ним указывается в отдельных строках.\nВ случае дифференциации тарифов по периодам действия тарифа информация по ним указывается в отдельных колонках.",{"$f":"strCheckDate(O67:V67)","v":""},null,{"$f":"IF(M66=\"\",\"\",M66 )","v":""}]
[null,null,null,null,null,null,null,null,null,null,null,null,null,null,null,null,{"$f":"R66 & \"-\" & T66","v":"-"}]
[null,null,null,null,null,null,null,null,null,null,null,null,"Добавить значение признака дифференциации"]
[null,null,null,null,null,null,null,null,null,null,null,null,"Добавить группу потребителей"]
[null,null,null,null,null,null,null,null,null,null,null,null,"Добавить наименование признака дифференциации"]
[null,null,null,null,null,null,null,null,null,null,null,null,"Добавить наименование системы водоотведения"]
[null,null,null,null,null,null,null,null,null,null,null,null,"Добавить территорию действия тарифа"]
[null,null,null,null,null,null,null,null,null,null,null,null,"Добавить наименование тарифа"]
[]
["et_List06(_1,_2,_3)",null,"4"]
[]
[1,null,null,null,null,null,null,null,null,null,null,{"$f":"mergeValue(A77)","v":1},"Наименование тарифа",null,null,null,null,null,null,null,null,null,"Указывается наименование тарифа в случае утверждения нескольких тарифов.\nВ случае наличия нескольких тарифов информация по ним указывается в отдельных строках."]
[null,1,null,null,null,null,null,null,null,null,null,{"$f":"mergeValue(A78) &\".\"& mergeValue(B78)","v":"1.1"},"Территория действия тарифа",null,null,null,null,null,null,null,null,null,"Указывается наименование территории действия тарифа при наличии дифференциации тарифа по территориальному признаку.\nВ случае дифференциации тарифов по территориальному признаку информация по ним указывается в отдельных строках."]
[null,null,1,null,null,null,null,null,null,null,null,{"$f":"mergeValue(A79) &\".\"& mergeValue(B79)&\".\"& mergeValue(C79)","v":"1.1.1"},"Наименование централизованной системы водоотведения",null,null,null,null,null,null,null,null,null,"Указывается наименование централизованной системы водоотведения при наличии дифференциации тарифа по централизованным системам водоотведения.\nВ случае дифференциации тарифов по централизованным системам водоотведения информация по ним указывается в отдельных строках."]
[null,null,null,1,null,null,null,null,null,null,null,{"$f":"mergeValue(A80) &\".\"& mergeValue(B80)&\".\"& mergeValue(C80)&\".\"& mergeValue(D80)","v":"1.1.1.1"},"Наименование признака дифференциации",null,null,null,null,null,null,null,null,null,"Указывается наименование дополнительного признака дифференциации (при наличии).\nДифференциация тарифа осуществляется в соответствии с законодательством в сфере водоснабжении и водоотведении.\nВ случае дифференциации тарифов по дополнительным признакам информация по ним указывается в отдельных строках."]
[null,null,null,null,1,null,null,null,null,null,null,{"$f":"mergeValue(A81) &\".\"& mergeValue(B81)&\".\"& mergeValue(C81)&\".\"& mergeValue(D81)&\".\"& mergeValue(E81)","v":"1.1.1.1.1"},"Группа потребителей",null,null,null,null,null,null,null,null,null,"Указывается группа потребителей при наличии дифференциации тарифа по группам потребителей.\nЗначение выбирается из перечня: Организации-перепродавцы; Бюджетные организации; Население; Прочие; Без дифференциации.\nВ случае дифференциации тарифов группам потребителей информация по ним указывается в отдельных строках.",null,{"$f":"strCheckUnique(Z81:Z84)","v":""}]
[null,null,null,null,null,1,null,null,null,null,null,{"$f":"mergeValue(A82) &\".\"& mergeValue(B82)&\".\"& mergeValue(C82)&\".\"& mergeValue(D82)&\".\"& mergeValue(E82)&\".\"& mergeValue(F82)","v":"1.1.1.1.1.1"},null,null,null,null,null,null,"да",null,"нет",null,"В колонке «Параметр дифференциации тарифов» указывается значение дополнительного признака дифференциации.\nПри утверждении двухставочного тарифа колонка «Одноставочный тариф» не заполняется.\nПри утверждении одноставочного тарифа колонки в блоке «Двухставочный тариф» не заполняются.\nДаты начала и окончания действия тарифов указываются в виде «ДД.ММ.ГГГГ».\nВ случае отсутствия даты окончания действия тарифа в колонке «Дата окончания» указывается «Нет».\nВ случае наличия нескольких значений признака дифференциации тарифов информация по ним указывается в отдельных строках.\nВ случае дифференциации тарифов по периодам действия тарифа информация по ним указывается в отдельных колонках.",{"$f":"strCheckDate(O83:V83)","v":""},null,{"$f":"IF(M82=\"\",\"\",M82 )","v":""}]
[null,null,null,null,null,null,null,null,null,null,null,null,null,null,null,null,{"$f":"R82 & \"-\" & T82","v":"-"}]
[null,null,null,null,null,null,null,null,null,null,null,null,"Добавить значение признака дифференциации"]
[null,null,null,null,null,null,null,null,null,null,null,null,"Добавить группу потребителей"]
[null,null,null,null,null,null,null,null,null,null,null,null,"Добавить наименование признака дифференциации"]
[null,null,null,null,null,null,null,null,null,null,null,null,"Добавить наименование системы водоотведения"]
[null,null,null,null,null,null,null,null,null,null,null,null,"Добавить территорию действия тарифа"]
[null,null,null,null,null,null,null,null,null,null,null,null,"Добавить наименование тарифа"]
[null,null,null,null,null,null,"et_List06(_1,_2,_3)",null,"5"]
[]
[null,null,null,null,null,null,null,null,null,null,null,"1","Наименование тарифа"]
[null,null,null,null,null,null,null,null,null,null,null,"1.1","Территория действия тарифа"]
[null,null,null,null,null,null,null,null,null,null,null,"1.1.1","Наименование системы теплоснабжения "]
[null,null,null,null,null,null,null,null,null,null,null,"1.1.1.1","Источник тепловой энергии  "]
[]
[null,null,null,null,null,null,null,null,null,null,null,"1.1.1.1.1.1","Группа потребителей",null,null,null,null,null,null,null,null,null,null,null,null,null,null,null,null,{"$f":"strCheckUnique(AE97:AE103)","v":""}]
[null,null,null,null,null,null,null,1,null,null,null,null,null,null,null,null,null,null,null,null,null,{"$f":"W98 & \"-\" & Y98","v":"-"},null,"да",null,"нет",null,null,{"$f":"strCheckDate(O98:AA98)","v":""},null,{"$f":"IF(M98=\"\",\"\",M98 )","v":""}]
[null,null,null,null,null,null,null,null,null,null,null,null,null,null,null,null,null,null,null,null,null,null,null,null,null,null,null,null,null,null,null,{"$f":"OFFSET(AF99,-1,0)","v":0}]
[null,null,null,null,null,null,null,null,null,null,null,null,null,null,null,null,null,null,null,null,null,{"$f":"W100 & \"-\" & Y100","v":"-"},null,"да",null,"нет",null,null,{"$f":"strCheckDate(O100:AA100)","v":""}]
[null,null,null,null,null,null,null,null,null,null,null,null,null,null,null,null,null,null,null,null,null,null,null,null,null,null,null,null,null,null,null,{"$f":"OFFSET(AF101,-1,0)","v":0}]
[null,null,null,null,null,null,null,null,null,null,null,null,"Добавить поставщика"]
[null,null,null,null,null,null,null,null,null,null,null,null,"Добавить вид теплоносителя (параметры теплоносителя)"]
[null,null,null,null,null,null,null,null,null,null,null,null,"Добавить группу потребителей"]
[]
[null,null,null,null,null,null,null,null,null,null,null,null,"Добавить источник тепловой энергии"]
[null,null,null,null,null,null,null,null,null,null,null,null,"Добавить наименование системы теплоснабжения"]
[null,null,null,null,null,null,null,null,null,null,null,null,"Добавить территорию действия тарифа"]
[null,null,null,null,null,null,null,null,null,null,null,null,null,null,null,null,null,null,null,null,null,null,null,"да",null,"нет"]
[]
[]
[null,null,null,null,null,null,"et_List06(_1,_2,_3)",null,"6"]
[]
[null,null,null,null,null,null,null,null,null,null,null,"1","Наименование тарифа"]
[null,null,null,null,null,null,null,null,null,null,null,"1.1","Территория действия тарифа"]
[null,null,null,null,null,null,null,null,null,null,null,"1.1.1","Наименование системы теплоснабжения "]
[null,null,null,null,null,null,null,null,null,null,null,"1.1.1.1","Источник тепловой энергии  "]
[]
[null,null,null,null,null,null,null,null,null,null,null,"1.1.1.1.1.1","Группа потребителей",null,null,null,null,null,null,null,null,null,null,null,{"$f":"strCheckUnique(Z119:Z122)","v":""}]
[null,null,null,null,null,null,null,1,null,null,null,null,null,null,null,null,null,null,"да",null,"нет",null,null,{"$f":"strCheckDate(O121:V121)","v":""},null,{"$f":"IF(M120=\"\",\"\",M120 )","v":""}]
[null,null,null,null,null,null,null,null,null,null,null,null,null,null,null,null,{"$f":"R120 & \"-\" & T120","v":"-"}]
[null,null,null,null,null,null,null,null,null,null,null,null,"Добавить вид теплоносителя (параметры теплоносителя)"]
[null,null,null,null,null,null,null,null,null,null,null,null,"Добавить группу потребителей"]
[]
[null,null,null,null,null,null,null,null,null,null,null,null,"Добавить источник тепловой энергии"]
[null,null,null,null,null,null,null,null,null,null,null,null,"Добавить наименование системы теплоснабжения"]
[null,null,null,null,null,null,null,null,null,null,null,null,"Добавить территорию действия тарифа"]
[]
[null,null,null,null,null,null,"et_List06(_1,_2,_3)",null,"7"]
[]
[null,null,null,null,null,null,null,null,null,null,null,"1","Наименование тарифа"]
[null,null,null,null,null,null,null,null,null,null,null,"1.1","Территория действия тарифа"]
[null,null,null,null,null,null,null,null,null,null,null,"1.1.1","Наименование системы теплоснабжения "]
[null,null,null,null,null,null,null,null,null,null,null,"1.1.1.1","Источник тепловой энергии  "]
[]
[null,null,null,null,null,null,null,null,null,null,null,"1.1.1.1.1.1","Группа потребителей",null,null,null,null,null,null,null,null,null,null,null,{"$f":"strCheckUnique(Z136:Z139)","v":""}]
[null,null,null,null,null,null,null,1,null,null,null,null,null,null,null,null,null,null,"да",null,"нет",null,null,{"$f":"strCheckDate(O138:V138)","v":""},null,{"$f":"IF(M137=\"\",\"\",M137 )","v":""}]
[null,null,null,null,null,null,null,null,null,null,null,null,null,null,null,null,{"$f":"R137 & \"-\" & T137","v":"-"}]
[null,null,null,null,null,null,null,null,null,null,null,null,"Добавить вид теплоносителя (параметры теплоносителя)"]
[null,null,null,null,null,null,null,null,null,null,null,null,"Добавить группу потребителей"]
[]
[null,null,null,null,null,null,null,null,null,null,null,null,"Добавить источник тепловой энергии"]
[null,null,null,null,null,null,null,null,null,null,null,null,"Добавить наименование системы теплоснабжения"]
[null,null,null,null,null,null,null,null,null,null,null,null,"Добавить территорию действия тарифа"]
[]
[null,null,null,null,null,null,"et_List06(_1,_2,_3)",null,"8"]
[]
[null,null,null,null,null,null,null,null,null,null,null,"1","Наименование тарифа"]
[null,null,null,null,null,null,null,null,null,null,null,"1.1","Территория действия тарифа"]
[null,null,null,null,null,null,null,null,null,null,null,"1.1.1","Наименование системы теплоснабжения "]
[null,null,null,null,null,null,null,null,null,null,null,"1.1.1.1","Источник тепловой энергии  "]
[null,null,null,null,null,null,null,null,null,null,null,"1.1.1.1.1","Схема подключения теплопотребляющей установки к коллектору источника тепловой энергии"]
[null,null,null,null,null,null,null,null,null,null,null,"1.1.1.1.1.1","Группа потребителей",null,null,null,null,null,null,null,null,null,null,null,{"$f":"strCheckUnique(Z153:Z156)","v":""}]
[null,null,null,null,null,null,null,1,null,null,null,null,null,null,null,null,null,null,"да",null,"нет",null,null,{"$f":"strCheckDate(O155:V155)","v":""},null,{"$f":"IF(M154=\"\",\"\",M154 )","v":""}]
[null,null,null,null,null,null,null,null,null,null,null,null,null,null,null,null,{"$f":"R154 & \"-\" & T154","v":"-"}]
[null,null,null,null,null,null,null,null,null,null,null,null,"Добавить вид теплоносителя (параметры теплоносителя)"]
[null,null,null,null,null,null,null,null,null,null,null,null,"Добавить группу потребителей"]
[null,null,null,null,null,null,null,null,null,null,null,null,"Добавить схему подключения"]
[null,null,null,null,null,null,null,null,null,null,null,null,"Добавить источник тепловой энергии"]
[null,null,null,null,null,null,null,null,null,null,null,null,"Добавить наименование системы теплоснабжения"]
[null,null,null,null,null,null,null,null,null,null,null,null,"Добавить территорию действия тарифа"]
[]
["et_List06(_1,_2,_3)",null,"9"]
[]
[]
[1,null,null,null,null,null,null,null,null,null,null,{"$f":"mergeValue(A166)","v":1},"Наименование тарифа",null,null,null,null,null,null,null,null,null,null,null,null,null,null,null,null,null,null,null,null,null,null,null,null,null,"Указывается наименование тарифа в случае утверждения нескольких тарифов.\nВ случае наличия нескольких тарифов информация по ним указывается в отдельных строках."]
[null,1,null,null,null,null,null,null,null,null,null,{"$f":"mergeValue(A167) &\".\"& mergeValue(B167)","v":"1.1"},"Территория действия тарифа",null,null,null,null,null,null,null,null,null,null,null,null,null,null,null,null,null,null,null,null,null,null,null,null,null,"Указывается наименование территории действия тарифа при наличии дифференциации тарифа по территориальному признаку.\nВ случае дифференциации тарифов по территориальному признаку информация по ним указывается в отдельных строках."]
[null,null,1,null,null,null,null,null,null,null,null,{"$f":"mergeValue(A168) &\".\"& mergeValue(B168)&\".\"& mergeValue(C168)","v":"1.1.1"},"Наименование централизованной системы водоотведения",null,null,null,null,null,null,null,null,null,null,null,null,null,null,null,null,null,null,null,null,null,null,null,null,null,"Указывается наименование централизованной системы водоотведения при наличии дифференциации тарифа по централизованным системам водоотведения.\nВ случае дифференциации тарифов по централизованным системам водоотведения информация по ним указывается в отдельных строках."]
[null,null,null,1,null,null,null,null,null,null,null,{"$f":"mergeValue(A169) &\".\"& mergeValue(B169)&\".\"& mergeValue(C169)&\".\"& mergeValue(D169)","v":"1.1.1.1"},null,"да",null,"1",null,"нет",null,1,null,"нет",null,1,null,"нет",null,1,null,null,null,null,null,null,"да",null,"нет",null,"В колодке «Параметр дифференциации тарифа/Заявитель» указывается наименование категории потребителей, к которой относится тариф.\nДаты начала и окончания указываются в виде «ДД.ММ.ГГГГ».\nВ случае отсутствия даты окончания тарифа в колонке «Дата окончания» указывается «Нет».\nВ случае наличия дифференциации по подключаемой нагрузке, диапазону диаметров, протяженности, условиям прокладки канализационной сети информация по ним указывается в отдельных строках.\nВ случае дифференциации тарифов по периодам действия тарифа информация по ним указывается в отдельных колонках.",{"$f":"strCheckDateOnDP(AD169:AL169,List06_9_DP)","v":""},{"$f":"IF(AND(COUNTIF(AP165:AP165,AP169)>1,AP169<>\"\"),\"ErrUnique:HasDoubleConn\",\"\")","v":""}]
[null,null,null,null,null,null,null,null,null,null,null,null,null,null,null,null,null,null,null,null,null,null,null,null,null,null,null,null,null,null,null,null,{"$f":"AH169 & \"-\" & AJ169","v":"-"},null,null,null,"нет"]
[]
[]
[null,null,null,null,null,null,null,null,null,null,null,null,null,null,null,null,"Добавить подключаемую нагрузку"]
[null,null,null,null,null,null,null,null,null,null,null,null,"Добавить строку"]
[null,null,null,null,null,null,null,null,null,null,null,null,"Добавить наименование системы водоотведения"]
[null,null,null,null,null,null,null,null,null,null,null,null,"Добавить территорию действия тарифа"]
[null,null,null,null,null,null,null,null,null,null,null,null,"Добавить наименование тарифа"]
[]
["et_List06(_1,_2,_3)",null,"10"]
[]
[1,null,null,null,null,null,null,null,null,null,null,{"$f":"mergeValue(A181)","v":1},"Наименование тарифа",null,null,null,null,null,null,null,null,null,null,null,null,null,null,null,null,null,null,null,null,null,null,null,null,"Указывается наименование тарифа в случае утверждения нескольких тарифов.\nВ случае наличия нескольких тарифов информация по ним указывается в отдельных строках."]
[null,1,null,null,null,null,null,null,null,null,null,{"$f":"mergeValue(A182) &\".\"& mergeValue(B182)","v":"1.1"},"Территория действия тарифа",null,null,null,null,null,null,null,null,null,null,null,null,null,null,null,null,null,null,null,null,null,null,null,null,"Указывается наименование территории действия тарифа при наличии дифференциации тарифа по территориальному признаку.\nВ случае дифференциации тарифов по территориальному признаку информация по ним указывается в отдельных строках."]
[null,null,1,null,null,null,null,null,null,null,null,{"$f":"mergeValue(A183) &\".\"& mergeValue(B183)&\".\"& mergeValue(C183)","v":"1.1.1"},"Наименование централизованной системы водоотведения",null,null,null,null,null,null,null,null,null,null,null,null,null,null,null,null,null,null,null,null,null,null,null,null,"Указывается наименование централизованной системы водоотведения при наличии дифференциации тарифа по централизованным системам водоотведения.\nВ случае дифференциации тарифов по централизованным системам водоотведения информация по ним указывается в отдельных строках."]
[null,null,null,1,null,null,null,null,null,null,null,{"$f":"mergeValue(A184) &\".\"& mergeValue(B184)&\".\"& mergeValue(C184)&\".\"& mergeValue(D184)","v":"1.1.1.1"},null,null,"1",null,"нет",null,1,null,"нет",null,"1",null,"нет",null,1,null,null,null,null,null,null,"да",null,"нет",null,"В колодке «Параметр дифференциации тарифа/Заявитель» указывается наименование категории потребителей, к которой относится тариф.\nДаты начала и окончания указываются в виде «ДД.ММ.ГГГГ».\nВ случае отсутствия даты окончания тарифа в колонке «Дата окончания» указывается «Нет».\nВ случае наличия дифференциации по подключаемой нагрузке, диапазону диаметров, протяженности, условиям прокладки канализационной сети информация по ним указывается в отдельных строках.\nВ случае дифференциации тарифов по периодам действия тарифа информация по ним указывается в отдельных колонках.",{"$f":"strCheckDateOnDP(AC184:AK184,List06_10_DP)","v":""},{"$f":"IF(AND(COUNTIF(AO180:AO180,AO184)>1,AO184<>\"\"),\"ErrUnique:HasDoubleConn\",\"\")","v":""}]
[null,null,null,null,null,null,null,null,null,null,null,null,null,null,null,null,null,null,null,null,null,null,null,null,null,null,null,null,null,null,null,{"$f":"AG184 & \"-\" & AI184","v":"-"},null,null,null,"нет"]
[]
[]
[null,null,null,null,null,null,null,null,null,null,null,null,null,null,null,"Добавить подключаемую нагрузку"]
[null,null,null,null,null,null,null,null,null,null,null,null,"Добавить строку"]
[null,null,null,null,null,null,null,null,null,null,null,null,"Добавить наименование системы водоотведения"]
[null,null,null,null,null,null,null,null,null,null,null,null,"Добавить территорию действия тарифа"]
[null,null,null,null,null,null,null,null,null,null,null,null,"Добавить наименование тарифа"]
[]
[]
[]
[]
[]
[]
[]
[null,null,null,null,null,null,null,null,null,null,null,null,null,null,null,null,"нет",null,1,null,"да",null,1,null,"да",null,1]
[null,null,null,null,null,null,null,null,null,null,null,null,null,null,null,null,null,null,null,null,null,null,null,null,null,null,null,"Добавить условия прокладки сетей"]
[null,null,null,null,null,null,null,null,null,null,null,null,null,null,null,null,null,null,null,null,null,null,null,"Добавить протяженность канализационной сети"]
[]
[]
[]
["et_List07"]
[]
[]
[]
["et_List06"]
[]
[null,null,null,null,1]
[]
["et_List07"]
[]
[null,null,null,null,"1"]
[]
["et_List08"]
[]
[null,null,null,null,"1"]
[]
["et_List00_01","et_List00_02","et_List00_03"]
[]
[null,null,null,null,null,"Адрес регулируемой организации"]
[null,null,null,null,"Юридический адрес"]
[null,null,null,null,"Почтовый адрес"]
[]
[null,null,null,null,null,"Руководитель"]
[null,null,null,null,"Фамилия, имя, отчество"]
[null,null,null,null,"(код) номер телефона"]
[]
[null,null,null,null,null,"Главный бухгалтер"]
[null,null,null,null,"Фамилия, имя, отчество"]
[null,null,null,null,"(код) номер телефона"]
[]
[null,null,null,null,null,"Должностное лицо, ответственное за составление формы"]
[null,null,null,null,"Фамилия, имя, отчество"]
[null,null,null,null,"Должность"]
[null,null,null,null,"(код) номер телефона"]
[null,null,null,null,"e-mail"]
[]
["et_List03"]
[]
["3","",null,null,null,"","","",null,null,null,null,{"$f":"IF(ISERROR(INDEX(kind_of_nameforms,MATCH(E244,kind_of_forms,0),1)),\"\",INDEX(kind_of_nameforms,MATCH(E244,kind_of_forms,0),1))","v":""}]
[]
[]
["et_List01_0"]
[]
[null,"auto",null,1,null,null,0,null,null,"0",null,null,{"$f":"mergeValue(H249)","v":0},null,null,{"$f":"IF(ISERROR(MATCH(Q249,MODesc,0)),\"n\",\"y\")","v":"n"},null,{"$f":"K249&\"(\"&L249&\")\"","v":"()"}]
[null,null,null,null,null,null,null,"Добавить МР"]
[]
["et_List01_1"]
[]
[null,"auto",null,null,null,null,0,null,null,"0",null,null,{"$f":"mergeValue(H254)","v":0},null,null,null,null,{"$f":"K254&\"(\"&L254&\")\"","v":"()"}]
[null,null,null,null,null,null,null,null,null,null,"Добавить МО"]
[]
["et_List01_2"]
[]
[null,"auto",null,null,null,null,null,null,null,0,null,null,{"$f":"mergeValue(H259)","v":0},null,null,null,null,{"$f":"K259&\" (\"&L259&\")\"","v":" ()"}]
[]
[]
["et_List11_1"]
[]
[]
[]
[]
["et_List12_1"]
[]
[null,null,null,null,null,"x","x"]
[]
[]
["et_List12_2"]
[]
[null,null,null,null,null,"x",null,"x"]
[]
[]
["et_List12_3"]
[]
[null,null,null,null,{"$f":"E278","v":0},"x",null,"x"]
[]
[]
["et_List12_4"]
[]
[null,null,null,null,{"$f":"E283","v":0},"x",null,"x"]
[]
[]
["et_List05(_1,_2,_3,_4)"]
[]
[1,null,null,null,null,{"$f":"\"2.\" &mergeValue(A289)","v":"2.1"},"Наименование централизованной системы коммунальной инфраструктуры",null,"Указывается наименование централизованной системы холодного водоснабжения/горячего водоснабжения/водоотведения/теплоснабжения, к которой относится размещаемая информация.\nВ случае наличия нескольких централизованных систем коммунальной инфраструктуры, информация по каждой из них указывается в отдельной строке."]
[null,null,null,null,null,{"$f":"\"3.\" &mergeValue(A290)","v":"3.1"},"Наименование регулируемого вида деятельности",null,"Указывается наименование вида регулируемой деятельности."]
[null,null,null,null,null,{"$f":"\"4.\"&mergeValue(A291)","v":"4.1"},"Территория оказания услуги по регулируемому виду деятельности","x"]
[null,1,null,null,null,{"$f":"\"4.\"&mergeValue(A292) &\".\"&mergeValue(B292)","v":"4.1.1"},"Субъект Российской Федерации",{"$f":"IF(region_name=\"\",\"\",region_name)","v":"Республика Башкортостан"},"Указывается наименование субъекта Российской Федерации"]
[null,null,1,null,null,{"$f":"\"4.\"&mergeValue(A293) &\".\"&mergeValue(B293)&\".\"&mergeValue(C293)","v":"4.1.1.1"},"муниципальный район",null,"Указывается наименование муниципального района, на территории которого организация оказывает услуги по регулируемому виду деятельности."]
[null,null,null,1,null,{"$f":"\"4.\"&mergeValue(A294) &\".\"&mergeValue(B294)&\".\"&mergeValue(C294)&\".\"&mergeValue(D294)","v":"4.1.1.1.1"},"муниципальное образование",null,"Указывается наименование и код муниципального района, муниципального образования в соответствии с Общероссийским классификатором территорий муниципальных образований (далее - ОКТМО), входящего в муниципальный район, на территории которого организация оказывает услуги по регулируемому виду деятельности.\nВ случае оказания услуг по регулируемому виду деятельности на территории нескольких муниципальных районов (муниципальных образований) данные по каждому их них указываются в отдельной строке."]
[null,null,null,null,null,null,"Добавить МО"]
[null,null,null,null,null,null,"Добавить МР"]
[null,null,null,null,null,null,"Добавить территорию"]
[null,null,null,null,null,null,"Добавить ЦС"]

{"sheet":"REESTR_MO_FILTER","index":48,"n_rows":0,"n_cols":0,"rows_kept":0,"cut":false,"hidden":true,"merged":[]}

{"sheet":"REESTR_MO","index":49,"n_rows":896,"n_cols":4,"rows_kept":896,"cut":false,"hidden":true,"merged":[]}
["№","МР","МО","МО_ОКТМО"]
[1,"Абзелиловский муниципальный район","Абзелиловский муниципальный район","80601000"]
[2,"Абзелиловский муниципальный район","Альмухаметовский сельский совет","80601404"]
[3,"Абзелиловский муниципальный район","Амангильдинский сельский совет","80601407"]
[4,"Абзелиловский муниципальный район","Аскаровский сельский совет","80601410"]
[5,"Абзелиловский муниципальный район","Баимовский сельский совет","80601413"]
[6,"Абзелиловский муниципальный район","Бурангуловский сельский совет","80601416"]
[7,"Абзелиловский муниципальный район","Гусевский сельский совет","80601419"]
[8,"Абзелиловский муниципальный район","Давлетовский сельский совет","80601422"]
[9,"Абзелиловский муниципальный район","Кирдасовский сельский совет","80601425"]
[10,"Абзелиловский муниципальный район","Краснобашкирский сельский совет","80601428"]
[11,"Абзелиловский муниципальный район","Равиловский сельский совет","80601431"]
[12,"Абзелиловский муниципальный район","Ташбулатовский сельский совет","80601434"]
[13,"Абзелиловский муниципальный район","Таштимеровский сельский совет","80601437"]
[14,"Абзелиловский муниципальный район","Халиловский сельский совет","80601440"]
[15,"Абзелиловский муниципальный район","Хамитовский сельский совет","80601443"]
[16,"Абзелиловский муниципальный район","Янгильский сельский совет","80601446"]
[17,"Альшеевский муниципальный район","Абдрашитовский сельский совет","80602404"]
[18,"Альшеевский муниципальный район","Аксеновский сельский совет","80602406"]
[19,"Альшеевский муниципальный район","Альшеевский муниципальный район","80602000"]
[20,"Альшеевский муниципальный район","Воздвиженский сельский совет","80602413"]
[21,"Альшеевский муниципальный район","Гайниямакский сельский совет","80602416"]
[22,"Альшеевский муниципальный район","Зеленоклиновский сельский совет","80602418"]
[23,"Альшеевский муниципальный район","Ибраевский сельский совет","80602419"]
[24,"Альшеевский муниципальный район","Казанский сельский совет","80602422"]
[25,"Альшеевский муниципальный район","Кармышевский сельский совет","80602428"]
[26,"Альшеевский муниципальный район","Кипчак-Аскаровский сельский совет","80602431"]
[27,"Альшеевский муниципальный район","Кызыльский сельский совет","80602437"]
[28,"Альшеевский муниципальный район","Мендяновский сельский совет","80602440"]
[29,"Альшеевский муниципальный район","Нигматуллинский сельский совет","80602443"]
[30,"Альшеевский муниципальный район","Нижнеаврюзовский сельский совет","80602446"]
[31,"Альшеевский муниципальный район","Никифаровский сельский совет","80602449"]
[32,"Альшеевский муниципальный район","Раевский сельский совет","80602451"]
[33,"Альшеевский муниципальный район","Слаковский сельский совет","80602455"]
[34,"Альшеевский муниципальный район","Ташлинский сельский совет","80602458"]
[35,"Альшеевский муниципальный район","Трунтаишевский сельский совет","80602461"]
[36,"Альшеевский муниципальный район","Чебенлинский сельский совет","80602464"]
[37,"Альшеевский муниципальный район","Шафрановский сельский совет","80602470"]
[38,"Архангельский муниципальный район","Абзановский сельский совет","80603404"]
[39,"Архангельский муниципальный район","Арх-Латышский сельский совет","80603413"]
[40,"Архангельский муниципальный район","Архангельский муниципальный район","80603000"]
[41,"Архангельский муниципальный район","Архангельский сельский совет","80603410"]
[42,"Архангельский муниципальный район","Бакалдинский сельский совет","80603416"]
[43,"Архангельский муниципальный район","Инзерский сельский совет","80603419"]
[44,"Архангельский муниципальный район","Ирныкшинский сельский совет","80603422"]
[45,"Архангельский муниципальный район","Краснозилимский сельский совет","80603425"]
[46,"Архангельский муниципальный район","Краснокуртовский сельский совет","80603428"]
[47,"Архангельский муниципальный район","Липовский сельский совет","80603434"]
[48,"Архангельский муниципальный район","Орловский сельский совет","80603440"]
[49,"Архангельский муниципальный район","Тавакачевский сельский совет","80603446"]
[50,"Архангельский муниципальный район","Узунларовский сельский совет","80603450"]
[51,"Аскинский муниципальный район","Арбашевский сельский совет","80604402"]
[52,"Аскинский муниципальный район","Аскинский муниципальный район","80604000"]
[53,"Аскинский муниципальный район","Аскинский сельский совет","80604404"]
[54,"Аскинский муниципальный район","Евбулякский сельский совет","80604413"]
[55,"Аскинский муниципальный район","Казанчинский сельский совет","80604416"]
[56,"Аскинский муниципальный район","Карткисяковский сельский совет","80604418"]
[57,"Аскинский муниципальный район","Кашкинский сельский совет","80604419"]
[58,"Аскинский муниципальный район","Ключевский сельский совет","80604425"]
[59,"Аскинский муниципальный район","Кубиязовский сельский совет","80604428"]
[60,"Аскинский муниципальный район","Кунгаковский сельский совет","80604431"]
[61,"Аскинский муниципальный район","Кшлау-Елгинский сельский совет","80604437"]
[62,"Аскинский муниципальный район","Мутабашевский сельский совет","80604440"]
[63,"Аскинский муниципальный район","Петропавловский сельский совет","80604442"]
[64,"Аскинский муниципальный район","Султанбековский сельский совет","80604443"]
[65,"Аскинский муниципальный район","Урмиязовский сельский совет","80604446"]
[66,"Аскинский муниципальный район","Усть-Табасский сельский совет","80604450"]
[67,"Аургазинский муниципальный район","Аургазинский муниципальный район","80605000"]
[68,"Аургазинский муниципальный район","Балыклыкульский сельский совет","80605402"]
[69,"Аургазинский муниципальный район","Батыровский сельский совет","80605404"]
[70,"Аургазинский муниципальный район","Бишкаинский сельский совет","80605407"]
[71,"Аургазинский муниципальный район","Ибраевский сельский совет","80605410"]
[72,"Аургазинский муниципальный район","Исмагиловский сельский совет","80605413"]
[73,"Аургазинский муниципальный район","Ишлинский сельский совет","80605416"]
[74,"Аургазинский муниципальный район","Кебячевский сельский совет","80605419"]
[75,"Аургазинский муниципальный район","Меселинский сельский совет","80605422"]
[76,"Аургазинский муниципальный район","Михайловский сельский совет","80605425"]
[77,"Аургазинский муниципальный район","Нагадакский сельский совет","80605428"]
[78,"Аургазинский муниципальный район","Новокальчировский сельский совет","80605431"]
[79,"Аургазинский муниципальный район","Семенкинский сельский совет","80605434"]
[80,"Аургазинский муниципальный район","Степановский сельский совет","80605437"]
[81,"Аургазинский муниципальный район","Султанмуратовский сельский совет","80605440"]
[82,"Аургазинский муниципальный район","Таштамакский сельский совет","80605443"]
[83,"Аургазинский муниципальный район","Толбазинский сельский совет","80605446"]
[84,"Аургазинский муниципальный район","Тряпинский сельский совет","80605449"]
[85,"Аургазинский муниципальный район","Тукаевский сельский совет","80605452"]
[86,"Аургазинский муниципальный район","Турумбетовский сельский совет","80605458"]
[87,"Аургазинский муниципальный район","Уршакский сельский совет","80605461"]
[88,"Аургазинский муниципальный район","Чуваш-Карамалинский сельский совет","80605472"]
[89,"Баймакский муниципальный район","1-й Иткуловский сельский совет","80606416"]
[90,"Баймакский муниципальный район","Абдулкаримовский сельский совет","80606404"]
[91,"Баймакский муниципальный район","Акмурунский сельский совет","80606407"]
[92,"Баймакский муниципальный район","Баймакский муниципальный район","80606000"]
[93,"Баймакский муниципальный район","Бекешевский сельский совет","80606409"]
[94,"Баймакский муниципальный район","Биляловский сельский совет","80606410"]
[95,"Баймакский муниципальный район","Город Баймак","80606101"]
[96,"Баймакский муниципальный район","Зилаирский сельский совет","80606413"]
[97,"Баймакский муниципальный район","Ишбердинский сельский совет","80606428"]
[98,"Баймакский муниципальный район","Ишмурзинский сельский совет","80606422"]
[99,"Баймакский муниципальный район","Ишмухаметовский сельский совет","80606425"]
[100,"Баймакский муниципальный район","Кульчуровский сельский совет","80606437"]
[101,"Баймакский муниципальный район","Кусеевский сельский совет","80606431"]
[102,"Баймакский муниципальный район","Мерясовский сельский совет","80606438"]
[103,"Баймакский муниципальный район","Мукасовский сельский совет","80606434"]
[104,"Баймакский муниципальный район","Нигаматовский сельский совет","80606440"]
[105,"Баймакский муниципальный район","Семеновский сельский совет","80606442"]
[106,"Баймакский муниципальный район","Сибайский сельский совет","80606443"]
[107,"Баймакский муниципальный район","Тавлыкаевский сельский совет","80606446"]
[108,"Баймакский муниципальный район","Татлыбаевский сельский совет","80606449"]
[109,"Баймакский муниципальный район","Темясовский сельский совет","80606452"]
[110,"Баймакский муниципальный район","Тубинский сельский совет","80606453"]
[111,"Баймакский муниципальный район","Юмашевский сельский совет","80606455"]
[112,"Баймакский муниципальный район","Яратовский сельский совет","80606459"]
[113,"Бакалинский муниципальный район","Ахмановский сельский совет","80607404"]
[114,"Бакалинский муниципальный район","Бакалинский муниципальный район","80607000"]
[115,"Бакалинский муниципальный район","Бакалинский сельский совет","80607407"]
[116,"Бакалинский муниципальный район","Бузюровский сельский совет","80607413"]
[117,"Бакалинский муниципальный район","Дияшевский сельский совет","80607419"]
[118,"Бакалинский муниципальный район","Камышлытамакский сельский совет","80607425"]
[119,"Бакалинский муниципальный район","Килеевский сельский совет","80607428"]
[120,"Бакалинский муниципальный район","Куштиряковский сельский совет","80607431"]
[121,"Бакалинский муниципальный район","Михайловский сельский совет","80607410"]
[122,"Бакалинский муниципальный район","Мустафинский сельский совет","80607434"]
[123,"Бакалинский муниципальный район","Новокатаевский сельский совет","80607440"]
[124,"Бакалинский муниципальный район","Новоурсаевский сельский совет","80607446"]
[125,"Бакалинский муниципальный район","Старокостеевский сельский совет","80607451"]
[126,"Бакалинский муниципальный район","Старокуручевский сельский совет","80607449"]
[127,"Бакалинский муниципальный район","Староматинский сельский совет","80607455"]
[128,"Бакалинский муниципальный район","Старошарашлинский сельский совет","80607458"]
[129,"Бакалинский муниципальный район","Тактагуловский сельский совет","80607461"]
[130,"Бакалинский муниципальный район","Урманаевский сельский совет","80607464"]
[131,"Балтачевский муниципальный район","Балтачевский муниципальный район","80608000"]
[132,"Балтачевский муниципальный район","Богдановский сельский совет","80608404"]
[133,"Балтачевский муниципальный район","Верхнеянактаевский сельский совет","80608407"]
[134,"Балтачевский муниципальный район","Кундашлинский сельский совет","80608413"]
[135,"Балтачевский муниципальный район","Кунтугушевский сельский совет","80608416"]
[136,"Балтачевский муниципальный район","Нижнекарышевский сельский совет","80608419"]
[137,"Балтачевский муниципальный район","Нижнесикиязовский сельский совет","80608422"]
[138,"Балтачевский муниципальный район","Норкинский сельский совет","80608425"]
[139,"Балтачевский муниципальный район","Сейтяковский сельский совет","80608428"]
[140,"Балтачевский муниципальный район","Старобалтачевский сельский совет","80608431"]
[141,"Балтачевский муниципальный район","Староянбаевский сельский совет","80608434"]
[142,"Балтачевский муниципальный район","Тошкуровский сельский совет","80608437"]
[143,"Балтачевский муниципальный район","Тучубаевский сельский совет","80608440"]
[144,"Балтачевский муниципальный район","Шавьядинский сельский совет","80608441"]
[145,"Балтачевский муниципальный район","Штандинский сельский совет","80608443"]
[146,"Балтачевский муниципальный район","Ялангачевский сельский совет","80608448"]
[147,"Белебеевский муниципальный район","Аксаковский сельский совет","80609401"]
[148,"Белебеевский муниципальный район","Анновский сельский совет","80609413"]
[149,"Белебеевский муниципальный район","Баженовский сельский совет","80609402"]
[150,"Белебеевский муниципальный район","Белебеевский муниципальный район","80609000"]
[151,"Белебеевский муниципальный район","Город Белебей","80609101"]
[152,"Белебеевский муниципальный район","Донской сельский совет","80609404"]
[153,"Белебеевский муниципальный район","Ермолкинский сельский совет","80609407"]
[154,"Белебеевский муниципальный район","Знаменский сельский совет","80609410"]
[155,"Белебеевский муниципальный район","Максим-Горьковский сельский совет","80609416"]
[156,"Белебеевский муниципальный район","Малиновский сельский совет","80609419"]
[157,"Белебеевский муниципальный район","Метевбашевский сельский совет","80609425"]
[158,"Белебеевский муниципальный район","Приютовский поссовет","80609165"]
[159,"Белебеевский муниципальный район","Рассветовский сельский совет","80609428"]
[160,"Белебеевский муниципальный район","Семенкинский сельский совет","80609431"]
[161,"Белебеевский муниципальный район","Слакбашевский сельский совет","80609434"]
[162,"Белебеевский муниципальный район","Тузлукушевский сельский совет","80609437"]
[163,"Белебеевский муниципальный район","Усень-Ивановский сельский совет","80609440"]
[164,"Белебеевский муниципальный район","Шаровский сельский совет","80609443"]
[165,"Белокатайский муниципальный район","Атаршинский сельский совет","80610402"]
[166,"Белокатайский муниципальный район","Белокатайский муниципальный район","80610000"]
[167,"Белокатайский муниципальный район","Белянковский сельский совет","80610404"]
[168,"Белокатайский муниципальный район","Емашинский сельский совет","80610407"]
[169,"Белокатайский муниципальный район","Карлыхановский сельский совет","80610413"]
[170,"Белокатайский муниципальный район","Майгазинский сельский совет","80610416"]
[171,"Белокатайский муниципальный район","Нижнеискушинский сельский совет","80610419"]
[172,"Белокатайский муниципальный район","Новобелокатайский сельский совет","80610422"]
[173,"Белокатайский муниципальный район","Ногушинский сельский совет","80610425"]
[174,"Белокатайский муниципальный район","Старобелокатайский сельский совет","80610428"]
[175,"Белокатайский муниципальный район","Тардавский сельский совет","80610431"]
[176,"Белокатайский муниципальный район","Ургалинский сельский совет","80610434"]
[177,"Белокатайский муниципальный район","Утяшевский сельский совет","80610437"]
[178,"Белокатайский муниципальный район","Яныбаевский сельский совет","80610440"]
[179,"Белорецкий муниципальный район","Абзаковский сельский совет","80611404"]
[180,"Белорецкий муниципальный район","Азикеевский сельский совет","80611407"]
[181,"Белорецкий муниципальный район","Ассинский сельский совет","80611410"]
[182,"Белорецкий муниципальный район","Белорецкий муниципальный район","80611000"]
[183,"Белорецкий муниципальный район","Верхнеавзянский сельский совет","80611415"]
[184,"Белорецкий муниципальный район","Город Белорецк","80611101"]
[185,"Белорецкий муниципальный район","Железнодорожный сельский совет","80611418"]
[186,"Белорецкий муниципальный район","Зигазинский сельский совет","80611416"]
[187,"Белорецкий муниципальный район","Зуяковский сельский совет","80611417"]
[188,"Белорецкий муниципальный район","Инзерский сельский совет","80611420"]
[189,"Белорецкий муниципальный район","Ишлинский сельский совет","80611422"]
[190,"Белорецкий муниципальный район","Кагинский сельский совет","80611425"]
[191,"Белорецкий муниципальный район","Ломовский сельский совет","80611427"]
[192,"Белорецкий муниципальный район","Николаевский сельский совет","80611434"]
[193,"Белорецкий муниципальный район","Нурский сельский совет","80611440"]
[194,"Белорецкий муниципальный район","Серменевский сельский совет","80611443"]
[195,"Белорецкий муниципальный район","Сосновский сельский совет","80611446"]
[196,"Белорецкий муниципальный район","Тирлянский сельский совет","80611448"]
[197,"Белорецкий муниципальный район","Туканский сельский совет","80611449"]
[198,"Белорецкий муниципальный район","Узянский сельский совет","80611452"]
[199,"Белорецкий муниципальный район","Шигаевский сельский совет","80611455"]
[200,"Бижбулякский муниципальный район","Аитовский сельский совет","80612404"]
[201,"Бижбулякский муниципальный район","Базлыкский сельский совет","80612407"]
[202,"Бижбулякский муниципальный район","Бижбулякский муниципальный район","80612000"]
[203,"Бижбулякский муниципальный район","Бижбулякский сельский совет","80612410"]
[204,"Бижбулякский муниципальный район","Биккуловский сельский совет","80612413"]
[205,"Бижбулякский муниципальный район","Демский сельский совет","80612416"]
[206,"Бижбулякский муниципальный район","Елбулактамакский сельский совет","80612419"]
[207,"Бижбулякский муниципальный район","Зириклинский сельский совет","80612422"]
[208,"Бижбулякский муниципальный район","Калининский сельский совет","80612425"]
[209,"Бижбулякский муниципальный район","Каменский сельский совет","80612428"]
[210,"Бижбулякский муниципальный район","Кенгер-Менеузовский сельский совет","80612431"]
[211,"Бижбулякский муниципальный район","Кош-Елгинский сельский совет","80612440"]
[212,"Бижбулякский муниципальный район","Михайловский сельский совет","80612442"]
[213,"Бижбулякский муниципальный район","Сухореченский сельский совет","80612443"]
[214,"Бирский муниципальный район","Бахтыбаевский сельский совет","80613407"]
[215,"Бирский муниципальный район","Березовский сельский совет","80613409"]
[216,"Бирский муниципальный район","Бирский муниципальный район","80613000"]
[217,"Бирский муниципальный район","Бурновский сельский совет","80613408"]
[218,"Бирский муниципальный район","Верхнелачентауский сельский совет","80613410"]
[219,"Бирский муниципальный район","Город Бирск","80613101"]
[220,"Бирский муниципальный район","Калинниковский сельский совет","80613416"]
[221,"Бирский муниципальный район","Кусекеевский сельский совет","80613419"]
[222,"Бирский муниципальный район","Маядыковский сельский совет","80613422"]
[223,"Бирский муниципальный район","Осиновский сельский совет","80613425"]
[224,"Бирский муниципальный район","Силантьевский сельский совет","80613431"]
[225,"Бирский муниципальный район","Старобазановский сельский совет","80613434"]
[226,"Бирский муниципальный район","Старопетровский сельский совет","80613437"]
[227,"Бирский муниципальный район","Сусловский сельский совет","80613440"]
[228,"Бирский муниципальный район","Угузевский сельский совет","80613443"]
[229,"Бирский муниципальный район","Чишминский сельский совет","80613446"]
[230,"Благоварский муниципальный район","Алексеевский сельский совет","80614404"]
[231,"Благоварский муниципальный район","Балышлинский сельский совет","80614407"]
[232,"Благоварский муниципальный район","Благоварский муниципальный район","80614000"]
[233,"Благоварский муниципальный район","Благоварский сельский совет","80614410"]
[234,"Благоварский муниципальный район","Дмитриевский сельский совет","80614413"]
[235,"Благоварский муниципальный район","Каргалинский сельский совет","80614416"]
[236,"Благоварский муниципальный район","Кашкалашинский сельский совет","80614419"]
[237,"Благоварский муниципальный район","Кучербаевский сельский совет","80614422"]
[238,"Благоварский муниципальный район","Мирновский сельский совет","80614423"]
[239,"Благоварский муниципальный район","Первомайский сельский совет","80614424"]
[240,"Благоварский муниципальный район","Тановский сельский совет","80614428"]
[241,"Благоварский муниципальный район","Троицкий сельский совет","80614431"]
[242,"Благоварский муниципальный район","Удрякбашевский сельский совет","80614434"]
[243,"Благоварский муниципальный район","Языковский сельский совет","80614437"]
[244,"Благоварский муниципальный район","Ямакаевский сельский совет","80614440"]
[245,"Благоварский муниципальный район","Янышевский сельский совет","80614443"]
[246,"Благовещенский муниципальный район","Бедеево-Полянский сельский совет","80615404"]
[247,"Благовещенский муниципальный район","Благовещенский муниципальный район","80615000"]
[248,"Благовещенский муниципальный район","Богородский сельский совет","80615407"]
[249,"Благовещенский муниципальный район","Волковский сельский совет","80615413"]
[250,"Благовещенский муниципальный район","Город Благовещенск","80615101"]
[251,"Благовещенский муниципальный район","Изяковский сельский совет","80615419"]
[252,"Благовещенский муниципальный район","Иликовский сельский совет","80615422"]
[253,"Благовещенский муниципальный район","Ильино-Полянский сельский совет","80615425"]
[254,"Благовещенский муниципальный район","Николаевский сельский совет","80615428"]
[255,"Благовещенский муниципальный район","Новонадеждинский сельский совет","80615431"]
[256,"Благовещенский муниципальный район","Октябрьский сельский совет","80615434"]
[257,"Благовещенский муниципальный район","Орловский сельский совет","80615437"]
[258,"Благовещенский муниципальный район","Покровский сельский совет","80615440"]
[259,"Благовещенский муниципальный район","Саннинский сельский совет","80615443"]
[260,"Благовещенский муниципальный район","Старонадеждинский сельский совет","80615449"]
[261,"Благовещенский муниципальный район","Тугайский сельский совет","80615453"]
[262,"Благовещенский муниципальный район","Удельно-Дуванейский сельский совет","80615461"]
[263,"Буздякский муниципальный район","Арслановский сельский совет","80617404"]
[264,"Буздякский муниципальный район","Буздякский муниципальный район","80617000"]
[265,"Буздякский муниципальный район","Буздякский сельский совет","80617407"]
[266,"Буздякский муниципальный район","Гафурийский сельский совет","80617410"]
[267,"Буздякский муниципальный район","Канлы-Туркеевский сельский совет","80617413"]
[268,"Буздякский муниципальный район","Каранский сельский совет","80617416"]
[269,"Буздякский муниципальный район","Килимовский сельский совет","80617419"]
[270,"Буздякский муниципальный район","Копей-Кубовский сельский совет","80617422"]
[271,"Буздякский муниципальный район","Кузеевский сельский совет","80617425"]
[272,"Буздякский муниципальный район","Сабаевский сельский совет","80617431"]
[273,"Буздякский муниципальный район","Тавларовский сельский совет","80617437"]
[274,"Буздякский муниципальный район","Тюрюшевский сельский совет","80617440"]
[275,"Буздякский муниципальный район","Уртакульский сельский совет","80617446"]
[276,"Бураевский муниципальный район","Азяковский сельский совет","80618404"]
[277,"Бураевский муниципальный район","Бадраковский сельский совет","80618407"]
[278,"Бураевский муниципальный район","Бураевский муниципальный район","80618000"]
[279,"Бураевский муниципальный район","Бураевский сельский совет","80618413"]
[280,"Бураевский муниципальный район","Ванышевский сельский совет","80618416"]
[281,"Бураевский муниципальный район","Вострецовский сельский совет","80618419"]
[282,"Бураевский муниципальный район","Каинлыковский сельский совет","80618422"]
[283,"Бураевский муниципальный район","Кашкалевский сельский совет","80618425"]
[284,"Бураевский муниципальный район","Кузбаевский сельский совет","80618431"]
[285,"Бураевский муниципальный район","Кушманаковский сельский совет","80618428"]
[286,"Бураевский муниципальный район","Тазларовский сельский совет","80618437"]
[287,"Бураевский муниципальный район","Тангатаровский сельский совет","80618440"]
[288,"Бураевский муниципальный район","Тепляковский сельский совет","80618443"]
[289,"Бураевский муниципальный район","Челкаковский сельский совет","80618446"]
[290,"Бурзянский муниципальный район","Аскаровский сельский совет","80619404"]
[291,"Бурзянский муниципальный район","Атиковский сельский совет","80619407"]
[292,"Бурзянский муниципальный район","Байгазинский сельский совет","80619409"]
[293,"Бурзянский муниципальный район","Байназаровский сельский совет","80619410"]
[294,"Бурзянский муниципальный район","Бурзянский муниципальный район","80619000"]
[295,"Бурзянский муниципальный район","Галиакберовский сельский совет","80619413"]
[296,"Бурзянский муниципальный район","Иргизлинский сельский совет","80619416"]
[297,"Бурзянский муниципальный район","Киекбаевский сельский совет","80619419"]
[298,"Бурзянский муниципальный район","Кипчакский сельский совет","80619420"]
[299,"Бурзянский муниципальный район","Кулганинский сельский совет","80619440"]
[300,"Бурзянский муниципальный район","Старомунасиповский сельский совет","80619422"]
[301,"Бурзянский муниципальный район","Старосубхангуловский сельский совет","80619425"]
[302,"Бурзянский муниципальный район","Тимировский сельский совет","80619430"]
[303,"Гафурийский муниципальный район","Белоозерский сельский совет","80621407"]
[304,"Гафурийский муниципальный район","Бельский сельский совет","80621410"]
[305,"Гафурийский муниципальный район","Бурлинский сельский совет","80621413"]
[306,"Гафурийский муниципальный район","Буруновский сельский совет","80621414"]
[307,"Гафурийский муниципальный район","Гафурийский муниципальный район","80621000"]
[308,"Гафурийский муниципальный район","Зилим-Карановский сельский совет","80621416"]
[309,"Гафурийский муниципальный район","Имендяшевский сельский совет","80621419"]
[310,"Гафурийский муниципальный район","Ковардинский сельский совет","80621422"]
[311,"Гафурийский муниципальный район","Красноусольский сельский совет","80621423"]
[312,"Гафурийский муниципальный район","Мраковский сельский совет","80621425"]
[313,"Гафурийский муниципальный район","Саитбабинский сельский совет","80621428"]
[314,"Гафурийский муниципальный район","Табынский сельский совет","80621431"]
[315,"Гафурийский муниципальный район","Ташбукановский сельский совет","80621434"]
[316,"Гафурийский муниципальный район","Ташлинский сельский совет","80621437"]
[317,"Гафурийский муниципальный район","Толпаровский сельский совет","80621440"]
[318,"Гафурийский муниципальный район","Утяковский сельский совет","80621443"]
[319,"Гафурийский муниципальный район","Янгискаинский сельский совет","80621446"]
[320,"Город Агидель","Город Агидель","80703000"]
[321,"Город Кумертау","Город Кумертау","80723000"]
[322,"Город Нефтекамск","Город Нефтекамск","80727000"]
[323,"Город Октябрьский","Город Октябрьский","80735000"]
[324,"Город Салават","Город Салават","80739000"]
[325,"Город Сибай","Город Сибай","80743000"]
[326,"Город Стерлитамак","Город Стерлитамак","80745000"]
[327,"Город Уфа","Город Уфа","80701000"]
[328,"Давлекановский муниципальный район","Алгинский сельский совет","80622404"]
[329,"Давлекановский муниципальный район","Бик-Кармалинский сельский совет","80622410"]
[330,"Давлекановский муниципальный район","Город Давлеканово","80622101"]
[331,"Давлекановский муниципальный район","Давлекановский муниципальный район","80622000"]
[332,"Давлекановский муниципальный район","Ивановский сельский совет","80622413"]
[333,"Давлекановский муниципальный район","Имай-Кармалинский сельский совет","80622416"]
[334,"Давлекановский муниципальный район","Кадыргуловский сельский совет","80622419"]
[335,"Давлекановский муниципальный район","Казангуловский сельский совет","80622422"]
[336,"Давлекановский муниципальный район","Кидрячевский сельский совет","80622425"]
[337,"Давлекановский муниципальный район","Курманкеевский сельский совет","80622428"]
[338,"Давлекановский муниципальный район","Микяшевский сельский совет","80622431"]
[339,"Давлекановский муниципальный район","Поляковский сельский совет","80622434"]
[340,"Давлекановский муниципальный район","Раевский сельский совет","80622437"]
[341,"Давлекановский муниципальный район","Рассветовский сельский совет","80622440"]
[342,"Давлекановский муниципальный район","Сергиопольский сельский совет","80622443"]
[343,"Давлекановский муниципальный район","Соколовский сельский совет","80622444"]
[344,"Давлекановский муниципальный район","Чуюнчинский сельский совет","80622446"]
[345,"Давлекановский муниципальный район","Шестаевский сельский совет","80622449"]
[346,"Дуванский муниципальный район","Ариевский сельский совет","80623404"]
[347,"Дуванский муниципальный район","Вознесенский сельский совет","80623406"]
[348,"Дуванский муниципальный район","Дуванский муниципальный район","80623000"]
[349,"Дуванский муниципальный район","Дуванский сельский совет","80623407"]
[350,"Дуванский муниципальный район","Заимкинский сельский совет","80623413"]
[351,"Дуванский муниципальный район","Лемазинский сельский совет","80623419"]
[352,"Дуванский муниципальный район","Месягутовский сельский совет","80623422"]
[353,"Дуванский муниципальный район","Метелинский сельский совет","80623425"]
[354,"Дуванский муниципальный район","Михайловский сельский совет","80623428"]
[355,"Дуванский муниципальный район","Рухтинский сельский совет","80623431"]
[356,"Дуванский муниципальный район","Сальевский сельский совет","80623433"]
[357,"Дуванский муниципальный район","Сикиязский сельский совет","80623434"]
[358,"Дуванский муниципальный район","Улькундинский сельский совет","80623440"]
[359,"Дуванский муниципальный район","Ярославский сельский совет","80623443"]
[360,"Дюртюлинский муниципальный район","Ангасякский сельский совет","80624404"]
[361,"Дюртюлинский муниципальный район","Асяновский сельский совет","80624407"]
[362,"Дюртюлинский муниципальный район","Город Дюртюли","80624101"]
[363,"Дюртюлинский муниципальный район","Дюртюлинский муниципальный район","80624000"]
[364,"Дюртюлинский муниципальный район","Исмаиловский сельский совет","80624410"]
[365,"Дюртюлинский муниципальный район","Куккуяновский сельский совет","80624413"]
[366,"Дюртюлинский муниципальный район","Маядыковский сельский совет","80624416"]
[367,"Дюртюлинский муниципальный район","Московский сельский совет","80624422"]
[368,"Дюртюлинский муниципальный район","Семилетовский сельский совет","80624430"]
[369,"Дюртюлинский муниципальный район","Старобаишевский сельский совет","80624431"]
[370,"Дюртюлинский муниципальный район","Староянтузовский сельский совет","80624434"]
[371,"Дюртюлинский муниципальный район","Суккуловский сельский совет","80624437"]
[372,"Дюртюлинский муниципальный район","Таймурзинский сельский совет","80624440"]
[373,"Дюртюлинский муниципальный район","Такарликовский сельский совет","80624443"]
[374,"Дюртюлинский муниципальный район","Учпилинский сельский совет","80624447"]
[375,"Дюртюлинский муниципальный район","Черлаковский сельский совет","80624449"]
[376,"Ермекеевский муниципальный район","Бекетовский сельский совет","80625402"]
[377,"Ермекеевский муниципальный район","Восьмомартовский сельский совет","80625404"]
[378,"Ермекеевский муниципальный район","Ермекеевский муниципальный район","80625000"]
[379,"Ермекеевский муниципальный район","Ермекеевский сельский совет","80625407"]
[380,"Ермекеевский муниципальный район","Кызыл-Ярский сельский совет","80625411"]
[381,"Ермекеевский муниципальный район","Нижнеулу-Елгинский сельский совет","80625413"]
[382,"Ермекеевский муниципальный район","Рятамакский сельский совет","80625416"]
[383,"Ермекеевский муниципальный район","Спартакский сельский совет","80625422"]
[384,"Ермекеевский муниципальный район","Среднекарамалинский сельский совет","80625425"]
[385,"Ермекеевский муниципальный район","Старосуллинский сельский совет","80625428"]
[386,"Ермекеевский муниципальный район","Старотураевский сельский совет","80625431"]
[387,"Ермекеевский муниципальный район","Суккуловский сельский совет","80625434"]
[388,"Ермекеевский муниципальный район","Тарказинский сельский совет","80625437"]
[389,"Ермекеевский муниципальный район","Усман-Ташлинский сельский совет","80625440"]
[390,"ЗАТО город Межгорье","ЗАТО город Межгорье","80707000"]
[391,"Зианчуринский муниципальный район","Абзановский сельский совет","80626404"]
[392,"Зианчуринский муниципальный район","Абуляисовский сельский совет","80626405"]
[393,"Зианчуринский муниципальный район","Баишевский сельский совет","80626406"]
[394,"Зианчуринский муниципальный район","Байдавлетовский сельский совет","80626407"]
[395,"Зианчуринский муниципальный район","Бикбауский сельский совет","80626410"]
[396,"Зианчуринский муниципальный район","Зианчуринский муниципальный район","80626000"]
[397,"Зианчуринский муниципальный район","Исянгуловский сельский совет","80626416"]
[398,"Зианчуринский муниципальный район","Казанбулакский сельский совет","80626419"]
[399,"Зианчуринский муниципальный район","Муйнакский сельский совет","80626422"]
[400,"Зианчуринский муниципальный район","Новопетровский сельский совет","80626425"]
[401,"Зианчуринский муниципальный район","Новочебенкинский сельский совет","80626428"]
[402,"Зианчуринский муниципальный район","Сакмарский сельский совет","80626431"]
[403,"Зианчуринский муниципальный район","Суренский сельский совет","80626434"]
[404,"Зианчуринский муниципальный район","Тазларовский сельский совет","80626437"]
[405,"Зианчуринский муниципальный район","Утягуловский сельский совет","80626440"]
[406,"Зианчуринский муниципальный район","Яныбаевский сельский совет","80626443"]
[407,"Зилаирский муниципальный район","Бердяшский сельский совет","80627404"]
[408,"Зилаирский муниципальный район","Верхнегалеевский сельский совет","80627410"]
[409,"Зилаирский муниципальный район","Дмитриевский сельский совет","80627413"]
[410,"Зилаирский муниципальный район","Зилаирский муниципальный район","80627000"]
[411,"Зилаирский муниципальный район","Зилаирский сельский совет","80627416"]
[412,"Зилаирский муниципальный район","Ивано-Кувалатский сельский совет","80627419"]
[413,"Зилаирский муниципальный район","Кананикольский сельский совет","80627421"]
[414,"Зилаирский муниципальный район","Канзафаровский сельский совет","80627422"]
[415,"Зилаирский муниципальный район","Кашкаровский сельский совет","80627423"]
[416,"Зилаирский муниципальный район","Матраевский сельский совет","80627425"]
[417,"Зилаирский муниципальный район","Сабыровский сельский совет","80627432"]
[418,"Зилаирский муниципальный район","Уркасский сельский совет","80627434"]
[419,"Зилаирский муниципальный район","Юлдыбаевский сельский совет","80627436"]
[420,"Зилаирский муниципальный район","Ямансазский сельский совет","80627442"]
[421,"Иглинский муниципальный район","Акбердинский сельский совет","80628403"]
[422,"Иглинский муниципальный район","Ауструмский сельский совет","80628405"]
[423,"Иглинский муниципальный район","Балтийский сельский совет","80628410"]
[424,"Иглинский муниципальный район","Ивано-Казанский сельский совет","80628415"]
[425,"Иглинский муниципальный район","Иглинский муниципальный район","80628000"]
[426,"Иглинский муниципальный район","Иглинский сельский совет","80628416"]
[427,"Иглинский муниципальный район","Калтымановский сельский совет","80628420"]
[428,"Иглинский муниципальный район","Кальтовский сельский совет","80628425"]
[429,"Иглинский муниципальный район","Красновосходский сельский совет","80628430"]
[430,"Иглинский муниципальный район","Кудеевский сельский совет","80628432"]
[431,"Иглинский муниципальный район","Лемезинский сельский совет","80628435"]
[432,"Иглинский муниципальный район","Майский сельский совет","80628440"]
[433,"Иглинский муниципальный район","Надеждинский сельский совет","80628445"]
[434,"Иглинский муниципальный район","Охлебининский сельский совет","80628450"]
[435,"Иглинский муниципальный район","Тавтимановский сельский совет","80628455"]
[436,"Иглинский муниципальный район","Турбаслинский сельский совет","80628460"]
[437,"Иглинский муниципальный район","Уктеевский сельский совет","80628470"]
[438,"Иглинский муниципальный район","Улу-Телякский сельский совет","80628472"]
[439,"Иглинский муниципальный район","Урманский сельский совет","80628474"]
[440,"Иглинский муниципальный район","Чуваш-Кубовский сельский совет","80628480"]
[441,"Илишевский муниципальный район","Аккузевский сельский совет","80630404"]
[442,"Илишевский муниципальный район","Андреевский сельский совет","80630408"]
[443,"Илишевский муниципальный район","Базитамакский сельский совет","80630412"]
[444,"Илишевский муниципальный район","Бишкураевский сельский совет","80630416"]
[445,"Илишевский муниципальный район","Дюмеевский сельский совет","80630424"]
[446,"Илишевский муниципальный район","Игметовский сельский совет","80630426"]
[447,"Илишевский муниципальный район","Илишевский муниципальный район","80630000"]
[448,"Илишевский муниципальный район","Исаметовский сельский совет","80630428"]
[449,"Илишевский муниципальный район","Исанбаевский сельский совет","80630432"]
[450,"Илишевский муниципальный район","Итеевский сельский совет","80630436"]
[451,"Илишевский муниципальный район","Ишкаровский сельский совет","80630440"]
[452,"Илишевский муниципальный район","Кадыровский сельский совет","80630444"]
[453,"Илишевский муниципальный район","Карабашевский сельский совет","80630448"]
[454,"Илишевский муниципальный район","Кужбахтинский сельский совет","80630452"]
[455,"Илишевский муниципальный район","Новомедведевский сельский совет","80630456"]
[456,"Илишевский муниципальный район","Рсаевский сельский совет","80630460"]
[457,"Илишевский муниципальный район","Старокуктовский сельский совет","80630464"]
[458,"Илишевский муниципальный район","Сюльтинский сельский совет","80630468"]
[459,"Илишевский муниципальный район","Урметовский сельский совет","80630472"]
[460,"Илишевский муниципальный район","Черекулевский сельский совет","80630476"]
[461,"Илишевский муниципальный район","Юнновский сельский совет","80630478"]
[462,"Илишевский муниципальный район","Ябалаковский сельский совет","80630480"]
[463,"Илишевский муниципальный район","Яркеевский сельский совет","80630484"]
[464,"Ишимбайский муниципальный район","Арметовский сельский совет","80631405"]
[465,"Ишимбайский муниципальный район","Байгузинский сельский совет","80631415"]
[466,"Ишимбайский муниципальный район","Верхоторский сельский совет","80631425"]
[467,"Ишимбайский муниципальный район","Город Ишимбай","80631101"]
[468,"Ишимбайский муниципальный район","Иткуловский сельский совет","80631430"]
[469,"Ишимбайский муниципальный район","Ишеевский сельский совет","80631435"]
[470,"Ишимбайский муниципальный район","Ишимбайский муниципальный район","80631000"]
[471,"Ишимбайский муниципальный район","Кузяновский сельский совет","80631440"]
[472,"Ишимбайский муниципальный район","Кулгунинский сельский совет","80631445"]
[473,"Ишимбайский муниципальный район","Макаровский сельский совет","80631450"]
[474,"Ишимбайский муниципальный район","Петровский сельский совет","80631455"]
[475,"Ишимбайский муниципальный район","Сайрановский сельский совет","80631460"]
[476,"Ишимбайский муниципальный район","Скворчихинский сельский совет","80631470"]
[477,"Ишимбайский муниципальный район","Урман-Бишкадакский сельский совет","80631475"]
[478,"Ишимбайский муниципальный район","Янурусовский сельский совет","80631480"]
[479,"Калтасинский муниципальный район","Амзибашевский сельский совет","80633403"]
[480,"Калтасинский муниципальный район","Большекачаковский сельский совет","80633405"]
[481,"Калтасинский муниципальный район","Калегинский сельский совет","80633415"]
[482,"Калтасинский муниципальный район","Калмиябашевский сельский совет","80633420"]
[483,"Калтасинский муниципальный район","Калтасинский муниципальный район","80633000"]
[484,"Калтасинский муниципальный район","Калтасинский сельский совет","80633425"]
[485,"Калтасинский муниципальный район","Кельтеевский сельский совет","80633430"]
[486,"Калтасинский муниципальный район","Краснохолмский сельский совет","80633447"]
[487,"Калтасинский муниципальный район","Нижнекачмашевский сельский совет","80633445"]
[488,"Калтасинский муниципальный район","Новокильбахтинский сельский совет","80633446"]
[489,"Калтасинский муниципальный район","Старояшевский сельский совет","80633452"]
[490,"Калтасинский муниципальный район","Тюльдинский сельский совет","80633450"]
[491,"Караидельский муниципальный район","Артакульский сельский совет","80634404"]
[492,"Караидельский муниципальный район","Байкибашевский сельский совет","80634412"]
[493,"Караидельский муниципальный район","Байкинский сельский совет","80634416"]
[494,"Караидельский муниципальный район","Верхнесуянский сельский совет","80634424"]
[495,"Караидельский муниципальный район","Караидельский муниципальный район","80634000"]
[496,"Караидельский муниципальный район","Караидельский сельский совет","80634432"]
[497,"Караидельский муниципальный район","Караярский сельский совет","80634436"]
[498,"Караидельский муниципальный район","Кирзинский сельский совет","80634440"]
[499,"Караидельский муниципальный район","Куртлыкульский сельский совет","80634444"]
[500,"Караидельский муниципальный район","Магинский сельский совет","80634445"]
[501,"Караидельский муниципальный район","Новобердяшский сельский совет","80634452"]
[502,"Караидельский муниципальный район","Новомуллакаевский сельский совет","80634456"]
[503,"Караидельский муниципальный район","Озеркинский сельский совет","80634460"]
[504,"Караидельский муниципальный район","Подлубовский сельский совет","80634464"]
[505,"Караидельский муниципальный район","Староакбуляковский сельский совет","80634472"]
[506,"Караидельский муниципальный район","Ургушевский сельский совет","80634480"]
[507,"Караидельский муниципальный район","Урюш-Битуллинский сельский совет","80634484"]
[508,"Караидельский муниципальный район","Явгильдинский сельский совет","80634488"]
[509,"Кармаскалинский муниципальный район","Адзитаровский сельский совет","80635405"]
[510,"Кармаскалинский муниципальный район","Бузовьязовский сельский совет","80635415"]
[511,"Кармаскалинский муниципальный район","Ефремкинский сельский совет","80635420"]
[512,"Кармаскалинский муниципальный район","Кабаковский сельский совет","80635423"]
[513,"Кармаскалинский муниципальный район","Камышлинский сельский совет","80635425"]
[514,"Кармаскалинский муниципальный район","Карламанский сельский совет","80635430"]
[515,"Кармаскалинский муниципальный район","Кармаскалинский муниципальный район","80635000"]
[516,"Кармаскалинский муниципальный район","Кармаскалинский сельский совет","80635435"]
[517,"Кармаскалинский муниципальный район","Николаевский сельский совет","80635440"]
[518,"Кармаскалинский муниципальный район","Новокиешкинский сельский совет","80635445"]
[519,"Кармаскалинский муниципальный район","Подлубовский сельский совет","80635450"]
[520,"Кармаскалинский муниципальный район","Прибельский сельский совет","80635451"]
[521,"Кармаскалинский муниципальный район","Савалеевский сельский совет","80635455"]
[522,"Кармаскалинский муниципальный район","Сахаевский сельский совет","80635475"]
[523,"Кармаскалинский муниципальный район","Старобабичевский сельский совет","80635465"]
[524,"Кармаскалинский муниципальный район","Старомусинский сельский совет","80635470"]
[525,"Кармаскалинский муниципальный район","Шаймуратовский сельский совет","80635480"]
[526,"Кигинский муниципальный район","Абзаевский сельский совет","80636405"]
[527,"Кигинский муниципальный район","Арслановский сельский совет","80636410"]
[528,"Кигинский муниципальный район","Верхнекигинский сельский совет","80636415"]
[529,"Кигинский муниципальный район","Душанбековский сельский совет","80636425"]
[530,"Кигинский муниципальный район","Еланлинский сельский совет","80636420"]
[531,"Кигинский муниципальный район","Ибраевский сельский совет","80636430"]
[532,"Кигинский муниципальный район","Кандаковский сельский совет","80636435"]
[533,"Кигинский муниципальный район","Кигинский муниципальный район","80636000"]
[534,"Кигинский муниципальный район","Леузинский сельский совет","80636440"]
[535,"Кигинский муниципальный район","Нижнекигинский сельский совет","80636445"]
[536,"Краснокамский муниципальный район","Арлановский сельский совет","80637405"]
[537,"Краснокамский муниципальный район","Кариевский сельский совет","80637410"]
[538,"Краснокамский муниципальный район","Краснокамский муниципальный район","80637000"]
[539,"Краснокамский муниципальный район","Куяновский сельский совет","80637412"]
[540,"Краснокамский муниципальный район","Музяковский сельский совет","80637415"]
[541,"Краснокамский муниципальный район","Николо-Березовский сельский совет","80637421"]
[542,"Краснокамский муниципальный район","Никольский сельский совет","80637420"]
[543,"Краснокамский муниципальный район","Новобуринский сельский совет","80637425"]
[544,"Краснокамский муниципальный район","Новокабановский сельский совет","80637430"]
[545,"Краснокамский муниципальный район","Новокаинлыковский сельский совет","80637435"]
[546,"Краснокамский муниципальный район","Новонагаевский сельский совет","80637440"]
[547,"Краснокамский муниципальный район","Новоянзигитовский сельский совет","80637461"]
[548,"Краснокамский муниципальный район","Раздольевский сельский совет","80637443"]
[549,"Краснокамский муниципальный район","Саузбашевский сельский совет","80637450"]
[550,"Краснокамский муниципальный район","Шушнурский сельский совет","80637465"]
[551,"Кугарчинский муниципальный район","Волостновский сельский совет","80638405"]
[552,"Кугарчинский муниципальный район","Зареченский сельский совет","80638410"]
[553,"Кугарчинский муниципальный район","Ибраевский сельский совет","80638415"]
[554,"Кугарчинский муниципальный район","Ижбердинский сельский совет","80638420"]
[555,"Кугарчинский муниципальный район","Иртюбякский сельский совет","80638425"]
[556,"Кугарчинский муниципальный район","Исимовский сельский совет","80638430"]
[557,"Кугарчинский муниципальный район","Кугарчинский муниципальный район","80638000"]
[558,"Кугарчинский муниципальный район","Кугарчинский сельский совет","80638440"]
[559,"Кугарчинский муниципальный район","Максютовский сельский совет","80638445"]
[560,"Кугарчинский муниципальный район","Мраковский сельский совет","80638450"]
[561,"Кугарчинский муниципальный район","Нижнебиккузинский сельский совет","80638455"]
[562,"Кугарчинский муниципальный район","Новопетровский сельский совет","80638460"]
[563,"Кугарчинский муниципальный район","Нукаевский сельский совет","80638463"]
[564,"Кугарчинский муниципальный район","Побоищенский сельский совет","80638470"]
[565,"Кугарчинский муниципальный район","Санзяповский сельский совет","80638473"]
[566,"Кугарчинский муниципальный район","Тляумбетовский сельский совет","80638475"]
[567,"Кугарчинский муниципальный район","Уральский сельский совет","80638480"]
[568,"Кугарчинский муниципальный район","Чапаевский сельский совет","80638483"]
[569,"Кугарчинский муниципальный район","Юлдыбаевский сельский совет","80638485"]
[570,"Кугарчинский муниципальный район","Юмагузинский сельский совет","80638487"]
[571,"Кугарчинский муниципальный район","Ялчинский сельский совет","80638495"]
[572,"Кушнаренковский муниципальный район","Ахметовский сельский совет","80640405"]
[573,"Кушнаренковский муниципальный район","Бакаевский сельский совет","80640410"]
[574,"Кушнаренковский муниципальный район","Горьковский сельский совет","80640415"]
[575,"Кушнаренковский муниципальный район","Карача-Елгинский сельский совет","80640430"]
[576,"Кушнаренковский муниципальный район","Кушнаренковский муниципальный район","80640000"]
[577,"Кушнаренковский муниципальный район","Кушнаренковский сельский совет","80640435"]
[578,"Кушнаренковский муниципальный район","Матвеевский сельский совет","80640440"]
[579,"Кушнаренковский муниципальный район","Расмекеевский сельский совет","80640465"]
[580,"Кушнаренковский муниципальный район","Старогумеровский сельский совет","80640470"]
[581,"Кушнаренковский муниципальный район","Старокамышлинский сельский совет","80640475"]
[582,"Кушнаренковский муниципальный район","Старокурмашевский сельский совет","80640477"]
[583,"Кушнаренковский муниципальный район","Старотукмаклинский сельский совет","80640480"]
[584,"Кушнаренковский муниципальный район","Шариповский сельский совет","80640490"]
[585,"Куюргазинский муниципальный район","Бахмутский сельский совет","80639410"]
[586,"Куюргазинский муниципальный район","Ермолаевский сельский совет","80639412"]
[587,"Куюргазинский муниципальный район","Зяк-Ишметовский сельский совет","80639417"]
[588,"Куюргазинский муниципальный район","Илькинеевский сельский совет","80639415"]
[589,"Куюргазинский муниципальный район","Кривле-Илюшкинский сельский совет","80639420"]
[590,"Куюргазинский муниципальный район","Куюргазинский муниципальный район","80639000"]
[591,"Куюргазинский муниципальный район","Ленинский сельский совет","80639425"]
[592,"Куюргазинский муниципальный район","Мурапталовский сельский совет","80639435"]
[593,"Куюргазинский муниципальный район","Отрадинский сельский совет","80639440"]
[594,"Куюргазинский муниципальный район","Свободинский сельский совет","80639450"]
[595,"Куюргазинский муниципальный район","Таймасовский сельский совет","80639455"]
[596,"Куюргазинский муниципальный район","Шабагишский сельский совет","80639460"]
[597,"Куюргазинский муниципальный район","Якшимбетовский сельский совет","80639465"]
[598,"Мелеузовский муниципальный район","Абитовский сельский совет","80641402"]
[599,"Мелеузовский муниципальный район","Александровский сельский совет","80641405"]
[600,"Мелеузовский муниципальный район","Аптраковский сельский совет","80641410"]
[601,"Мелеузовский муниципальный район","Араслановский сельский совет","80641415"]
[602,"Мелеузовский муниципальный район","Воскресенский сельский совет","80641422"]
[603,"Мелеузовский муниципальный район","Город Мелеуз","80641101"]
[604,"Мелеузовский муниципальный район","Денисовский сельский совет","80641435"]
[605,"Мелеузовский муниципальный район","Зирганский сельский совет","80641430"]
[606,"Мелеузовский муниципальный район","Иштугановский сельский совет","80641445"]
[607,"Мелеузовский муниципальный район","Корнеевский сельский совет","80641480"]
[608,"Мелеузовский муниципальный район","Мелеузовский муниципальный район","80641000"]
[609,"Мелеузовский муниципальный район","Мелеузовский сельский совет","80641450"]
[610,"Мелеузовский муниципальный район","Нордовский сельский совет","80641455"]
[611,"Мелеузовский муниципальный район","Нугушевский сельский совет","80641460"]
[612,"Мелеузовский муниципальный район","Партизанский сельский совет","80641465"]
[613,"Мелеузовский муниципальный район","Первомайский сельский совет","80641470"]
[614,"Мелеузовский муниципальный район","Сарышевский сельский совет","80641475"]
[615,"Мелеузовский муниципальный район","Шевченковский сельский совет","80641485"]
[616,"Мечетлинский муниципальный район","Абдуллинский сельский совет","80642401"]
[617,"Мечетлинский муниципальный район","Алегазовский сельский совет","80642405"]
[618,"Мечетлинский муниципальный район","Большеокинский сельский совет","80642410"]
[619,"Мечетлинский муниципальный район","Большеустьикинский сельский совет","80642415"]
[620,"Мечетлинский муниципальный район","Дуван-Мечетлинский сельский совет","80642420"]
[621,"Мечетлинский муниципальный район","Кургатовский сельский совет","80642423"]
[622,"Мечетлинский муниципальный район","Лемез-Тамакский сельский совет","80642425"]
[623,"Мечетлинский муниципальный район","Малоустьикинский сельский совет","80642430"]
[624,"Мечетлинский муниципальный район","Мечетлинский муниципальный район","80642000"]
[625,"Мечетлинский муниципальный район","Новомещеровский сельский совет","80642435"]
[626,"Мечетлинский муниципальный район","Новояушевский сельский совет","80642442"]
[627,"Мечетлинский муниципальный район","Ростовский сельский совет","80642445"]
[628,"Мечетлинский муниципальный район","Юнусовский сельский совет","80642450"]
[629,"Мишкинский муниципальный район","Акбулатовский сельский совет","80643405"]
[630,"Мишкинский муниципальный район","Баймурзинский сельский совет","80643410"]
[631,"Мишкинский муниципальный район","Большесухоязовский сельский совет","80643415"]
[632,"Мишкинский муниципальный район","Большешадинский сельский совет","80643420"]
[633,"Мишкинский муниципальный район","Ирсаевский сельский совет","80643425"]
[634,"Мишкинский муниципальный район","Кайраковский сельский совет","80643430"]
[635,"Мишкинский муниципальный район","Камеевский сельский совет","80643435"]
[636,"Мишкинский муниципальный район","Мавлютовский сельский совет","80643445"]
[637,"Мишкинский муниципальный район","Мишкинский муниципальный район","80643000"]
[638,"Мишкинский муниципальный район","Мишкинский сельский совет","80643450"]
[639,"Мишкинский муниципальный район","Новотроицкий сельский совет","80643455"]
[640,"Мишкинский муниципальный район","Староарзаматовский сельский совет","80643460"]
[641,"Мишкинский муниципальный район","Тынбаевский сельский совет","80643465"]
[642,"Мишкинский муниципальный район","Урьядинский сельский совет","80643470"]
[643,"Мишкинский муниципальный район","Чураевский сельский совет","80643480"]
[644,"Миякинский муниципальный район","Биккуловский сельский совет","80644405"]
[645,"Миякинский муниципальный район","Богдановский сельский совет","80644410"]
[646,"Миякинский муниципальный район","Большекаркалинский сельский совет","80644415"]
[647,"Миякинский муниципальный район","Енебей-Урсаевский сельский совет","80644420"]
[648,"Миякинский муниципальный район","Зильдяровский сельский совет","80644425"]
[649,"Миякинский муниципальный район","Ильчигуловский сельский совет","80644428"]
[650,"Миякинский муниципальный район","Карановский сельский совет","80644429"]
[651,"Миякинский муниципальный район","Качегановский сельский совет","80644430"]
[652,"Миякинский муниципальный район","Кожай-Семеновский сельский совет","80644435"]
[653,"Миякинский муниципальный район","Менеузтамакский сельский совет","80644440"]
[654,"Миякинский муниципальный район","Миякибашевский сельский совет","80644445"]
[655,"Миякинский муниципальный район","Миякинский муниципальный район","80644000"]
[656,"Миякинский муниципальный район","Миякинский сельский совет","80644450"]
[657,"Миякинский муниципальный район","Новокарамалинский сельский совет","80644460"]
[658,"Миякинский муниципальный район","Сатыевский сельский совет","80644465"]
[659,"Миякинский муниципальный район","Уршакбашкарамалинский сельский совет","80644470"]
[660,"Нуримановский муниципальный район","Байгильдинский сельский совет","80645405"]
[661,"Нуримановский муниципальный район","Баш-Шидинский сельский совет","80645410"]
[662,"Нуримановский муниципальный район","Красногорский сельский совет","80645415"]
[663,"Нуримановский муниципальный район","Красноключевский сельский совет","80645416"]
[664,"Нуримановский муниципальный район","Никольский сельский совет","80645420"]
[665,"Нуримановский муниципальный район","Новокулевский сельский совет","80645435"]
[666,"Нуримановский муниципальный район","Новосубаевский сельский совет","80645440"]
[667,"Нуримановский муниципальный район","Нуримановский муниципальный район","80645000"]
[668,"Нуримановский муниципальный район","Павловский сельский совет","80645444"]
[669,"Нуримановский муниципальный район","Первомайский сельский совет","80645445"]
[670,"Нуримановский муниципальный район","Сарвинский сельский совет","80645450"]
[671,"Нуримановский муниципальный район","Старобедеевский сельский совет","80645452"]
[672,"Нуримановский муниципальный район","Староисаевский сельский совет","80645455"]
[673,"Салаватский муниципальный район","Алькинский сельский совет","80647405"]
[674,"Салаватский муниципальный район","Аркауловский сельский совет","80647410"]
[675,"Салаватский муниципальный район","Ишимбаевский сельский совет","80647415"]
[676,"Салаватский муниципальный район","Лагеревский сельский совет","80647425"]
[677,"Салаватский муниципальный район","Лаклинский сельский совет","80647430"]
[678,"Салаватский муниципальный район","Малоязовский сельский совет","80647435"]
[679,"Салаватский муниципальный район","Мечетлинский сельский совет","80647440"]
[680,"Салаватский муниципальный район","Мещегаровский сельский совет","80647445"]
[681,"Салаватский муниципальный район","Мурсалимкинский сельский совет","80647447"]
[682,"Салаватский муниципальный район","Насибашевский сельский совет","80647450"]
[683,"Салаватский муниципальный район","Первомайский сельский совет","80647476"]
[684,"Салаватский муниципальный район","Салаватский муниципальный район","80647000"]
[685,"Салаватский муниципальный район","Салаватский сельский совет","80647453"]
[686,"Салаватский муниципальный район","Таймеевский сельский совет","80647455"]
[687,"Салаватский муниципальный район","Терменевский сельский совет","80647460"]
[688,"Салаватский муниципальный район","Турналинский сельский совет","80647465"]
[689,"Салаватский муниципальный район","Янгантауский сельский совет","80647475"]
[690,"Стерлибашевский муниципальный район","Айдаралинский сельский совет","80648405"]
[691,"Стерлибашевский муниципальный район","Аллагуватский сельский совет","80648402"]
[692,"Стерлибашевский муниципальный район","Бакеевский сельский совет","80648410"]
[693,"Стерлибашевский муниципальный район","Бузатовский сельский совет","80648415"]
[694,"Стерлибашевский муниципальный район","Кабакушский сельский совет","80648418"]
[695,"Стерлибашевский муниципальный район","Карагушский сельский совет","80648420"]
[696,"Стерлибашевский муниципальный район","Куганакбашевский сельский совет","80648425"]
[697,"Стерлибашевский муниципальный район","Кундрякский сельский совет","80648430"]
[698,"Стерлибашевский муниципальный район","Сарайсинский сельский совет","80648435"]
[699,"Стерлибашевский муниципальный район","Старокалкашевский сельский совет","80648440"]
[700,"Стерлибашевский муниципальный район","Стерлибашевский муниципальный район","80648000"]
[701,"Стерлибашевский муниципальный район","Стерлибашевский сельский совет","80648445"]
[702,"Стерлибашевский муниципальный район","Тятер-Араслановский сельский совет","80648455"]
[703,"Стерлибашевский муниципальный район","Халикеевский сельский совет","80648460"]
[704,"Стерлибашевский муниципальный район","Янгурчинский сельский совет","80648465"]
[705,"Стерлибашевский муниципальный район","Яшергановский сельский совет","80648470"]
[706,"Стерлитамакский муниципальный район","Айгулевский сельский совет","80649404"]
[707,"Стерлитамакский муниципальный район","Алатанинский сельский совет","80649412"]
[708,"Стерлитамакский муниципальный район","Ашкадарский сельский совет","80649416"]
[709,"Стерлитамакский муниципальный район","Аючевский сельский совет","80649418"]
[710,"Стерлитамакский муниципальный район","Буриказгановский сельский совет","80649428"]
[711,"Стерлитамакский муниципальный район","Казадаевский сельский совет","80649436"]
[712,"Стерлитамакский муниципальный район","Константиноградовский сельский совет","80649420"]
[713,"Стерлитамакский муниципальный район","Красноярский сельский совет","80649444"]
[714,"Стерлитамакский муниципальный район","Куганакский сельский совет","80649440"]
[715,"Стерлитамакский муниципальный район","Максимовский сельский совет","80649424"]
[716,"Стерлитамакский муниципальный район","Наумовский сельский совет","80649448"]
[717,"Стерлитамакский муниципальный район","Николаевский сельский совет","80649452"]
[718,"Стерлитамакский муниципальный район","Октябрьский сельский совет","80649460"]
[719,"Стерлитамакский муниципальный район","Отрадовский сельский совет","80649456"]
[720,"Стерлитамакский муниципальный район","Первомайский сельский совет","80649464"]
[721,"Стерлитамакский муниципальный район","Подлесненский сельский совет","80649468"]
[722,"Стерлитамакский муниципальный район","Рощинский сельский совет","80649478"]
[723,"Стерлитамакский муниципальный район","Рязановский сельский совет","80649480"]
[724,"Стерлитамакский муниципальный район","Стерлитамакский муниципальный район","80649000"]
[725,"Стерлитамакский муниципальный район","Тюрюшлинский сельский совет","80649488"]
[726,"Стерлитамакский муниципальный район","Услинский сельский совет","80649492"]
[727,"Татышлинский муниципальный район","Акбулатовский сельский совет","80650405"]
[728,"Татышлинский муниципальный район","Аксаитовский сельский совет","80650410"]
[729,"Татышлинский муниципальный район","Бадряшевский сельский совет","80650415"]
[730,"Татышлинский муниципальный район","Буль-Кайпановский сельский совет","80650420"]
[731,"Татышлинский муниципальный район","Верхнетатышлинский сельский совет","80650425"]
[732,"Татышлинский муниципальный район","Кальмияровский сельский совет","80650430"]
[733,"Татышлинский муниципальный район","Кальтяевский сельский совет","80650435"]
[734,"Татышлинский муниципальный район","Кудашевский сельский совет","80650440"]
[735,"Татышлинский муниципальный район","Курдымский сельский совет","80650445"]
[736,"Татышлинский муниципальный район","Нижнебалтачевский сельский совет","80650450"]
[737,"Татышлинский муниципальный район","Новотатышлинский сельский совет","80650455"]
[738,"Татышлинский муниципальный район","Татышлинский муниципальный район","80650000"]
[739,"Татышлинский муниципальный район","Шулгановский сельский совет","80650460"]
[740,"Татышлинский муниципальный район","Ялгыз-Наратский сельский совет","80650465"]
[741,"Туймазинский муниципальный район","Бишкураевский сельский совет","80651405"]
[742,"Туймазинский муниципальный район","Верхнебишиндинский сельский совет","80651410"]
[743,"Туймазинский муниципальный район","Верхнетроицкий сельский совет","80651415"]
[744,"Туймазинский муниципальный район","Гафуровский сельский совет","80651417"]
[745,"Туймазинский муниципальный район","Город Туймазы","80651101"]
[746,"Туймазинский муниципальный район","Ильчимбетовский сельский совет","80651420"]
[747,"Туймазинский муниципальный район","Какрыбашевский сельский совет","80651425"]
[748,"Туймазинский муниципальный район","Кандринский сельский совет","80651427"]
[749,"Туймазинский муниципальный район","Карамалы-Губеевский сельский совет","80651430"]
[750,"Туймазинский муниципальный район","Каратовский сельский совет","80651435"]
[751,"Туймазинский муниципальный район","Нижнетроицкий сельский совет","80651439"]
[752,"Туймазинский муниципальный район","Николаевский сельский совет","80651440"]
[753,"Туймазинский муниципальный район","Сайрановский сельский совет","80651445"]
[754,"Туймазинский муниципальный район","Серафимовский сельский совет","80651447"]
[755,"Туймазинский муниципальный район","Старотуймазинский сельский совет","80651455"]
[756,"Туймазинский муниципальный район","Субханкуловский сельский совет","80651461"]
[757,"Туймазинский муниципальный район","Татар-Улкановский сельский совет","80651465"]
[758,"Туймазинский муниципальный район","Туймазинский муниципальный район","80651000"]
[759,"Туймазинский муниципальный район","Тюменяковский сельский совет","80651470"]
[760,"Туймазинский муниципальный район","Чукадыбашевский сельский совет","80651475"]
[761,"Уфимский муниципальный район","Авдонский сельский совет","80652405"]
[762,"Уфимский муниципальный район","Алексеевский сельский совет","80652403"]
[763,"Уфимский муниципальный район","Булгаковский сельский совет","80652410"]
[764,"Уфимский муниципальный район","Дмитриевский сельский совет","80652415"]
[765,"Уфимский муниципальный район","Жуковский сельский совет","80652418"]
[766,"Уфимский муниципальный район","Зубовский сельский совет","80652420"]
[767,"Уфимский муниципальный район","Кармасанский сельский совет","80652423"]
[768,"Уфимский муниципальный район","Кирилловский сельский совет","80652425"]
[769,"Уфимский муниципальный район","Красноярский сельский совет","80652430"]
[770,"Уфимский муниципальный район","Миловский сельский совет","80652435"]
[771,"Уфимский муниципальный район","Михайловский сельский совет","80652440"]
[772,"Уфимский муниципальный район","Николаевский сельский совет","80652450"]
[773,"Уфимский муниципальный район","Ольховский сельский совет","80652452"]
[774,"Уфимский муниципальный район","Русско-Юрмашский сельский совет","80652455"]
[775,"Уфимский муниципальный район","Таптыковский сельский совет","80652460"]
[776,"Уфимский муниципальный район","Уфимский муниципальный район","80652000"]
[777,"Уфимский муниципальный район","Черкасский сельский совет","80652472"]
[778,"Уфимский муниципальный район","Чесноковский сельский совет","80652473"]
[779,"Уфимский муниципальный район","Шемякский сельский совет","80652475"]
[780,"Уфимский муниципальный район","Юматовский сельский совет","80652480"]
[781,"Учалинский муниципальный район","Амангильдинский сельский совет","80653410"]
[782,"Учалинский муниципальный район","Ахуновский сельский совет","80653415"]
[783,"Учалинский муниципальный район","Буйдинский сельский совет","80653416"]
[784,"Учалинский муниципальный район","Город Учалы","80653101"]
[785,"Учалинский муниципальный район","Ильчигуловский сельский совет","80653420"]
[786,"Учалинский муниципальный район","Ильчинский сельский совет","80653425"]
[787,"Учалинский муниципальный район","Имангуловский сельский совет","80653430"]
[788,"Учалинский муниципальный район","Кирябинский сельский совет","80653440"]
[789,"Учалинский муниципальный район","Кунакбаевский сельский совет","80653445"]
[790,"Учалинский муниципальный район","Мансуровский сельский совет","80653449"]
[791,"Учалинский муниципальный район","Миндякский сельский совет","80653448"]
[792,"Учалинский муниципальный район","Наурузовский сельский совет","80653450"]
[793,"Учалинский муниципальный район","Новобайрамгуловский сельский совет","80653455"]
[794,"Учалинский муниципальный район","Поляковский сельский совет","80653465"]
[795,"Учалинский муниципальный район","Сафаровский сельский совет","80653470"]
[796,"Учалинский муниципальный район","Тунгатаровский сельский совет","80653484"]
[797,"Учалинский муниципальный район","Уразовский сельский совет","80653488"]
[798,"Учалинский муниципальный район","Уральский сельский совет","80653491"]
[799,"Учалинский муниципальный район","Учалинский муниципальный район","80653000"]
[800,"Учалинский муниципальный район","Учалинский сельский совет","80653496"]
[801,"Федоровский муниципальный район","Бала-Четырманский сельский совет","80654405"]
[802,"Федоровский муниципальный район","Балыклинский сельский совет","80654410"]
[803,"Федоровский муниципальный район","Булякаевский сельский совет","80654415"]
[804,"Федоровский муниципальный район","Верхнеяушевский сельский совет","80654416"]
[805,"Федоровский муниципальный район","Гончаровский сельский совет","80654417"]
[806,"Федоровский муниципальный район","Дедовский сельский совет","80654420"]
[807,"Федоровский муниципальный район","Денискинский сельский совет","80654425"]
[808,"Федоровский муниципальный район","Каралачикский сельский совет","80654427"]
[809,"Федоровский муниципальный район","Михайловский сельский совет","80654430"]
[810,"Федоровский муниципальный район","Покровский сельский совет","80654440"]
[811,"Федоровский муниципальный район","Пугачевский сельский совет","80654445"]
[812,"Федоровский муниципальный район","Разинский сельский совет","80654450"]
[813,"Федоровский муниципальный район","Теняевский сельский совет","80654455"]
[814,"Федоровский муниципальный район","Федоровский муниципальный район","80654000"]
[815,"Федоровский муниципальный район","Федоровский сельский совет","80654460"]
[816,"Хайбуллинский муниципальный район","Абишевский сельский совет","80655405"]
[817,"Хайбуллинский муниципальный район","Акъюловский сельский совет","80655410"]
[818,"Хайбуллинский муниципальный район","Акъярский сельский совет","80655415"]
[819,"Хайбуллинский муниципальный район","Антинганский сельский совет","80655420"]
[820,"Хайбуллинский муниципальный район","Бурибайский сельский совет","80655424"]
[821,"Хайбуллинский муниципальный район","Ивановский сельский совет","80655425"]
[822,"Хайбуллинский муниципальный район","Маканский сельский совет","80655430"]
[823,"Хайбуллинский муниципальный район","Новозирганский сельский совет","80655432"]
[824,"Хайбуллинский муниципальный район","Самарский сельский совет","80655433"]
[825,"Хайбуллинский муниципальный район","Таналыкский сельский совет","80655440"]
[826,"Хайбуллинский муниципальный район","Татыр-Узякский сельский совет","80655435"]
[827,"Хайбуллинский муниципальный район","Уфимский сельский совет","80655445"]
[828,"Хайбуллинский муниципальный район","Федоровский сельский совет","80655450"]
[829,"Хайбуллинский муниципальный район","Хайбуллинский муниципальный район","80655000"]
[830,"Хайбуллинский муниципальный район","Целинный сельский совет","80655455"]
[831,"Чекмагушевский муниципальный район","Башировский сельский совет","80656410"]
[832,"Чекмагушевский муниципальный район","Имянликулевский сельский совет","80656415"]
[833,"Чекмагушевский муниципальный район","Калмашбашевский сельский совет","80656420"]
[834,"Чекмагушевский муниципальный район","Новобалтачевский сельский совет","80656425"]
[835,"Чекмагушевский муниципальный район","Новокутовский сельский совет","80656435"]
[836,"Чекмагушевский муниципальный район","Рапатовский сельский совет","80656440"]
[837,"Чекмагушевский муниципальный район","Резяповский сельский совет","80656445"]
[838,"Чекмагушевский муниципальный район","Старокалмашевский сельский совет","80656450"]
[839,"Чекмагушевский муниципальный район","Тайняшевский сельский совет","80656455"]
[840,"Чекмагушевский муниципальный район","Тузлукушевский сельский совет","80656460"]
[841,"Чекмагушевский муниципальный район","Урнякский сельский совет","80656465"]
[842,"Чекмагушевский муниципальный район","Чекмагушевский муниципальный район","80656000"]
[843,"Чекмагушевский муниципальный район","Чекмагушевский сельский совет","80656470"]
[844,"Чекмагушевский муниципальный район","Юмашевский сельский совет","80656475"]
[845,"Чишминский муниципальный район","Алкинский сельский совет","80657405"]
[846,"Чишминский муниципальный район","Аровский сельский совет","80657410"]
[847,"Чишминский муниципальный район","Арслановский сельский совет","80657415"]
[848,"Чишминский муниципальный район","Дмитриевский сельский совет","80657420"]
[849,"Чишминский муниципальный район","Дурасовский сельский совет","80657425"]
[850,"Чишминский муниципальный район","Енгалышевский сельский совет","80657430"]
[851,"Чишминский муниципальный район","Еремеевский сельский совет","80657435"]
[852,"Чишминский муниципальный район","Ибрагимовский сельский совет","80657440"]
[853,"Чишминский муниципальный район","Кара-Якуповский сельский совет","80657445"]
[854,"Чишминский муниципальный район","Лесной сельский совет","80657446"]
[855,"Чишминский муниципальный район","Новотроицкий сельский совет","80657450"]
[856,"Чишминский муниципальный район","Сафаровский сельский совет","80657455"]
[857,"Чишминский муниципальный район","Чишминский муниципальный район","80657000"]
[858,"Чишминский муниципальный район","Чишминский поссовет","80657151"]
[859,"Чишминский муниципальный район","Чишминский сельский совет","80657465"]
[860,"Чишминский муниципальный район","Чувалкиповский сельский совет","80657470"]
[861,"Чишминский муниципальный район","Шингак-Кульский сельский совет","80657475"]
[862,"Шаранский муниципальный район","Акбарисовский сельский совет","80658405"]
[863,"Шаранский муниципальный район","Базгиевский сельский совет","80658410"]
[864,"Шаранский муниципальный район","Дмитриево-Полянский сельский совет","80658415"]
[865,"Шаранский муниципальный район","Дюртюлинский сельский совет","80658420"]
[866,"Шаранский муниципальный район","Зириклинский сельский совет","80658425"]
[867,"Шаранский муниципальный район","Мичуринский сельский совет","80658430"]
[868,"Шаранский муниципальный район","Нижнезаитовский сельский совет","80658435"]
[869,"Шаранский муниципальный район","Нижнеташлинский сельский совет","80658440"]
[870,"Шаранский муниципальный район","Нуреевский сельский совет","80658445"]
[871,"Шаранский муниципальный район","Писаревский сельский совет","80658455"]
[872,"Шаранский муниципальный район","Старотумбагушевский сельский совет","80658465"]
[873,"Шаранский муниципальный район","Чалмалинский сельский совет","80658475"]
[874,"Шаранский муниципальный район","Шаранский муниципальный район","80658000"]
[875,"Шаранский муниципальный район","Шаранский сельский совет","80658485"]
[876,"Янаульский муниципальный район","Асавдыбашский сельский совет","80659410"]
[877,"Янаульский муниципальный район","Байгузинский сельский совет","80659415"]
[878,"Янаульский муниципальный район","Воядинский сельский совет","80659420"]
[879,"Янаульский муниципальный район","Город Янаул","80659101"]
[880,"Янаульский муниципальный район","Ижболдинский сельский совет","80659430"]
[881,"Янаульский муниципальный район","Истякский сельский совет","80659435"]
[882,"Янаульский муниципальный район","Иткинеевский сельский совет","80659440"]
[883,"Янаульский муниципальный район","Кармановский сельский совет","80659445"]
[884,"Янаульский муниципальный район","Кисак-Каинский сельский совет","80659450"]
[885,"Янаульский муниципальный район","Максимовский сельский совет","80659453"]
[886,"Янаульский муниципальный район","Месягутовский сельский совет","80659455"]
[887,"Янаульский муниципальный район","Новоартаульский сельский совет","80659460"]
[888,"Янаульский муниципальный район","Орловский сельский совет","80659465"]
[889,"Янаульский муниципальный район","Первомайский сельский совет","80659470"]
[890,"Янаульский муниципальный район","Сандугачевский сельский совет","80659475"]
[891,"Янаульский муниципальный район","Староваряшский сельский совет","80659480"]
[892,"Янаульский муниципальный район","Старокудашевский сельский совет","80659485"]
[893,"Янаульский муниципальный район","Шудекский сельский совет","80659490"]
[894,"Янаульский муниципальный район","Ямадинский сельский совет","80659495"]
[895,"Янаульский муниципальный район","Янаульский муниципальный район","80659000"]

{"sheet":"TEHSHEET","index":50,"n_rows":87,"n_cols":53,"rows_kept":87,"cut":false,"hidden":true,"merged":[[0,51,0,52]]}
["REGION","year_list1","year_list","logical","Месяц\n(MONTH)","Квартал\n(QUARTER)","Месяц\n(kind_of_publication)","НДС\n/kind_of_NDS/","Номер СЦХВ(СЦВО)\n/SKI_number/","Единица измерения объема оказываемых услуг ГВС\n/kind_of_unit_GVS/","Метод регулирования\n/kind_of_control_method/",null,null,"Вид деятельности, на которую установлен тариф /kind_of_activity_WARM/","Вид теплоносителя\n(kind_of_heat_transfer)","Тип данных\n(kind_of_data_type)","Схема подключения\n(kind_of_scheme_in)\n(kind_of_scheme_in2)","Группы потребителей\n(kind_of_cons)","Тип прокладки тепловых сетей\n(kind_of_nets)","Диапазаны диаметров тепловых сетей\n(kind_of_diameters)","Подключаемая тепловая нагрузка\n(kind_of_load)",null,"Форма 2, таблица Х","виды тарифа\n/kind_group_rates/","Заголовок таблицы",null,"name_rates_4",null,"name_rates_8",null,null,"Подключаемая тепловая нагрузка\n(kind_of_load3)",null,"Вид теплоносителя\n(kind_of_heat_transfer2)","Вид теплоносителя\n(kind_of_heat_transfer3)",null,"Вид топлива\n(kind_of_fuel)",null,"Способ закупки товаров\n(kind_of_zak)",null,null,"виды тарифа\n/kind_group_rates_load/","виды тарифа\n/kind_group_rates_load_filter/",null,"виды признаков дифференциации\n/kind_of_diff/",null,"Диапазаны диаметров водопроводных сетей\n(kind_of_diameters2)",null,"List_H","List_M",null,"Перечень форм\n(kind_of_forms)"]
["Алтайский край",2000,2013,"да","январь","I квартал","На официальном сайте организации","общий","1","тыс.куб.м/сутки","метод экономически обоснованных расходов (затрат)","метод экономически обоснованных расходов (затрат)",1,"Передача+Сбыт","Без дифференциации","первичное раскрытие информации","без дифференциации","организации-перепродавцы","надземная (наземная)","50 - 250 мм","не превышает 0,1 Гкал/ч",1,null,"Тариф на водоотведение","Информация о предложении об установлении тарифов на водоотведение",null,"Тариф на холодную воду питьевую","Тариф на холодную воду питьевую","Плата за услуги по поддержанию резервной тепловой мощности при отсутствии потребления тепловой энергии для отдельных категорий (групп) социально значимых потребителей","Плата за услуги по поддержанию резервной тепловой мощности при отсутствии потребления тепловой энергии для отдельных категорий (групп) социально значимых потребителей",null,"не превышает 0,1 Гкал/ч",null,"Вода","Вода",null,"Газ природный по регулируемой цене",null,"Конкурс",null,null,"Тариф на подключение (технологическое присоединение) к централизованной системе водоотведения в индивидуальном порядке","Тариф на подключение (технологическое присоединение) к централизованной системе водоотведения в индивидуальном порядке",null,"объемы потребления воды абонентами",null,"40 мм и менее",null,"00","00",null,"Форма 1.0.1","Основные параметры раскрываемой информации"]
["Амурская область",2001,2014,"нет","февраль","II квартал","На сайте регулирующего органа","общий с учетом освобождения от уплаты НДС","2","Гкал/ч","метод индексации установленных тарифов","метод индексации установленных тарифов",2,"Передача","Горячая вода","изменения в раскрытой ранее информации","к коллектору источника тепловой энергии","бюджетные организации","подземная (канальная)","251 - 400 мм","более 0,1 Гкал/ч и не превышает 1,5 Гкал/ч",2,null,"Тариф на транспортировку сточных вод","Информация о предложении об установлении тарифов на транспортировку сточных вод",null,"Тариф на холодную воду артезианскую","Тариф на холодную воду артезианскую","Плата за услуги по поддержанию резервной тепловой мощности, оказываемые регулируемой организацией, мощность источников тепловой энергии которой используется для поддержания резервной мощности в соответствии со схемой теплоснабжения","Плата за услуги по поддержанию резервной тепловой мощности, оказываемые регулируемой организацией, мощность источников тепловой энергии которой используется для поддержания резервной мощности в соответствии со схемой теплоснабжения",null,"более 0,1 Гкал/ч и не превышает 1,5 Гкал/ч",null,"Отборный пар, 1,2-2,5 кг/см2","Пар",null,"Газ природный по нерегулируемой цене",null,"Аукцион",null,null,"Тариф на подключение (технологическое присоединение) к централизованной системе водоотведения","Тариф на подключение (технологическое присоединение) к централизованной системе водоотведения",null,"соответствие качества питьевой воды и горячей воды требованиям, установленным санитарными нормами и правилами",null,"от 41 мм до 70 мм включительно",null,"01","01",null,"Форма 3.2","Информация о величинах тарифов на водоотведение, транспортировку воды"]
["Архангельская область",2002,2015,null,"март","III квартал",null,"специальный (упрощенная система налогообложения, система налогообложения для сельскохозяйственных производителей)","3","куб.м/ч","метод обеспечения доходности инвестированного капитала","метод обеспечения доходности инвестированного капитала",3,"производство комбинированная выработка","Холодная вода",null,"к тепловой сети без дополнительного преобразования на тепловых пунктах, эксплуатируемых теплоснабжающей организацией","население","подземная (бесканальная)","401 - 550 мм","превышает 1,5 Гкал/ч при наличии технической возможности подключения",3,null,222,null,null,"Тариф на холодную воду поверхностную","Тариф на холодную воду поверхностную","Плата за услуги по поддержанию резервной тепловой мощности, оказываемые регулируемой организацией, мощность тепловых сетей которой используется для поддержания резервной мощности в соответствии со схемой теплоснабжения","Плата за услуги по поддержанию резервной тепловой мощности, оказываемые регулируемой организацией, мощность тепловых сетей которой используется для поддержания резервной мощности в соответствии со схемой теплоснабжения",null,"превышает 1,5 Гкал/ч при наличии технической возможности подключения",null,"Отборный пар, 2,5-7 кг/см2",null,null,"Уголь",null,"Аукцион в электронной форме",null,null,"Тариф на транспортировку сточных вод","Тариф на транспортировку сточных вод",null,"иное",null,"от 71 мм до 100 мм включительно",null,"02","02",null,"Форма 3.4","Информация о величинах тарифов на подключение к централизованной системе водоотведения"]
["Астраханская область",2003,2016,null,"апрель","IV квартал",null,null,"4",null,"метод сравнения аналогов","метод сравнения аналогов",4,"производство (некомбинированная выработка)+передача+сбыт","Вода",null,"к тепловой сети после тепловых пунктов (на тепловых пунктах), эксплуатируемых теплоснабжающей организацией","прочие",null,"551 - 700 мм","превышает 1,5 Гкал/ч при отсутствии технической возможности подключения",4,null,333,null,1,"Добавить вариант …","Добавить вариант …",null,null,null,"не известна",null,"Отборный пар, 7-13 кг/см2",null,null,"Мазут",null,"Запрос котировок",null,null,"Тариф на водоотведение",null,null,null,null,"от 101 мм до 150 мм включительно",null,"03","03",null,"Форма 3.9","Информация об условиях, на которых осуществляется поставка регулируемых товаров и (или) оказание регулируемых услуг"]
["Белгородская область",2004,2017,null,"май",null,"НДС общий\n/kind_of_NDS_tariff/","НДС\n/kind_of_NDS_tariff/","5","Вид тарифа на передачу тепловой энергии /kind_of_tariff_unit/",null,null,null,"производство (некомбинированная выработка)+передача","Пар",null,null,"без дифференциации",null,"701 мм и выше","не известна",5,null,55,55,null,null,null,null,null,null,null,null,"Отборный пар, > 13 кг/см2",null,null,"Дизельное топливо",null,"Единственный поставщик",null,null,null,null,null,null,null,"от 151 мм до 200 мм включительно",null,"04","04",null,"Форма 3.10","Информация о порядке выполнения технологических, технических и других мероприятий, связанных с подключением к централизованной системе водоотведения"]
["Брянская область",2005,null,null,"июнь",null,"тариф указан с НДС для плательщиков НДС","тариф для организаций не являющихся плательщиками НДС","6","руб./Гкал/ч/мес",null,null,null,"производство (некомбинированная выработка)+сбыт","Отборный пар, 1,2-2,5 кг/см2",null,null,null,null,null,"нет","6",null,66666,null,null,null,null,null,null,null,null,null,"Острый и редуцированный пар",null,null,"Дрова",null,"Иное",null,null,null,null,null,null,null,"от 201 мм до 250 мм включительно",null,"05","05"]
["Владимирская область",2006,null,null,"июль",null,"тариф указан без НДС для плательщиков НДС","тариф не утверждался","7","руб./Гкал",null,null,null,"производство (некомбинированная выработка)","Отборный пар, 2,5-7 кг/см2",null,null,null,null,null,null,"7",null,77777,null,null,null,null,null,null,null,null,null,null,null,null,"Электроэнергия",null,null,null,null,null,null,null,null,null,"от 250  мм и более",null,"06","06"]
["Волгоградская область",2007,null,null,"август",null,"тариф не утверждался",null,"8",null,null,null,null,null,"Отборный пар, 7-13 кг/см2",null,null,null,null,null,null,"8",null,8888,null,1,null,null,null,null,null,null,null,null,null,null,"Прочее",null,null,null,null,null,null,null,null,null,null,null,"07","07"]
["Вологодская область",2008,null,null,"сентябрь",null,null,null,"9",null,null,null,null,null,"Отборный пар, > 13 кг/см2",null,null,null,null,null,null,"9",null,"Тариф на подключение (технологическое присоединение) к централизованной системе водоотведения в индивидуальном порядке","Информация о предложении об установлении платы за подключение к централизованной системе водоотведения (индивидуальной)",null,null,null,null,null,null,null,null,null,null,null,null,null,null,null,null,null,null,null,null,null,null,null,"08","08"]
["Воронежская область",2009,null,null,"октябрь",null,null,null,"10",null,null,null,null,null,"Острый и редуцированный пар",null,null,null,null,null,null,"10",null,"Тариф на подключение (технологическое присоединение) к централизованной системе водоотведения","Информация о предложении об установлении платы за подключение к централизованной системе водоотведения",null,null,null,null,null,null,null,null,null,null,null,null,null,null,null,null,null,null,null,null,null,null,null,"09","09"]
["г.Байконур",2010,null,null,"ноябрь",null,"НДС общий люди\n/kind_of_NDS_tariff_people/","НДС\n/kind_of_NDS_tariff_people/","11",null,null,null,null,null,"Горячая вода в системе централизованного теплоснабжения на отопление",null,null,null,null,null,null,null,null,null,null,null,null,null,null,null,null,null,null,null,null,null,null,null,null,null,null,null,null,null,null,null,null,null,"10","10"]
["г. Москва",2011,null,null,"декабрь",null,"тариф с НДС организаций-плательщиков НДС","тариф организаций не являющихся плательщиками НДС","12",null,null,null,null,null,"Прочее",null,null,null,null,null,null,null,null,null,null,null,null,null,null,null,null,null,null,null,null,null,null,null,null,null,null,null,null,null,null,null,null,null,"11","11"]
["г.Санкт-Петербург",2012,null,null,null,null,"тариф не утверждался","тариф не утверждался","13",null,null,null,null,"Вид деятельности /kind_of_activity/",null,null,null,null,null,null,null,null,null,null,null,null,null,null,null,null,null,null,null,null,null,null,null,null,null,null,null,null,null,null,null,null,null,null,"12","12"]
["г.Севастополь",2013,null,null,null,null,null,null,"14",null,null,null,null,"производство тепловой энергии (мощности) в режиме комбинированной выработки электрической и тепловой энергии источниками тепловой энергии с установленной генерирующей мощностью производства электрической энергии 25 МВт и более",null,null,null,null,null,null,null,null,null,null,null,null,null,null,null,null,null,null,null,null,null,null,null,null,null,null,null,null,null,null,null,null,null,null,"13","13"]
["Еврейская автономная область",2014,null,null,null,null,null,null,"15",null,null,null,null,"производство тепловой энергии (мощности) в режиме комбинированной выработки электрической и тепловой энергии источниками тепловой энергии с установленной генерирующей мощностью производства электрической энергии менее 25 МВт",null,null,null,null,null,null,null,null,null,null,null,null,null,null,null,null,null,null,null,null,null,null,null,null,null,null,null,null,null,null,null,null,null,null,"14","14"]
["Забайкальский край",2015,null,null,null,null,null,null,"16",null,null,null,null,"производство тепловой энергии (мощности) не в режиме комбинированной выработки электрической и тепловой энергии источниками тепловой энергии",null,null,null,null,null,null,null,null,null,null,null,null,null,null,null,null,null,null,null,null,null,null,null,null,null,null,null,null,null,null,null,null,null,null,"15","15"]
["Ивановская область",2016,null,null,null,null,null,null,"17",null,null,null,null,"производство теплоносителя",null,null,null,null,null,null,null,null,null,null,null,null,null,null,null,null,null,null,null,null,null,null,null,null,null,null,null,null,null,null,null,null,null,null,"16","16"]
["Иркутская область",2017,null,null,null,null,null,null,"18",null,null,null,null,"передача тепловой энергии и теплоносителя",null,null,null,null,null,null,null,null,null,null,null,null,null,null,null,null,null,null,null,null,null,null,null,null,null,null,null,null,null,null,null,null,null,null,"17","17"]
["Кабардино-Балкарская республика",2018,null,null,null,null,null,null,"19",null,null,null,null,"сбыт тепловой энергии и теплоносителя",null,null,null,null,null,null,null,null,null,null,null,null,null,null,null,null,null,null,null,null,null,null,null,null,null,null,null,null,null,null,null,null,null,null,"18","18"]
["Калининградская область",2019,null,null,null,null,null,null,"20",null,null,null,null,"подключение к системе теплоснабжения",null,null,null,null,null,null,null,null,null,null,null,null,null,null,null,null,null,null,null,null,null,null,null,null,null,null,null,null,null,null,null,null,null,null,"19","19"]
["Калужская область",2020,null,null,null,null,null,null,null,null,null,null,null,"поддержание резервной тепловой мощности при отсутствии потребления тепловой энергии",null,null,null,null,null,null,null,null,null,null,null,null,null,null,null,null,null,null,null,null,null,null,null,null,null,null,null,null,null,null,null,null,null,null,"20","20"]
["Камчатский край",2021,null,null,null,null,null,null,null,null,null,null,null,null,null,null,null,null,null,null,null,null,null,null,null,null,null,null,null,null,null,null,null,null,null,null,null,null,null,null,null,null,null,null,null,null,null,null,"21","21"]
["Карачаево-Черкесская республика",2022,null,null,null,null,null,null,null,null,null,null,null,null,null,null,null,null,null,null,null,null,null,null,null,null,null,null,null,null,null,null,null,null,null,null,null,null,null,null,null,null,null,null,null,null,null,null,"22","22"]
["Кемеровская область",2023,null,null,null,null,null,null,null,null,null,null,null,null,null,null,null,null,null,null,null,null,null,null,null,null,null,null,null,null,null,null,null,null,null,null,null,null,null,null,null,null,null,null,null,null,null,null,"23","23"]
["Кировская область",2024,null,null,null,null,null,null,null,null,null,null,null,null,null,null,null,null,null,null,null,null,null,null,null,null,null,null,null,null,null,null,null,null,null,null,null,null,null,null,null,null,null,null,null,null,null,null,null,"24"]
["Костромская область",2025,null,null,null,null,null,null,null,null,null,null,null,null,null,null,null,null,null,null,null,null,null,null,null,null,null,null,null,null,null,null,null,null,null,null,null,null,null,null,null,null,null,null,null,null,null,null,null,"25"]
["Краснодарский край",null,null,null,null,null,null,"Текущая дата",null,null,null,null,null,null,null,null,null,null,null,null,null,null,null,null,null,null,null,null,null,null,null,null,null,null,null,null,null,null,null,null,null,null,null,null,null,null,null,null,null,"26"]
["Красноярский край",null,null,"Организация",{"$f":"IF(periodStart = \"\",\"\", periodStart)","v":"01.12.2019"},{"$f":"IF(periodEnd = \"\",\"\", periodEnd)","v":"31.12.2023"},null,"14.01.2019 14:17:07",null,null,null,null,null,null,null,null,null,null,null,null,null,null,null,null,null,null,null,null,null,null,null,null,null,null,null,null,null,null,null,null,null,null,null,null,null,null,null,null,null,"27"]
["Курганская область",null,null,null,null,null,null,null,null,null,null,null,null,null,null,null,null,null,null,null,null,null,null,null,null,null,null,null,null,null,null,null,null,null,null,null,null,null,null,null,null,null,null,null,null,null,null,null,null,"28"]
["Курская область",null,null,null,null,null,null,null,null,null,null,null,null,null,null,null,null,null,null,null,null,null,null,null,null,null,null,null,null,null,null,null,null,null,null,null,null,null,null,null,null,null,null,null,null,null,null,null,null,"29"]
["Ленинградская область",null,null,"Виды деятельности",null,null,null,"https://appsrv.regportal-tariff.ru/procwsxls/",null,null,null,null,null,null,null,null,null,null,null,null,null,null,null,null,null,null,null,null,null,null,null,null,null,null,null,null,null,null,null,null,null,null,null,null,null,null,null,null,null,"30"]
["Липецкая область",null,null,null,null,null,null,null,null,null,null,null,null,null,null,null,null,null,null,null,null,null,null,null,null,null,null,null,null,null,null,null,null,null,null,null,null,null,null,null,null,null,null,null,null,null,null,null,null,"31"]
["Магаданская область",null,null,null,null,null,null,null,null,null,null,null,null,null,null,null,null,null,null,null,null,null,null,null,null,null,null,null,null,null,null,null,null,null,null,null,null,null,null,null,null,null,null,null,null,null,null,null,null,"32"]
["Московская область",null,null,null,null,null,null,null,null,null,null,null,null,null,null,null,null,null,null,null,null,null,null,null,null,null,null,null,null,null,null,null,null,null,null,null,null,null,null,null,null,null,null,null,null,null,null,null,null,"33"]
["Мурманская область",null,null,null,null,null,null,null,null,null,null,null,null,null,null,null,null,null,null,null,null,null,null,null,null,null,null,null,null,null,null,null,null,null,null,null,null,null,null,null,null,null,null,null,null,null,null,null,null,"34"]
["Ненецкий автономный округ",null,null,null,null,null,null,null,null,null,null,null,null,null,null,null,null,null,null,null,null,null,null,null,null,null,null,null,null,null,null,null,null,null,null,null,null,null,null,null,null,null,null,null,null,null,null,null,null,"35"]
["Нижегородская область",null,null,null,null,null,null,null,null,null,null,null,null,null,null,null,null,null,null,null,null,null,null,null,null,null,null,null,null,null,null,null,null,null,null,null,null,null,null,null,null,null,null,null,null,null,null,null,null,"36"]
["Новгородская область",null,null,null,null,null,null,null,null,null,null,null,null,null,null,null,null,null,null,null,null,null,null,null,null,null,null,null,null,null,null,null,null,null,null,null,null,null,null,null,null,null,null,null,null,null,null,null,null,"37"]
["Новосибирская область",null,null,null,null,null,null,null,null,null,null,null,null,null,null,null,null,null,null,null,null,null,null,null,null,null,null,null,null,null,null,null,null,null,null,null,null,null,null,null,null,null,null,null,null,null,null,null,null,"38"]
["Омская область",null,null,null,null,null,null,null,null,null,null,null,null,null,null,null,null,null,null,null,null,null,null,null,null,null,null,null,null,null,null,null,null,null,null,null,null,null,null,null,null,null,null,null,null,null,null,null,null,"39"]
["Оренбургская область",null,null,null,null,null,null,null,null,null,null,null,null,null,null,null,null,null,null,null,null,null,null,null,null,null,null,null,null,null,null,null,null,null,null,null,null,null,null,null,null,null,null,null,null,null,null,null,null,"40"]
["Орловская область",null,null,null,null,null,null,null,null,null,null,null,null,null,null,null,null,null,null,null,null,null,null,null,null,null,null,null,null,null,null,null,null,null,null,null,null,null,null,null,null,null,null,null,null,null,null,null,null,"41"]
["Пензенская область",null,null,null,null,null,null,null,null,null,null,null,null,null,null,null,null,null,null,null,null,null,null,null,null,null,null,null,null,null,null,null,null,null,null,null,null,null,null,null,null,null,null,null,null,null,null,null,null,"42"]
["Пермский край",null,null,null,null,null,null,null,null,null,null,null,null,null,null,null,null,null,null,null,null,null,null,null,null,null,null,null,null,null,null,null,null,null,null,null,null,null,null,null,null,null,null,null,null,null,null,null,null,"43"]
["Приморский край",null,null,null,null,null,null,null,null,null,null,null,null,null,null,null,null,null,null,null,null,null,null,null,null,null,null,null,null,null,null,null,null,null,null,null,null,null,null,null,null,null,null,null,null,null,null,null,null,"44"]
["Псковская область",null,null,null,null,null,null,null,null,null,null,null,null,null,null,null,null,null,null,null,null,null,null,null,null,null,null,null,null,null,null,null,null,null,null,null,null,null,null,null,null,null,null,null,null,null,null,null,null,"45"]
["Республика Адыгея",null,null,null,null,null,null,null,null,null,null,null,null,null,null,null,null,null,null,null,null,null,null,null,null,null,null,null,null,null,null,null,null,null,null,null,null,null,null,null,null,null,null,null,null,null,null,null,null,"46"]
["Республика Алтай",null,null,null,null,null,null,null,null,null,null,null,null,null,null,null,null,null,null,null,null,null,null,null,null,null,null,null,null,null,null,null,null,null,null,null,null,null,null,null,null,null,null,null,null,null,null,null,null,"47"]
["Республика Башкортостан",null,null,null,null,null,null,null,null,null,null,null,null,null,null,null,null,null,null,null,null,null,null,null,null,null,null,null,null,null,null,null,null,null,null,null,null,null,null,null,null,null,null,null,null,null,null,null,null,"48"]
["Республика Бурятия",null,null,null,null,null,null,null,null,null,null,null,null,null,null,null,null,null,null,null,null,null,null,null,null,null,null,null,null,null,null,null,null,null,null,null,null,null,null,null,null,null,null,null,null,null,null,null,null,"49"]
["Республика Дагестан",null,null,null,null,null,null,null,null,null,null,null,null,null,null,null,null,null,null,null,null,null,null,null,null,null,null,null,null,null,null,null,null,null,null,null,null,null,null,null,null,null,null,null,null,null,null,null,null,"50"]
["Республика Ингушетия",null,null,null,null,null,null,null,null,null,null,null,null,null,null,null,null,null,null,null,null,null,null,null,null,null,null,null,null,null,null,null,null,null,null,null,null,null,null,null,null,null,null,null,null,null,null,null,null,"51"]
["Республика Калмыкия",null,null,null,null,null,null,null,null,null,null,null,null,null,null,null,null,null,null,null,null,null,null,null,null,null,null,null,null,null,null,null,null,null,null,null,null,null,null,null,null,null,null,null,null,null,null,null,null,"52"]
["Республика Карелия",null,null,null,null,null,null,null,null,null,null,null,null,null,null,null,null,null,null,null,null,null,null,null,null,null,null,null,null,null,null,null,null,null,null,null,null,null,null,null,null,null,null,null,null,null,null,null,null,"53"]
["Республика Коми",null,null,null,null,null,null,null,null,null,null,null,null,null,null,null,null,null,null,null,null,null,null,null,null,null,null,null,null,null,null,null,null,null,null,null,null,null,null,null,null,null,null,null,null,null,null,null,null,"54"]
["Республика Крым",null,null,null,null,null,null,null,null,null,null,null,null,null,null,null,null,null,null,null,null,null,null,null,null,null,null,null,null,null,null,null,null,null,null,null,null,null,null,null,null,null,null,null,null,null,null,null,null,"55"]
["Республика Марий Эл",null,null,null,null,null,null,null,null,null,null,null,null,null,null,null,null,null,null,null,null,null,null,null,null,null,null,null,null,null,null,null,null,null,null,null,null,null,null,null,null,null,null,null,null,null,null,null,null,"56"]
["Республика Мордовия",null,null,null,null,null,null,null,null,null,null,null,null,null,null,null,null,null,null,null,null,null,null,null,null,null,null,null,null,null,null,null,null,null,null,null,null,null,null,null,null,null,null,null,null,null,null,null,null,"57"]
["Республика Саха (Якутия)",null,null,null,null,null,null,null,null,null,null,null,null,null,null,null,null,null,null,null,null,null,null,null,null,null,null,null,null,null,null,null,null,null,null,null,null,null,null,null,null,null,null,null,null,null,null,null,null,"58"]
["Республика Северная Осетия-Алания",null,null,null,null,null,null,null,null,null,null,null,null,null,null,null,null,null,null,null,null,null,null,null,null,null,null,null,null,null,null,null,null,null,null,null,null,null,null,null,null,null,null,null,null,null,null,null,null,"59"]
["Республика Татарстан"]
["Республика Тыва"]
["Республика Хакасия"]
["Ростовская область"]
["Рязанская область"]
["Самарская область"]
["Саратовская область"]
["Сахалинская область"]
["Свердловская область"]
["Смоленская область"]
["Ставропольский край"]
["Тамбовская область"]
["Тверская область"]
["Томская область"]
["Тульская область"]
["Тюменская область"]
["Удмуртская республика"]
["Ульяновская область"]
["Хабаровский край"]
["Ханты-Мансийский автономный округ"]
["Челябинская область"]
["Чеченская республика"]
["Чувашская республика"]
["Чукотский автономный округ"]
["Ямало-Ненецкий автономный округ"]
["Ярославская область"]

{"sheet":"modInfo","index":51,"n_rows":36,"n_cols":2,"rows_kept":36,"cut":false,"hidden":true,"merged":[]}
[null,"Титульный"]
[null,"Для выбора того или иного источника публикации выполните двойной щелчок по синей ячейке напротив соответствующего источника.\nВНИМАНИЕ! Если Вы снимаете галочку с пункта, то будут скрыты и очищены соответствующие строки на листе \"Форма 1.0.2\"!\n\nОпубликование перечисленных в шаблоне показателей на сайте организации в сети Интернет и в печатных изданиях не обязательно, если данный шаблон предоставлен по системе ЕИАС (региональный сегмент)."]
[null,"Обязательное опубликование на официальном сайте органа исполнительной власти субъекта Российской Федерации в области государственного регулирования цен (тарифов), и (или) на официальном сайте органа местного самоуправления поселения или городского округа в случае их наделения в соответствии с законом субъекта Российской Федерации полномочиями по государственному регулированию цен (тарифов)предусмотрено пунктом 3 (а) постановления Правительства №6 от 17.01.2013г."]
[null,"Задайте период регулирования, выбрав даты начала и окончания периода регулирования из календаря (иконка справа от указанной ячейки), либо введите дату непосредственно в ячейку в формате - 'ДД.ММ.ГГГГ'"]
[null,"Шаблон заполняется раздельно по каждому виду тарифа"]
[null,"В зависимости от указанного вида деятельности будут доступны для заполнения поля 'Производство', 'Передача' и 'Сбыт'"]
[null,"Если выбрано 'да', на листах с разбивкой по потребителям доступны для заполнения графы для двухставочного ставочного тарифа по группам потребителей"]
[null,"Если выбрано 'да', значения тарифов для групп потребителей на листах с разбивкой по потребителям заполнятся автоматически значениями первой группы"]
[null,"Если выбрано значение «да» - в шаблоне будет сформирован лист «Форма 1.0.2» для уведомления органа регулирования о публикации информации в печатных изданиях"]
[null,"По умолчанию установлено значение «первичное раскрытие информации» Это означает, что информация раскрывается в соответствии с установленными сроком и периодичностью. В случае, если в уже отправленном шаблоне обнаружена ошибка или произошло изменение информации, исправленный шаблон необходимо отправить с типом отчета «изменения в раскрытой ранее информации». "]
[null,"Укажите является ли данное юридическое лицо подразделением(филиалом) другой организации"]
[null,"Ссылки на публикации"]
[null,"Вводите адрес сайта, не нарушая цвет ячейки /если копируете гиперссылку из браузера, то выполните двойной щелчок по ячейке и только после этого можете вставить скопированный элемент/"]
[null,"Обосновывающие материалы необходимо загружать с помощью \"ЕИАС Мониторинг\". Ссылка на инструкцию по загрузке обосновывающих материалов расположена на листе 'Инструкция' в п.'Методология заполнения'.\n\nВвводите ссылку, не нарушая цвет ячейки /если копируете гиперссылку из браузера, то выполните двойной щелчок по ячейке и только после этого можете вставить скопированный элемент/."]
[null,"Если для какого-либо пункта графы 'Наименование источника (сайта или печатного издания)' информация не раскрывалась, то в соответствующем поле укажите - 'не раскрывалась'"]
[null,"Список МО"]
[null,"В случае, если тариф не дифференцируется по системам теплоснабжения, перечислите все муниципальные районы, в которых организация осуществляет услуги теплоснабжения и сфере оказания услуг по передаче тепловой энергии"]
[null,"В случае, если тариф не дифференцируется по системам теплоснабжения, перечислите все муниципальные образования, в которых организация осуществляет услуги теплоснабжения и сфере оказания услуг по передаче тепловой энергии"]
[null,"Признак дифференциации тарифа"]
[null,"В случае, если тариф не дифференцируется по системам теплоснабжения, укажите \"1\".\nВведите значение от 1 до 100, чтобы указать очередной условный порядковый номер системы теплоснабжения"]
[null,"Стандарты"]
[null,"В качестве примечания Вы можете указать единицу измерения"]
[]
[null,"Для корректного формирования Таблицы 25 Формы 1.10 необходимо задать разбивку по диаметрам и способу прокладки тепловых сетей"]
[]
[null,"Перечень тарифов"]
[null,"Указывается наименование тарифа в случае утверждения нескольких тарифов.\nВ случае наличия нескольких тарифов информация по ним указывается в отдельных строках."]
[null,"Укажите «Да» в поле «Да/Нет», если дифференциация используется.\nВ поле «Описание» указывается наименование территории действия тарифа при наличии дифференциации тарифа по территориальному признаку.\nВ случае дифференциации тарифов по территориальному признаку информация по ним указывается в отдельных строках."]
[null,"Признаки дифференциации указываются в соответствии с п.6 ст.32 ФЗ РФ от 07.12.2011 №416-ФЗ"]
[null,"Укажите «Да» в поле «Да/Нет», если дифференциация используется. В поле «Описание» укажите название ЦС ВО или любое другое описание"]
[]
[null,"Территории"]
[1,"Наименование территории действия тарифа для целей идентификации"]
[2,"Муниципальные районы и муниципальные образования, на территории которых действует тариф"]
[null,"Инструкция"]
[null,"Нет доступных обновлений, версия отчёта актуальна"]

{"sheet":"modList05","index":52,"n_rows":0,"n_cols":0,"rows_kept":0,"cut":false,"hidden":true,"merged":[]}

{"sheet":"modList06","index":53,"n_rows":0,"n_cols":0,"rows_kept":0,"cut":false,"hidden":true,"merged":[]}

{"sheet":"modList07","index":54,"n_rows":0,"n_cols":0,"rows_kept":0,"cut":false,"hidden":true,"merged":[]}

{"sheet":"modList11","index":55,"n_rows":0,"n_cols":0,"rows_kept":0,"cut":false,"hidden":true,"merged":[]}

{"sheet":"modList12","index":56,"n_rows":0,"n_cols":0,"rows_kept":0,"cut":false,"hidden":true,"merged":[]}

{"sheet":"modfrmDateChoose","index":57,"n_rows":0,"n_cols":0,"rows_kept":0,"cut":false,"hidden":true,"merged":[]}

{"sheet":"modComm","index":58,"n_rows":0,"n_cols":0,"rows_kept":0,"cut":false,"hidden":true,"merged":[]}

{"sheet":"modThisWorkbook","index":59,"n_rows":0,"n_cols":0,"rows_kept":0,"cut":false,"hidden":true,"merged":[]}

{"sheet":"modfrmReestrMR","index":60,"n_rows":0,"n_cols":0,"rows_kept":0,"cut":false,"hidden":true,"merged":[]}

{"sheet":"modfrmCheckUpdates","index":61,"n_rows":0,"n_cols":0,"rows_kept":0,"cut":false,"hidden":true,"merged":[]}